{"text_format":"1","workbook":"xlsx","n_sheets":11,"sheets":["Instructions","Références","Entrées","Bilan","Portée 1 - Procédés","Portée 1 - Combustion","Portée 2 - Électricité","Portée 3 - Électricité","Portée 3 - Combustibles","Portée 3 - Biosolides","Portée 3 - Produits chimiques"],"not_rendered":{"charts":4,"images":2,"macros":1,"external_links":0,"defined_names":72,"comments":4,"pivot_tables":0},"unopened":[],"bounds":{"document_bytes":16777216,"sheet_cells":100000,"rows_first":2000,"rows_last":500,"rows_between":2000,"halvings":0,"cell_chars":16384,"cell_head_chars":4096},"cells_cut":0,"cells_raw":0,"read":"whole","date_system":"1900"}

{"sheet":"Instructions","index":0,"n_rows":60,"n_cols":4,"rows_kept":60,"cut":false,"hidden":false,"merged":[[18,12,18,22],[19,12,19,22],[15,1,15,11],[3,1,3,11],[14,1,14,11],[18,1,18,11],[19,1,19,11]]}
[null,"Inventaire des émissions de gaz à effet de serre"]
[]
[null,"À propos : "]
[null,"L’outil d’inventaire des émissions de gaz à effet de serre (outil d’inventaire des GES) a été conçu comme un outil gratuit et accessible pour aider les services publics à élaborer un inventaire des émissions de GES le plus précis possible. Il est basé sur le travail effectué par l’Université de Toronto sous contrat avec la Ville de Toronto, tel que révisé par le groupe de travail sur l’inventaire des GES du comité mixte sur les changements climatiques de l’OWWA/WEAO. Cet outil a été conçu pour être utilisé par les services d’eau et d’eaux usées de l’Ontario, mais il peut être adapté à d’autres juridictions."]
[]
[null,"Versions"]
[null,"N° de version","Date de publication","Description"]
[null,"01","2023-03-10","Première version pour le test bêta"]
[null,"02","2023-04-17","Première publication officielle sur les sites de l’OWWA et de la WEAO"]
[null,"03","2023-09-14","Corrections et mises à jour mineures – changements résumés dans le Guide de l’utilisateur"]
[null,"04","2024-08-01","Ajouts, corrections et mises à jour – changements résumés dans le Guide de l’utilisateur"]
[]
[null,"Avertissement :"]
[null,"Pour utiliser l’outil d’inventaire des GES et le guide de l’utilisateur qui l’accompagne, il faut accepter les conditions suivantes :"]
[null,"1) Toute personne qui télécharge ou utilise ce modèle de quelque manière que ce soit ne peut le vendre ou tirer profit de quelque manière que ce soit de sa vente, de sa distribution ou de son utilisation."]
[null,"2) Ni l’OWWA ni la WEAO ne peuvent être tenues responsables des pertes qui pourraient subvenir directement ou indirectement du fait de l’utilisation de ce modèle.  \nLes personnes qui utilisent ce modèle le font à leurs propres risques."]
[]
[null,"Guide de l’utilisateur"]
[null,"Cet outil est accompagné d’un guide de l’utilisateur à l’adresse suivante owwa.ca/commissions/changement-climatique"]
[null,"Pour toute question ou tout commentaire concernant cet outil, veuillez envoyer un courriel à ghgtool@weaocommittee.org."]
[]
[null,"Légende des onglets de la feuille de calcul : "]
[null,"Ce fichier est organisé comme suit : "]
[]
[null,"▪","Instructions"]
[null,"▪","Références"]
[null,"▪","Entrées  (feuille rouge)"]
[null,null,"Entrées"]
[]
[null,"▪","Bilan (feuille grise)"]
[null,null,"Bilan"]
[]
[null,"▪","Émissions de portée 1 (feuille verte)"]
[null,null,"Portée 1 - Procédés"]
[null,null,"Portée 1 - Combustion"]
[]
[null,"▪","Émissions de portée 2 (feuille turquoise)"]
[null,null,"Portée 2 - Électricité"]
[]
[null,"▪","Émissions de portée 3 (feuille bleue)"]
[null,null,"Portée 3 - Électricité en amont"]
[null,null,"Portée 3 - Carburant en amont"]
[null,null,"Portée 3 - Biosolides"]
[null,null,"Portée 3 - Produits chimiques"]
[]
[null,"Définitions et acronymes:"]
[null,"CO2 = dioxyde de carbone"]
[null,"N2O = oxyde nitreux"]
[null,"CH4 = méthane"]
[null,"CO2éq. = équivalent CO2"]
[null,"Tonnes = tonnes métriques"]
[null,"PRP = potentiel de réchauffement planétaire"]
[null,"CE = coefficient d’émissions"]
[null,"PCS = pouvoir calorifique supérieur"]
[null,"DSM = déchets solides municipaux"]
[null,"GIEC = Groupe d’experts intergouvernemental sur l’évolution du climat"]
[null,"ACV = analyse du cycle de vie"]
[null,"CTCG = du berceau au consommateur"]
[null,"CTC = du berceau à la combustion"]
[null,"TWAS = boues activées épaissies"]

{"sheet":"Références","index":1,"n_rows":20,"n_cols":4,"rows_kept":20,"cut":false,"hidden":false,"merged":[]}
[null,"RÉFÉRENCES"]
[]
[null,"Les « noms courts » ci-dessous sont utilisés dans la feuille Excel pour retracer l’origine des données de la documentation. Les liens sont inclus sur cette page uniquement, pour faciliter les mises à jour futures.  "]
[]
[null,"Nom court","Nom complet","Lien (en anglais)"]
[null,"BEAM 2011","Modèle d’évaluation des émissions associées aux biosolides 2011","https://ccme.ca/fr/res/beam_fr_revised_version_1.1.xls"]
[null,"Guide de l’utilisateur du BEAM 2009","Guide de l’utilisateur du modèle d’évaluation des émissions associées aux biosolides 2011","https://www.ccme.ca/fr/res/meeb_guidef.pdf"]
[null,"Guide valorisation des biosolides 2012","Guide pour la valorisation des biosolides municipaux, des boues municipales et des boues de fosses septiques traitées 2012","https://www.environnement.gouv.qc.ca/matieres/articles/boues-municipales-pol.pdf"]
[null,"BEAM 2022","Biosolids Emissions Assessment Model 2022","https://www.biosolidsghgs.org/"]
[null,"Canada Fuel LCA Model 2024","Base de données du modèle ACV des combustibles du Canada 2024 juin 2024","https://www.canada.ca/fr/environnement-changement-climatique/services/gestion-pollution/modele-analyse-cycle-vie-combustibles.html"]
[null,"Canada Fuel LCA Methodology 2020","Méthodologie du modèle ACV des combustibles du Canada 2020","https://publications.gc.ca/collections/collection_2020/eccc/En4-418-2020-fra.pdf"]
[null,"Canada GHG Requirements 2023","Programme de déclaration des gaz à effet de serre du Canada – Exigences relatives à la quantification 2023","https://publications.gc.ca/collections/collection_2023/eccc/En81-28-2023-fra.pdf"]
[null,"IPCC 2006","Lignes directrices 2006 du GIEC pour les inventaires nationaux de gaz à effet de serre","https://www.ipcc-nggip.iges.or.jp/public/2006gl/french/vol5.html"]
[null,"IPCC 2007","Changements climatiques 2007 : Les éléments scientifiques. Contribution du Groupe de travail I au sixième Rapport d’évaluation du Groupe d’experts intergouvernemental sur l’évolution du climat, 2007","https://www.ipcc.ch/site/assets/uploads/2020/02/ar4-wg1-sum-vol-fr.pdf"]
[null,"IPCC 2013","Changements climatiques 2013 : Les éléments scientifiques. Contribution du Groupe de travail I au sixième Rapport d’évaluation du Groupe d’experts intergouvernemental sur l’évolution du climat, 2013","https://archive.ipcc.ch/pdf/assessment-report/ar5/wg1/WG1AR5_SummaryVolume_FINAL_FRENCH.pdf"]
[null,"IPCC 2019","Révision 2019 de l’édition 2006 des Lignes directrices du GIEC pour les inventaires nationaux de gaz à effet de serre 2019 (disponible en anglais seulement)","https://www.ipcc-nggip.iges.or.jp/public/2019rf/pdf/5_Volume5/19R_V5_6_Ch06_Wastewater.pdf"]
[null,"IPCC 2021","Changement climatique 2021 : Les bases scientifiques physiques. Contribution du Groupe de travail I au sixième Rapport d’évaluation du Groupe d’experts intergouvernemental sur l’évolution du climat, 2021","https://www.ipcc.ch/report/ar6/wg1/downloads/report/IPCC_AR6_WG1_SPM_French.pdf"]
[null,"MECP ON.20 2019","Ontario Ministry of the Environment and Climate Change- Guideline for Greenhouse Gas Reporting 2019, Appendix 10 - ON.20 General Stationary Combustion ","https://prod-environmental-registry.s3.amazonaws.com/2019-04/Guideline%20for%20QRV%20of%20GHG%20Emissions%20April%202019%20Final%20Clean_0.pdf"]
[null,"NIR 2024","Rapport d’inventaire national du Canada 1990-2022","https://publications.gc.ca/site/eng/9.502402/publication.html"]
[null,"US EPA AP-42","US EPA AP-42: Compilation of Air Emissions Factors","https://www3.epa.gov/ttnchie1/ap42/ch13/final/c13s05.pdf"]

{"sheet":"Entrées","index":2,"n_rows":307,"n_cols":32,"rows_kept":307,"cut":false,"hidden":false,"merged":[[241,1,242,1],[241,2,242,2],[237,2,238,2],[15,9,15,12],[15,4,15,7],[237,1,238,1],[94,4,94,6],[208,5,208,7],[23,1,24,1],[23,2,24,2],[11,3,11,5],[10,3,10,5],[9,3,9,5],[287,6,287,11],[288,6,288,11],[289,6,289,11],[290,6,290,11],[291,6,291,11],[292,6,292,11],[293,6,293,11],[294,6,294,11],[295,6,295,11],[296,6,296,11],[297,6,297,11],[298,6,298,11],[304,6,304,11],[305,6,305,11],[306,6,306,11],[299,6,299,11],[300,6,300,11],[301,6,301,11],[302,6,302,11],[303,6,303,11]]}
[null,"Inventaire des émissions de GES – Entrées ",null,null,null,null,null,null,null,null,null,null,null,null,null,null,null,null,"NE PAS SUPPRIMER OU MODIFIER LES CELLULES DANS LES COLONNES AU-DELÀ DE LA COLONNE ROUGE. ELLES SONT UTILISÉES COMME CALCULS INTERNES POUR LE FORMATAGE ET LES LISTES."]
[null,null,null,null,null,null,null,null,null,null,null,null,null,null,null,null,null,null,"LES COLONNES AU-DELÀ DE LA COLONNE ROUGE NE DOIVENT PAS ÊTRE IMPRIMÉES POUR LES SORTIES."]
[null,"LÉGENDE"]
[null,"Données spécifiques aux services publics"]
[null,"Valeur adoptée par le service public"]
[null,"Entrée par défaut, plage type ou valeur adaptée de la documentation"]
[null,"Rendement calculé sur la base de données spécifiques aux services publics"]
[]
[null,"DONNÉES SPÉCIFIQUES AUX SERVICES PUBLICS"]
[null,"Nom du service public"]
[null,"Période d’inventaire"]
[null,"Population desservie"]
[]
[]
[null,"RENSEIGNEMENTS GÉNÉRAUX SUR LES SERVICES PUBLICS",null,"Unités","Valeur de l’entrée"]
[null,"Type d’installation/système",null,null,"TRAITEMENT DES EAUX USÉES",null,null,null,"COLLECTE DES EAUX USÉES","APPROVISIONNEMENT EN EAU",null,null,null,"DISTRIBUTION D’EAU","SYSTÈMES DE SOUTIEN","RÉFÉRENCE GÉNÉRIQUE","NOTES DE L'UTILISATEUR"]
[null,"Nom de l’installation/système",null,null,"STEU1","STEU2","STEU3","STEU4","Collecte","STE1","STE2","STE3","STE4","Distribution","Inst. sout."]
[]
[null,"INFO INST. EAU",null,null,null,null,null,null,null,"STE1","STE2","STE3","STE4"]
[null,null,"Débit journalier moyen annuel","m3/jour"]
[]
[null,"INFO INST. EAUX USÉES",null,null,{"$f":"IF(WWTP1=\"\",\"\",WWTP1)","v":"STEU1"},{"$f":"IF(WWTP2=\"\",\"\",WWTP2)","v":"STEU2"},{"$f":"IF(WWTP3=\"\",\"\",WWTP3)","v":"STEU3"},{"$f":"IF(WWTP4=\"\",\"\",WWTP4)","v":"STEU4"}]
[null,"F in","Débit moyen annuel de l’influent de la station","m3/jour"]
[null,"F bypass","Moyenne annuelle du débit de dérivation du traitement secondaire","m3/an"]
[null,null,null,"m3/jour",{"$f":"E24/365","v":0},{"$f":"F24/365","v":0},0,0]
[null,"FEff","Moyenne annuelle du débit de l’effluent du traitement secondaire","m3/jour"]
[null,"Flag,ANA,in","Volume annuel dans les étangs anaérobies","m3/an"]
[null,"Flag,AERin","Volume annuel dans les étangs aérobies/aérés","m3/an"]
[null,"Flag,FAC,in","Volume annuel dans les étangs facultatives ou non spécifiées","m3/an"]
[]
[null,"PORTÉE 1 – ÉMISSIONS DE MÉTHANE ET D’OXYDE NITREUX PROVENANT DES EAUX USÉES DOMESTIQUES",null,null,{"$f":"IF(WWTP1=\"\",\"\",WWTP1)","v":"STEU1"},{"$f":"IF(WWTP2=\"\",\"\",WWTP2)","v":"STEU2"},{"$f":"IF(WWTP3=\"\",\"\",WWTP3)","v":"STEU3"},{"$f":"IF(WWTP4=\"\",\"\",WWTP4)","v":"STEU4"},"Entrée par défaut"]
[null,"C BOD in","Concentration de demande biochimique en oxygène (DBO5 dans les formules) dans l’influent de l’usine","mgDBO/L"]
[null,"C BOD eff,prim","Concentration de DBO5 dans l’influent secondaire","mgDBO/L"]
[null,"C BOD eff","Concentration de DBO5 dans l’effluent secondaire","mgDBO/L"]
[null,"C BOD bypass","Concentration de DBO5 de dérivation secondaire","mgDBO/L"]
[null,"C BOD lag,ANA,in","Concentration de DBO5 dans l’influent d'étangs secondaires","mgDBO/L"]
[null,"C BOD lag,ANA,eff","Concentration de DBO5 dans l’effluent d'étangs anaérobies","mgDBO/L"]
[null,"C BOD lag,AER,in","Concentration de DBO5 dans l’influent d'étangs aérobies/aérés secondaires","mgDBO/L"]
[null,"C BOD lag,AER,eff","Concentration de DBO5 dans l’effluent d'étangs aérobies/aérés","mgDBO/L"]
[null,"C BOD lag,FAC,in","Concentration de DBO5 dans l’influent d'étangs facultatives ou non spécifiées","mgDBO/L"]
[null,"C BOD lag,FAC,eff","Concentration de DBO5 dans l’effluent d'étangs facultatives ou non spécifiées","mgDBO/L"]
[null,null,"Boues primaires à la digestion ","m3/jour"]
[null,null,"Boues activées épaissies (TWAS) à la digestion","m3/jour"]
[null,null,"Concentration totale de solides dans les boues primaires","%"]
[null,null,"Concentration totale de solides volatiles dans les boues primaires","%"]
[null,null,"Concentration totale de solides dans les TWAS","%"]
[null,null,"Concentration totale de solides volatiles dans les TWAS","%"]
[null,"Smass_PS","Masse sèche des boues primaires à la digestion","kg de boues sèches/an",{"$f":"+(E42*E44*1000)*365","v":0},{"$f":"+(F42*F44*1000)*365","v":0},0,0]
[null,null,"Masse sèche de solides volatils primaires à la digestion","kg de boues sèches/an",{"$f":"+E48*E45","v":0},{"$f":"+F48*F45","v":0},{"$f":"+G48*G45","v":0},{"$f":"+H48*H45","v":0}]
[null,"Smass_WAS","Masse sèche des boues secondaires à la digestion","kg de boues sèches/an",{"$f":"+(E43*E46*1000)*1*365","v":0},{"$f":"+(F43*F46*1000)*1*365","v":0},0,0]
[null,null,"Masse sèche de solides volatils secondaires à la digestion","kg de boues sèches/an",{"$f":"+E50*E47","v":0},{"$f":"+F50*F47","v":0},0,0]
[]
[null,"C N in","Concentration moyenne d’azote total dans l’inffluent d’eaux usées","mgN/L"]
[null,"C N eff_treat","Concentration moyenne d’azote total dans l’effluent du traitement secondaire","mgN/L"]
[null,"C N eff_bypass","Concentration moyenne d’azote total dans la dérivation du traitement secondaire","mgN/L"]
[null,"erem,prim","Pourcentage d’enlèvement de DBO5 du traitement primaire","% DBO retirée",{"$f":"$I$56","v":0.33},{"$f":"$I$56","v":0.33},0.33,0.33,0.33,null,null,null,null,null,null,"Metcalf & Eddy, Wastewater Engineering, Treatment and Reuse, 4th Edition, 2003"]
[null,"erem,sec","Pourcentage d’enlèvement de DBO5 du traitement secondaire","% DBO retirée",{"$f":"IF(ISNUMBER(E33),(E33-E34)/E33,$I$57)","v":0.95},{"$f":"IF(ISNUMBER(F33),(F33-F34)/F33,$I$57)","v":0.95},{"$f":"IF(ISNUMBER(G33),(G33-G34)/G33,$I$57)","v":0.95},{"$f":"IF(ISNUMBER(H33),(H33-H34)/H33,$I$57)","v":0.95},0.95,null,null,null,null,null,null,"NIR2024, Partie 2, Tableau A3.6-14",null,null,null,null,"Type de rejet d'effluent"]
[null,"erem,lag,ANA","Pourcentage d’enlèvement de DBO5 dans le traitement d'étangs anaérobies","% DBO retirée",{"$f":"IF(ISNUMBER(E37),(E36-E37)/E36,$I$58)","v":0.85},{"$f":"IF(ISNUMBER(F37),(F36-F37)/F36,$I$58)","v":0.85},{"$f":"IF(ISNUMBER(G37),(G36-G37)/G36,$I$58)","v":0.85},{"$f":"IF(ISNUMBER(H37),(H36-H37)/H36,$I$58)","v":0.85},0.85,null,null,null,null,null,null,"NIR2024, Partie 2, Tableau A3.6-14",null,null,null,null,"Type de rejet d'effluent"]
[null,"erem,lag,AER","Pourcentage d’enlèvement de DBO5 dans le traitement d'étangs aérobies/aérés","% DBO retirée",{"$f":"IF(ISNUMBER(E39),(E38-E39)/E38,$I$58)","v":0.85},{"$f":"IF(ISNUMBER(F39),(F38-F39)/F38,$I$58)","v":0.85},{"$f":"IF(ISNUMBER(G39),(G38-G39)/G38,$I$58)","v":0.85},{"$f":"IF(ISNUMBER(H39),(H38-H39)/H38,$I$58)","v":0.85},0.85,null,null,null,null,null,null,"NIR2024, Partie 2, Tableau A3.6-14",null,null,null,null,"Type de rejet d'effluent"]
[null,"erem,lag,FAC","Pourcentage d’enlèvement de DBO5 dans le traitement d'étangs facultatives ou non spécifiées","% DBO retirée",{"$f":"IF(ISNUMBER(E41),(E40-E41)/E40,$I$58)","v":0.85},{"$f":"IF(ISNUMBER(F41),(F40-F41)/F40,$I$58)","v":0.85},{"$f":"IF(ISNUMBER(G41),(G40-G41)/G40,$I$58)","v":0.85},{"$f":"IF(ISNUMBER(H41),(H40-H41)/H40,$I$58)","v":0.85},0.85,null,null,null,null,null,null,"NIR2024, Partie 2, Tableau A3.6-14",null,null,null,null,"Type de rejet d'effluent"]
[null,null,"Type de rejet d’effluents","–","Inconnu","Inconnu","Inconnu","Inconnu",null,null,null,null,null,null,null,null,null,null,null,null,"Inconnu"]
[null,null,null,null,null,null,null,null,null,null,null,null,null,null,null,null,null,null,null,null,"Rivières/criques"]
[null,"PORTÉE 1 – GAZ DE DIGESTEUR",null,null,{"$f":"IF(WWTP1=\"\",\"\",WWTP1)","v":"STEU1"},{"$f":"IF(WWTP2=\"\",\"\",WWTP2)","v":"STEU2"},{"$f":"IF(WWTP3=\"\",\"\",WWTP3)","v":"STEU3"},{"$f":"IF(WWTP4=\"\",\"\",WWTP4)","v":"STEU4"},null,null,null,null,null,null,null,null,null,null,null,null,"Lacs/réservoirs"]
[null,"VDG","Volume journalier moyen annuel de gaz de digesteur (mesuré)","m3/jour"]
[null,"dboiler","Gaz de digesteur brûlé dans des chaudières (% du volume annuel)","%"]
[null,"dcogen","Gaz de digesteur brûlé dans des dispositifs de cogénération (% du volume annuel)","%"]
[null,"dflare","Gaz de digesteur brûlé à la torche (% du volume annuel)","%",{"$f":"1-E65-E66","v":1},{"$f":"1-F65-F66","v":1},1,1]
[null,"CCH4","Concentration de CH4 dans le gaz de digesteur","%",0.65,0.65,0.65,0.65,"60%-70%",null,null,null,null,null,null,"Metcalf & Eddy, Wastewater Engineering, Treatment and Reuse, 4th Edition, 2003 and professional judgement"]
[null,"CCH4","Concentration de CH4 dans le gaz de digesteur","kgCH4/L",{"$f":"(E68*$E$217)/1000","v":4.2835000000000003E-4},{"$f":"(F68*$E$217)/1000","v":4.2835000000000003E-4},{"$f":"(G68*$E$217)/1000","v":4.2835000000000003E-4},{"$f":"(H68*$E$217)/1000","v":4.2835000000000003E-4}]
[null,"p","Pourcentage d’émissions fugitives du digesteur","%",2.1000000000000001E-2,2.1000000000000001E-2,2.1000000000000001E-2,2.1000000000000001E-2,"0-10%",null,null,null,null,null,null,"NIR2024, Partie 2, section A3.6.2.2.1"]
[]
[null,"PORTÉE 1 – INCINÉRATION DES BOUES",null,null,{"$f":"IF(WWTP1=\"\",\"\",WWTP1)","v":"STEU1"},{"$f":"IF(WWTP2=\"\",\"\",WWTP2)","v":"STEU2"},{"$f":"IF(WWTP3=\"\",\"\",WWTP3)","v":"STEU3"},{"$f":"IF(WWTP4=\"\",\"\",WWTP4)","v":"STEU4"}]
[null,null,"Quantité de biosolides secs incinérés","t bouessèches/an"]
[null,null,"Pourcentage du total des solides de gâteau de biosolides","%"]
[null,null,"Quantité de biosolides humides incinérés","tboueshumides/an",{"$f":"IF(OR(E74=\"\",E73=\"\"),\"\",E73/E74)","v":""},{"$f":"IF(OR(F74=\"\",F73=\"\"),\"\",F73/F74)","v":""},"",""]
[]
[null,"PORTÉE 1 – COMBUSTION DU CARBURANT",null,null,{"$f":"IF(WWTP1=\"\",\"\",WWTP1)","v":"STEU1"},{"$f":"IF(WWTP2=\"\",\"\",WWTP2)","v":"STEU2"},{"$f":"IF(WWTP3=\"\",\"\",WWTP3)","v":"STEU3"},{"$f":"IF(WWTP4=\"\",\"\",WWTP4)","v":"STEU4"},{"$f":"IF(WWCollection=\"\",\"\",WWCollection)","v":"Collecte"},{"$f":"IF(WTP1_=\"\",\"\",WTP1_)","v":"STE1"},{"$f":"IF(WTP2_=\"\",\"\",WTP2_)","v":"STE2"},{"$f":"IF(WTP3_=\"\",\"\",WTP3_)","v":"STE3"},{"$f":"IF(WTP4_=\"\",\"\",WTP4_)","v":"STE4"},{"$f":"IF(WDistr=\"\",\"\",WDistr)","v":"Distribution"},{"$f":"IF(SuppFac=\"\",\"\",SuppFac)","v":"Inst. sout."},null,"Notes de l'utilisateur"]
[null,"VNG","Consommation annuelle de gaz naturel","m3/an"]
[null,"VLFO","Consommation annuelle de mazout léger (n° 2)","L/an"]
[null,"Vfacility, diesel","Volume de diesel livré à l’installation","L/an"]
[null,"Vfacility, propane","Volume de propane livré à l’installation","L/an"]
[]
[null,"PORTÉE 1 – ÉMISSIONS DE LA COMBUSTION DE LA FLOTTE DE VÉHICULES"]
[null,"Vfleet, diesel","Consommation annuelle de diesel flotte de véhicules","L/an"]
[null,"Vfleet, gasoline","Consommation annuelle d’essence flotte de véhicules","L/an"]
[null,"Vfleet, biodiesel","Consommation annuelle de biodiesel flotte de véhicules","L/an"]
[]
[null,"PORTÉE 2 – CONSOMMATION D’ÉLECTRICITÉ SUR PLACE DANS CHAQUE INSTALLATION",null,null,{"$f":"IF(WWTP1=\"\",\"\",WWTP1)","v":"STEU1"},{"$f":"IF(WWTP2=\"\",\"\",WWTP2)","v":"STEU2"},{"$f":"IF(WWTP3=\"\",\"\",WWTP3)","v":"STEU3"},{"$f":"IF(WWTP4=\"\",\"\",WWTP4)","v":"STEU4"},{"$f":"IF(WWCollection=\"\",\"\",WWCollection)","v":"Collecte"},{"$f":"IF(WTP1_=\"\",\"\",WTP1_)","v":"STE1"},{"$f":"IF(WTP2_=\"\",\"\",WTP2_)","v":"STE2"},{"$f":"IF(WTP3_=\"\",\"\",WTP3_)","v":"STE3"},{"$f":"IF(WTP4_=\"\",\"\",WTP4_)","v":"STE4"},{"$f":"IF(WDistr=\"\",\"\",WDistr)","v":"Distribution"},{"$f":"IF(SuppFac=\"\",\"\",SuppFac)","v":"Inst. sout."}]
[null,"Velec","Consommation annuelle d’électricité","kWh/an"]
[]
[null,"PORTÉE 3 – GESTION DES BIOSOLIDES (BEAM)"]
[null,"Remarque :  Cet outil a été conçu pour accepter les données des modèles d’évaluation des émissions associées aux biosolides (BEAM) largement adoptés (BEAM 2011 ou BEAM 2022) pour les émissions liées à la gestion des biosolides.  Veuillez consulter le guide de l’utilisateur pour obtenir des renseignements et des conseils plus détaillés.  Les liens BEAM se trouvent dans l’onglet « Références »."]
[null,"Ne saisissez les données BEAM que dans la zone de saisie correspondant à l’approche d’inventaire que vous avez choisie. Par exemple, si vous choisissez BEAM 2022 dans la liste déroulante ci-dessous, ne saisissez des données que dans la zone de saisie BEAM 2022 ci-dessous. L’autre zone d’entrée peut être ignorée."]
[null,null,null,null,null,null,null,null,null,null,null,null,null,null,null,null,null,null,null,"BEAM 2011","Copiez et collez les valeurs de l’onglet « Entrées DETE - Totaux CO2 éq. », colonne H intitulée « Total », lignes 25 à 30 pour chaque scénario BEAM correspondant à chaque STEU."]
[null,null,"Choisir une méthode d’inventaire pour les biosolides",null,"BEAM 2011",null,null,"Voir les notes importantes dans le guide de l’utilisateur sur le maintien de la cohérence des PRP entre BEAM et cet outil d’inventaire.",null,null,null,null,null,null,null,null,null,null,null,"BEAM 2022","Copier et coller les valeurs de l’onglet « Entrées DSM et Résultats », lignes 26 à 38 pour chaque scénario BEAM correspondant à chaque STEU."]
[null,null,null,null,null,null,null,null,null,null,null,null,null,null,null,null,null,null,null,"Ne pas inclure"]
[null,null,"BEAM 2011",null,{"$f":"U94","v":"Copiez et collez les valeurs de l’onglet « Entrées DETE - Totaux CO2 éq. », colonne H intitulée « Total », lignes 25 à 30 pour chaque scénario BEAM correspondant à chaque STEU."},null,null,null,null,null,null,null,null,null,null,null,null,null,null,{"$f":"IF(T94=E95,TRUE())","v":true}]
[null,null,"Unité de procédé",null,{"$f":"IF(WWTP1=\"\",\"\",WWTP1)","v":"STEU1"},{"$f":"IF(WWTP2=\"\",\"\",WWTP2)","v":"STEU2"},{"$f":"IF(WWTP3=\"\",\"\",WWTP3)","v":"STEU3"},{"$f":"IF(WWTP4=\"\",\"\",WWTP4)","v":"STEU4"}]
[null,null,"Stabilisation alcaline","MgCO2éq./an"]
[null,null,"Compostage","MgCO2éq./an"]
[null,null,"Enfouissement","MgCO2éq./an"]
[null,null,"Combustion","MgCO2éq./an"]
[null,null,"Épandage","MgCO2éq./an"]
[null,null,"Transport","MgCO2éq./an"]
[]
[null,null,"BEAM 2022",null,{"$f":"U95","v":"Copier et coller les valeurs de l’onglet « Entrées DSM et Résultats », lignes 26 à 38 pour chaque scénario BEAM correspondant à chaque STEU."},null,null,null,null,null,null,null,null,null,null,null,null,null,null,{"$f":"IF(T95=E95,TRUE())","v":false}]
[null,null,"Unité de procédé",null,{"$f":"IF(WWTP1=\"\",\"\",WWTP1)","v":"STEU1"},{"$f":"IF(WWTP2=\"\",\"\",WWTP2)","v":"STEU2"},{"$f":"IF(WWTP3=\"\",\"\",WWTP3)","v":"STEU3"},{"$f":"IF(WWTP4=\"\",\"\",WWTP4)","v":"STEU4"}]
[null,null,"Stabilisation alcaline","MgCO2éq./an"]
[null,null,"Compostage","MgCO2éq./an"]
[null,null,"Compostage 2","MgCO2éq./an"]
[null,null,"Enfouissement – Typique","MgCO2éq./an"]
[null,null,"Enfouissement – Pire cas","MgCO2éq./an"]
[null,null,"Enfouissement – Important","MgCO2éq./an"]
[null,null,"Élimination des déchets – Réglementation CA","MgCO2éq./an"]
[null,null,"Combustion","MgCO2éq./an"]
[null,null,"Pyrolyse","MgCO2éq./an"]
[null,null,"Épandage","MgCO2éq./an"]
[null,null,"Épandage 2","MgCO2éq./an"]
[null,null,"Émissions diverses","MgCO2éq./an"]
[null,null,"Transport","MgCO2éq./an"]
[]
[null,"PORTÉE 3 – CONSOMMATION DE PRODUITS CHIMIQUES DANS CHAQUE INSTALLATION"]
[null,"Mchem","Masse annuelle de produits chimiques consommés ",null,{"$f":"IF(WWTP1=\"\",\"\",WWTP1)","v":"STEU1"},{"$f":"IF(WWTP2=\"\",\"\",WWTP2)","v":"STEU2"},{"$f":"IF(WWTP3=\"\",\"\",WWTP3)","v":"STEU3"},{"$f":"IF(WWTP4=\"\",\"\",WWTP4)","v":"STEU4"},{"$f":"IF(WWCollection=\"\",\"\",WWCollection)","v":"Collecte"},{"$f":"IF(WTP1_=\"\",\"\",WTP1_)","v":"STE1"},{"$f":"IF(WTP2_=\"\",\"\",WTP2_)","v":"STE2"},{"$f":"IF(WTP3_=\"\",\"\",WTP3_)","v":"STE3"},{"$f":"IF(WTP4_=\"\",\"\",WTP4_)","v":"STE4"},{"$f":"IF(WDistr=\"\",\"\",WDistr)","v":"Distribution"},{"$f":"IF(SuppFac=\"\",\"\",SuppFac)","v":"Inst. sout."},null,"Notes de l'utilisateur"]
[null,null,"Produit chimique 1","kg/an",null,null,null,null,null,null,null,null,null,null,null,null,null,null,null,{"$f":"IF(SUM(E124:O124)>0,TRUE())","v":false},null,{"$f":"IF(E124>0,TRUE())","v":false},{"$f":"IF(F124>0,TRUE())","v":false},{"$f":"IF(G124>0,TRUE())","v":false},{"$f":"IF(H124>0,TRUE())","v":false},{"$f":"IF(I124>0,TRUE())","v":false},false,false,false,false,false,false]
[null,null,"Produit chimique 2","kg/an",null,null,null,null,null,null,null,null,null,null,null,null,null,null,null,false,null,false,false,false,false,{"$f":"IF(I125>0,TRUE())","v":false},{"$f":"IF(J125>0,TRUE())","v":false},{"$f":"IF(K125>0,TRUE())","v":false},{"$f":"IF(L125>0,TRUE())","v":false},{"$f":"IF(M125>0,TRUE())","v":false},{"$f":"IF(N125>0,TRUE())","v":false},{"$f":"IF(O125>0,TRUE())","v":false}]
[null,null,"Produit chimique 3","kg/an",null,null,null,null,null,null,null,null,null,null,null,null,null,null,null,false,null,false,false,false,false,false,false,false,false,false,false,false]
[null,null,"Produit chimique 4","kg/an",null,null,null,null,null,null,null,null,null,null,null,null,null,null,null,false,null,false,false,false,false,false,false,false,false,false,false,false]
[null,null,"Produit chimique 5","kg/an",null,null,null,null,null,null,null,null,null,null,null,null,null,null,null,false,null,false,false,false,false,false,false,false,false,false,false,false]
[null,null,"Produit chimique 6","kg/an",null,null,null,null,null,null,null,null,null,null,null,null,null,null,null,false,null,false,false,false,false,false,false,false,false,false,false,false]
[null,null,"Produit chimique 7","kg/an",null,null,null,null,null,null,null,null,null,null,null,null,null,null,null,false,null,false,false,false,false,false,false,false,false,false,false,false]
[null,null,"Produit chimique 8","kg/an",null,null,null,null,null,null,null,null,null,null,null,null,null,null,null,false,null,false,false,false,false,false,false,false,false,false,false,false]
[null,null,"Produit chimique 9","kg/an",null,null,null,null,null,null,null,null,null,null,null,null,null,null,null,false,null,false,false,false,false,false,false,false,false,false,false,false]
[null,null,"Produit chimique 10","kg/an",null,null,null,null,null,null,null,null,null,null,null,null,null,null,null,false,null,false,false,false,false,false,false,false,false,false,false,false]
[null,null,"Produit chimique 11","kg/an",null,null,null,null,null,null,null,null,null,null,null,null,null,null,null,false,null,false,false,false,false,false,false,false,false,false,false,false]
[null,null,"Produit chimique 12","kg/an",null,null,null,null,null,null,null,null,null,null,null,null,null,null,null,false,null,false,false,false,false,false,false,false,false,false,false,false]
[null,null,"Produit chimique 13","kg/an",null,null,null,null,null,null,null,null,null,null,null,null,null,null,null,false,null,false,false,false,false,false,false,false,false,false,false,false]
[null,null,"Produit chimique 14","kg/an",null,null,null,null,null,null,null,null,null,null,null,null,null,null,null,false,null,false,false,false,false,false,false,false,false,false,false,false]
[null,null,"Produit chimique 15","kg/an",null,null,null,null,null,null,null,null,null,null,null,null,null,null,null,false,null,false,false,false,false,false,false,false,false,false,false,false]
[null,null,"Produit chimique 16","kg/an",null,null,null,null,null,null,null,null,null,null,null,null,null,null,null,false,null,false,false,false,false,false,false,false,false,false,false,false]
[null,null,"Produit chimique 17","kg/an",null,null,null,null,null,null,null,null,null,null,null,null,null,null,null,false,null,false,false,false,false,{"$f":"IF(I140>0,TRUE())","v":false},{"$f":"IF(J140>0,TRUE())","v":false},{"$f":"IF(K140>0,TRUE())","v":false},{"$f":"IF(L140>0,TRUE())","v":false},{"$f":"IF(M140>0,TRUE())","v":false},{"$f":"IF(N140>0,TRUE())","v":false},false]
[null,null,"Produit chimique 18","kg/an",null,null,null,null,null,null,null,null,null,null,null,null,null,null,null,false,null,false,false,false,false,false,false,false,false,false,false,false]
[null,null,"Produit chimique 19","kg/an",null,null,null,null,null,null,null,null,null,null,null,null,null,null,null,false,null,false,false,false,false,false,false,false,false,false,false,false]
[null,null,"Produit chimique 20","kg/an",null,null,null,null,null,null,null,null,null,null,null,null,null,null,null,false,null,false,false,false,false,false,false,false,false,false,false,false]
[null,"Dtruck","Distance parcourue par le camion entre le fournisseur et le site (trajet aller-retour)",null,{"$f":"IF(WWTP1=\"\",\"\",WWTP1)","v":"STEU1"},{"$f":"IF(WWTP2=\"\",\"\",WWTP2)","v":"STEU2"},{"$f":"IF(WWTP3=\"\",\"\",WWTP3)","v":"STEU3"},{"$f":"IF(WWTP4=\"\",\"\",WWTP4)","v":"STEU4"},{"$f":"IF(WWCollection=\"\",\"\",WWCollection)","v":"Collecte"},{"$f":"IF(WTP1_=\"\",\"\",WTP1_)","v":"STE1"},{"$f":"IF(WTP2_=\"\",\"\",WTP2_)","v":"STE2"},{"$f":"IF(WTP3_=\"\",\"\",WTP3_)","v":"STE3"},{"$f":"IF(WTP4_=\"\",\"\",WTP4_)","v":"STE4"},{"$f":"IF(WDistr=\"\",\"\",WDistr)","v":"Distribution"},{"$f":"IF(SuppFac=\"\",\"\",SuppFac)","v":"Inst. sout."},null,"Notes de l'utilisateur",null,null,{"$f":"TRUE","v":true},{"$f":"TRUE","v":true}]
[null,null,{"$f":"C124","v":"Produit chimique 1"},"km",null,null,null,null,null,null,null,null,null,null,null,null,null,null,null,{"$f":"T124","v":false},{"$f":"IF(SUM(E145:O145)>0,TRUE())","v":false}]
[null,null,"Produit chimique 2","km",null,null,null,null,null,null,null,null,null,null,null,null,null,null,null,{"$f":"T125","v":false},false]
[null,null,"Produit chimique 3","km",null,null,null,null,null,null,null,null,null,null,null,null,null,null,null,false,false]
[null,null,"Produit chimique 4","km",null,null,null,null,null,null,null,null,null,null,null,null,null,null,null,false,false]
[null,null,"Produit chimique 5","km",null,null,null,null,null,null,null,null,null,null,null,null,null,null,null,false,false]
[null,null,"Produit chimique 6","km",null,null,null,null,null,null,null,null,null,null,null,null,null,null,null,false,false]
[null,null,"Produit chimique 7","km",null,null,null,null,null,null,null,null,null,null,null,null,null,null,null,false,false]
[null,null,"Produit chimique 8","km",null,null,null,null,null,null,null,null,null,null,null,null,null,null,null,false,false]
[null,null,"Produit chimique 9","km",null,null,null,null,null,null,null,null,null,null,null,null,null,null,null,false,false]
[null,null,"Produit chimique 10","km",null,null,null,null,null,null,null,null,null,null,null,null,null,null,null,false,false]
[null,null,"Produit chimique 11","km",null,null,null,null,null,null,null,null,null,null,null,null,null,null,null,false,false]
[null,null,"Produit chimique 12","km",null,null,null,null,null,null,null,null,null,null,null,null,null,null,null,false,false]
[null,null,"Produit chimique 13","km",null,null,null,null,null,null,null,null,null,null,null,null,null,null,null,false,false]
[null,null,"Produit chimique 14","km",null,null,null,null,null,null,null,null,null,null,null,null,null,null,null,false,false]
[null,null,"Produit chimique 15","km",null,null,null,null,null,null,null,null,null,null,null,null,null,null,null,false,false]
[null,null,"Produit chimique 16","km",null,null,null,null,null,null,null,null,null,null,null,null,null,null,null,false,false]
[null,null,"Produit chimique 17","km",null,null,null,null,null,null,null,null,null,null,null,null,null,null,null,false,false]
[null,null,"Produit chimique 18","km",null,null,null,null,null,null,null,null,null,null,null,null,null,null,null,false,false]
[null,null,"Produit chimique 19","km",null,null,null,null,null,null,null,null,null,null,null,null,null,null,null,false,false]
[null,null,"Produit chimique 20","km",null,null,null,null,null,null,null,null,null,null,null,null,null,null,null,false,false]
[null,"Dtrain","Distance parcourue par le train entre le fournisseur et le site (trajet aller-retour)",null,{"$f":"IF(WWTP1=\"\",\"\",WWTP1)","v":"STEU1"},{"$f":"IF(WWTP2=\"\",\"\",WWTP2)","v":"STEU2"},{"$f":"IF(WWTP3=\"\",\"\",WWTP3)","v":"STEU3"},{"$f":"IF(WWTP4=\"\",\"\",WWTP4)","v":"STEU4"},{"$f":"IF(WWCollection=\"\",\"\",WWCollection)","v":"Collecte"},{"$f":"IF(WTP1_=\"\",\"\",WTP1_)","v":"STE1"},{"$f":"IF(WTP2_=\"\",\"\",WTP2_)","v":"STE2"},{"$f":"IF(WTP3_=\"\",\"\",WTP3_)","v":"STE3"},{"$f":"IF(WTP4_=\"\",\"\",WTP4_)","v":"STE4"},{"$f":"IF(WDistr=\"\",\"\",WDistr)","v":"Distribution"},{"$f":"IF(SuppFac=\"\",\"\",SuppFac)","v":"Inst. sout."},null,"Notes de l'utilisateur",null,null,{"$f":"TRUE","v":true},{"$f":"TRUE","v":true}]
[null,null,{"$f":"C124","v":"Produit chimique 1"},"km",null,null,null,null,null,null,null,null,null,null,null,null,null,null,null,{"$f":"T124","v":false},{"$f":"IF(SUM(E166:O166)>0,TRUE())","v":false}]
[null,null,"Produit chimique 2","km",null,null,null,null,null,null,null,null,null,null,null,null,null,null,null,{"$f":"T125","v":false},false]
[null,null,"Produit chimique 3","km",null,null,null,null,null,null,null,null,null,null,null,null,null,null,null,false,false]
[null,null,"Produit chimique 4","km",null,null,null,null,null,null,null,null,null,null,null,null,null,null,null,false,false]
[null,null,"Produit chimique 5","km",null,null,null,null,null,null,null,null,null,null,null,null,null,null,null,false,false]
[null,null,"Produit chimique 6","km",null,null,null,null,null,null,null,null,null,null,null,null,null,null,null,false,false]
[null,null,"Produit chimique 7","km",null,null,null,null,null,null,null,null,null,null,null,null,null,null,null,false,false]
[null,null,"Produit chimique 8","km",null,null,null,null,null,null,null,null,null,null,null,null,null,null,null,false,false]
[null,null,"Produit chimique 9","km",null,null,null,null,null,null,null,null,null,null,null,null,null,null,null,false,false]
[null,null,"Produit chimique 10","km",null,null,null,null,null,null,null,null,null,null,null,null,null,null,null,false,false]
[null,null,"Produit chimique 11","km",null,null,null,null,null,null,null,null,null,null,null,null,null,null,null,false,false]
[null,null,"Produit chimique 12","km",null,null,null,null,null,null,null,null,null,null,null,null,null,null,null,false,false]
[null,null,"Produit chimique 13","km",null,null,null,null,null,null,null,null,null,null,null,null,null,null,null,false,false]
[null,null,"Produit chimique 14","km",null,null,null,null,null,null,null,null,null,null,null,null,null,null,null,false,false]
[null,null,"Produit chimique 15","km",null,null,null,null,null,null,null,null,null,null,null,null,null,null,null,false,false]
[null,null,"Produit chimique 16","km",null,null,null,null,null,null,null,null,null,null,null,null,null,null,null,false,false]
[null,null,"Produit chimique 17","km",null,null,null,null,null,null,null,null,null,null,null,null,null,null,null,false,false]
[null,null,"Produit chimique 18","km",null,null,null,null,null,null,null,null,null,null,null,null,null,null,null,false,false]
[null,null,"Produit chimique 19","km",null,null,null,null,null,null,null,null,null,null,null,null,null,null,null,false,false]
[null,null,"Produit chimique 20","km",null,null,null,null,null,null,null,null,null,null,null,null,null,null,null,false,false]
[null,"Dsea","Distance parcourue par fret maritime entre le fournisseur et le site (trajet aller-retour)",null,{"$f":"IF(WWTP1=\"\",\"\",WWTP1)","v":"STEU1"},{"$f":"IF(WWTP2=\"\",\"\",WWTP2)","v":"STEU2"},{"$f":"IF(WWTP3=\"\",\"\",WWTP3)","v":"STEU3"},{"$f":"IF(WWTP4=\"\",\"\",WWTP4)","v":"STEU4"},{"$f":"IF(WWCollection=\"\",\"\",WWCollection)","v":"Collecte"},{"$f":"IF(WTP1_=\"\",\"\",WTP1_)","v":"STE1"},{"$f":"IF(WTP2_=\"\",\"\",WTP2_)","v":"STE2"},{"$f":"IF(WTP3_=\"\",\"\",WTP3_)","v":"STE3"},{"$f":"IF(WTP4_=\"\",\"\",WTP4_)","v":"STE4"},{"$f":"IF(WDistr=\"\",\"\",WDistr)","v":"Distribution"},{"$f":"IF(SuppFac=\"\",\"\",SuppFac)","v":"Inst. sout."},null,"Notes de l'utilisateur",null,null,{"$f":"TRUE","v":true},{"$f":"TRUE","v":true}]
[null,null,{"$f":"C124","v":"Produit chimique 1"},"km",null,null,null,null,null,null,null,null,null,null,null,null,null,null,null,{"$f":"T124","v":false},{"$f":"IF(SUM(E187:O187)>0,TRUE())","v":false}]
[null,null,{"$f":"C125","v":"Produit chimique 2"},"km",null,null,null,null,null,null,null,null,null,null,null,null,null,null,null,{"$f":"T125","v":false},false]
[null,null,"Produit chimique 3","km",null,null,null,null,null,null,null,null,null,null,null,null,null,null,null,false,false]
[null,null,"Produit chimique 4","km",null,null,null,null,null,null,null,null,null,null,null,null,null,null,null,false,false]
[null,null,"Produit chimique 5","km",null,null,null,null,null,null,null,null,null,null,null,null,null,null,null,false,false]
[null,null,"Produit chimique 6","km",null,null,null,null,null,null,null,null,null,null,null,null,null,null,null,false,false]
[null,null,"Produit chimique 7","km",null,null,null,null,null,null,null,null,null,null,null,null,null,null,null,false,false]
[null,null,"Produit chimique 8","km",null,null,null,null,null,null,null,null,null,null,null,null,null,null,null,false,false]
[null,null,"Produit chimique 9","km",null,null,null,null,null,null,null,null,null,null,null,null,null,null,null,false,false]
[null,null,"Produit chimique 10","km",null,null,null,null,null,null,null,null,null,null,null,null,null,null,null,false,false]
[null,null,"Produit chimique 11","km",null,null,null,null,null,null,null,null,null,null,null,null,null,null,null,false,false]
[null,null,"Produit chimique 12","km",null,null,null,null,null,null,null,null,null,null,null,null,null,null,null,false,false]
[null,null,"Produit chimique 13","km",null,null,null,null,null,null,null,null,null,null,null,null,null,null,null,false,false]
[null,null,"Produit chimique 14","km",null,null,null,null,null,null,null,null,null,null,null,null,null,null,null,false,false]
[null,null,"Produit chimique 15","km",null,null,null,null,null,null,null,null,null,null,null,null,null,null,null,false,false]
[null,null,"Produit chimique 16","km",null,null,null,null,null,null,null,null,null,null,null,null,null,null,null,false,false]
[null,null,"Produit chimique 17","km",null,null,null,null,null,null,null,null,null,null,null,null,null,null,null,false,false]
[null,null,"Produit chimique 18","km",null,null,null,null,null,null,null,null,null,null,null,null,null,null,null,false,false]
[null,null,"Produit chimique 19","km",null,null,null,null,null,null,null,null,null,null,null,null,null,null,null,false,false]
[null,null,"Produit chimique 20","km",null,null,null,null,null,null,null,null,null,null,null,null,null,null,null,false,false]
[]
[null,"DONNÉES GÉNÉRIQUES (NON SPÉCIFIQUES À L’INSTALLATION)"]
[null,"PORTÉE 1 – POTENTIEL DE RÉCHAUFFEMENT DE LA PLANÈTE",null,null,"Valeur de l’entrée","Entrée par défaut",null,null,"Référence"]
[null,null,"Potentiels de réchauffement de la planète","Unités"]
[null,null,"Valeurs du PRP du rapport d’évaluation du GIEC à utiliser",null,"AR6","AR4","AR5","AR6"]
[null,null,"PRP du CH4 biogénique (horizon de 100 ans)","CO2 éq.",{"$f":"LOOKUP($E$211,$F$211:$H$211,F212:H212)","v":27},25,28,27,"AR4: IPCC 2007, Tableau 2.14, AR5: IPCC 2013, Tableau 8.7, AR6: IPCC 2021, Tableau 7.15"]
[null,null,"PRP du CH4 fossile (horizon de 100 ans)","CO2 éq.",{"$f":"LOOKUP($E$211,$F$211:$H$211,F213:H213)","v":29.8},25,28,29.8,"AR4: IPCC 2007, Tableau 2.14, AR5: IPCC 2013, Tableau 8.7, AR6: IPCC 2021, Tableau 7.16"]
[null,null,"PRP du N2O (horizon de 100 ans)","CO2 éq.",{"$f":"LOOKUP($E$211,$F$211:$H$211,F214:H214)","v":273},298,265,273,"AR4: IPCC 2007, Tableau 2.14, AR5: IPCC 2013, Tableau 8.7, AR6: IPCC 2021, Tableau 7.17"]
[]
[null,"PORTÉE 1 – ÉMISSIONS DE MÉTHANE PROVENANT DES EAUX USÉES DOMESTIQUES",null,null,"Valeur de l’entrée","Entrée par défaut","Référence"]
[null,null,"Densité du gaz méthane à 20 °C, 101 kPa","kg/m3",{"$f":"F217","v":0.65900000000000003},0.65900000000000003,"engineeringtoolbox.com, at standard conditions"]
[null,"αt prim","Facteur de traitement primaire pour la quantité de DBO5 éliminée","DBOboue/DBOeauxusées",{"$f":"F218","v":1},1,"NIR 2024, Partie 2, Tableau A3.6-14"]
[null,"αt,sec","Facteur de traitement secondaire pour la quantité de DBO5 éliminée","DBOboue/DBOeauxusées",0.46,0.46,"NIR 2024, Partie 2, Tableau A3.6-14"]
[null,"αt,lag,ANA","DBO5 d'étangs anaérobies par quantité de DBO5 éliminée","DBOboue/DBOeauxusées",0.02,0.02,"NIR 2024, Partie 2, Tableau A3.6-14"]
[null,"αt,lag,AER","DBO5 d'étangs aérobies/aéres par quantité de DBO5 éliminée","DBOboue/DBOeauxusées",0.01,0.01,"NIR 2024, Partie 2, Tableau A3.6-14"]
[null,"αt,lag,FAC","DBO5 d'étangs  facultatives ou non spécifiées par quantité de DBO5 éliminée","DBOboue/DBOeauxusées",0.01,0.01,"NIR 2024, Partie 2, Tableau A3.6-14"]
[null,"EF aerobic,prim","CE pour le traitement primaire","kgCH4/kgDBO ",3.5999999999999999E-3,3.5999999999999999E-3,"NIR 2024, Partie 2, Tableau A3.6-14"]
[null,"EF aerobic,sec","CE pour le traitement secondaire","kgCH4/kgDBO ",3.5999999999999999E-3,3.5999999999999999E-3,"NIR 2024, Partie 2, Tableau A3.6-14",null,null,null,null,null,null,null,null,null,null,null,null,"Type de décharge","Voie","CE(kgCH4/kgDBO)"]
[null,"EF lag,ANA,sec","CE pour le traitement par étang anaérobie","kgCH4/kgDBO ",0.28799999999999998,0.28799999999999998,"NIR 2024, Partie 2, Tableau A3.6-14",null,null,null,null,null,null,null,null,null,null,null,null,"Generic"]
[null,"EF lag,AER,sec","CE pour le traitement de étang aérobie/aéré","kgCH4/kgDBO ",0,0,"NIR 2024, Partie 2, Tableau A3.6-14",null,null,null,null,null,null,null,null,null,null,null,null,"Generic"]
[null,"EF lag,FAC,sec","CE pour le traitement de étang facultative ou non spécifié","kgCH4/kgDBO ",7.1999999999999995E-2,7.1999999999999995E-2,"NIR 2024, Partie 2, Tableau A3.6-14",null,null,null,null,null,null,null,null,null,null,null,null,"Generic"]
[null,"EF discharge","CE pour le rejet après traitement (milieu aquatique générique)","kgCH4/kgDBO ",6.8000000000000005E-2,6.8000000000000005E-2,"IPCC 2019, Tableau 6.3",null,null,null,null,null,null,null,null,null,null,null,null,null,"Rejet dans les réservoirs, les lacs et les estuaires (niveau 2)",0.114]
[null,"EF discharge","CE pour le rejet après traitement (rivières et ruisseaux)","kgCH4/kgDBO ",2.1000000000000001E-2,2.1000000000000001E-2,"IPCC 2019, Tableau 6.3"]
[null,"EF discharge","CE pour le rejet après traitement (lacs et réservoirs)","kgCH4/kgDBO ",0.114,0.114,"IPCC 2019, Tableau 6.3",null,null,null,null,null,null,null,null,null,null,null,null,"Générique"]
[null,"EF anaerobic","CE pour la digestion anaérobie","kgCH4/kgbouessèches",2,2,"IPCC 2006, Vol 5, Chap 4, Tableau 4.1",null,null,null,null,null,null,null,null,null,null,null,null,"Rivières et criques","Rejet dans un environnement aquatique autre que les réservoirs, les lacs et les estuaires (niveau 2)",2.1000000000000001E-2]
[null,null,null,null,null,null,null,null,null,null,null,null,null,null,null,null,null,null,null,"Lacs et réservoirs","Rejet dans l’environnement aquatique (niveau 1)",6.8000000000000005E-2]
[null,"PORTÉE 1 – ÉMISSIONS D’OXYDE NITREUX PROVENANT DES EAUX USÉES DOMESTIQUES",null,null,"Valeur de l’entrée","Entrée par défaut","Référence"]
[null,"EFaerobic,centrN2O","CE pour une station d’épuration aérobie centralisée ","kgN2O-N/kgN ",{"$f":"F234","v":1.61E-2},1.61E-2,"IPCC 2019 Vol 5 Chap 6 Tableau 6.8A"]
[null,"EF eff_dischargeN2O","CE pour le rejet d’effluents traités ","kgN2O-N/kgN ",{"$f":"F235","v":5.0000000000000001E-3},5.0000000000000001E-3,"IPCC 2019 Vol 5 Chap 6 Tableau 6.8A"]
[]
[null,"PORTÉE 1 – ÉMISSIONS DE LA COMBUSTION GAZ DE DIGESTEUR",null,null,"Valeur de l’entrée","Entrée par défaut","Référence"]
[null,"HHVBG","PCS du biogaz sec à 25 ºC, 101 kPa","MJ/m3",{"$f":"F238","v":26},26,"Engineering Toolbox, https://www.engineeringtoolbox.com/heating-values-fuel-gases-d_823.html"]
[null,null,null,"BTU/ft3",{"$f":"E238*E240","v":697.81899181799997}]
[null,null,"Conversion de Mj/m33 en BTU/scf","–",26.839191993]
[null,null,"Conversion de m3 en pi3","–",35.314667]
[null,"EFN2O","CE de N2O pour la combustion des gaz de digesteur","kgN2O/MMBTU",{"$f":"F242","v":6.3000000000000003E-4},6.3000000000000003E-4,"EPA Direct Emissions, 2016, Table A-4 (https://www.epa.gov/sites/production/files/2016-03/documents/stationaryemissions_3_2016.pdf)"]
[null,null,null,"Gaz de digesteur kgN2O/m3",{"$f":"+E242/10^6*E239*E241","v":1.5525244553066889E-5}]
[null,"εCH4,bl","Efficacité de la combustion pour les chaudières – Taux de conversion du CH4 en CO2","%",{"$f":"F244","v":0.98},0.98,"Canada GHG Requirements 2023, Équation 2-19 (p. 45 du PDF)"]
[null,"εCH4,cogen","Efficacité de la combustion des dispositifs de cogénération – Taux de conversion du CH4 en CO2","%",{"$f":"F245","v":0.98499999999999999},0.98499999999999999,"Willis, J. (2017) GHG Methodologies for Sewer CH4, Methanol-Use CO2, and Biogas-Combustion CH4 and their Significance for Centralized Wastewater Treatment. Queensland."]
[null,"εCH4,fl","Efficacité de la combustion du torchage – Taux de conversion du CH4 en CO2 ","%",{"$f":"F246","v":0.98},0.98,"US EPA AP-42, Chapter 13.5"]
[]
[null,"PORTÉE 1 – ÉMISSIONS DE L’INCINÉRATION DES BOUES",null,null,"Valeur de l’entrée","Entrée par défaut","Référence"]
[null,"EFCH4","CE du CH4, incinération continue de boues d’épuration ","gCH4/tbouehumide",{"$f":"F249","v":9.6999999999999993},9.6999999999999993,"IPCC 2006, Vol 5 Chap 5 Section 5.4.2"]
[null,"EFN2O,wet","CE du N2O, incinération continue des boues ","gN2O/tbouehumide",{"$f":"F250","v":900},900,"IPCC 2006, Vol 5 Chap 5 Tableau 5.5"]
[]
[null,"PORTÉE 1 ET 3 – COMBUSTION DU CARBURANT",null,"Unités","Valeur de l’entrée","Entrée par défaut","Référence"]
[null,"GAZ NATUREL"]
[null,"HHVNG","PCS du gaz naturel","GJ/m3",{"$f":"F254","v":3.7999999999999999E-2},3.7999999999999999E-2,"MECP ON.20, 2019, Table 20-1, page 96"]
[null,"CICTCG,natural gas","Intensité carbone du gaz naturel – du berceau au consommateur (CTCG)","gCO2éq/MJ",15,15,"Canada Fuel LCA Methodology 2020, Annexe B, Tableau 1 (p.129 du PDF)"]
[null,"CICTC,natural gas","Intensité carbone du gaz naturel – du berceau à la combustion (CTC)","gCO2éq/MJ",65,65,"Canada Fuel LCA Methodology 2020, Annexe B, Tableau 1 (p.129 du PDF)"]
[null,"MAZOUT LÉGER (n° 2)"]
[null,"HHVLFO","PCS du mazout","GJ/m3",{"$f":"F258","v":38.799999999999997},38.799999999999997,"MECP ON.20, 2019, Table 20-1, page 96"]
[null,"CICTCG,LFO","Intensité carbone du mazout – du berceau au consommateur (CTCG)","gCO2éq/MJ",24,24,"Canada Fuel LCA Methodology 2020, Annexe B, Tableau 1 (p.129 du PDF)"]
[null,"CICTC,LFO","Intensité carbone du mazout – du berceau à la combustion (CTC)","gCO2éq/MJ",95,95,"Canada Fuel LCA Methodology 2020, Annexe B, Tableau 1 (p.129 du PDF)"]
[null,"DIESEL"]
[null,"HHVdiesel","PCS du diesel","GJ/m3",{"$f":"F262","v":38.299999999999997},38.299999999999997,"MECP ON.20, 2019, Table 20-1, page 96"]
[null,"CICTCG,diesel","Intensité carbone du diesel – du berceau au consommateur (CTCG)","gCO2éq/MJ",25,25,"Canada Fuel LCA Methodology 2020, Annexe B, Tableau 1 (p.129 du PDF)"]
[null,"CICTC,diesel","Intensité carbone du diesel – du berceau à la combustion (CTC)","gCO2éq/MJ",96,96,"Canada Fuel LCA Methodology 2020, Annexe B, Tableau 1 (p.129 du PDF)"]
[null,"PROPANE"]
[null,"HHVpropane","PCS du propane","GJ/m3",{"$f":"F266","v":25.48},25.48,"MECP ON.20, 2019, Table 20-1a, page 97"]
[null,"CICTCG,propane","Intensité carbone du propane – du berceau au consommateur (CTCG)","gCO2éq/MJ",16,16,"Canada Fuel LCA Methodology 2020, Annexe B, Tableau 1 (p.129 du PDF)"]
[null,"CICTC,propane","Intensité carbone du propane – du berceau à la combustion (CTC)","gCO2éq/MJ",75,75,"Canada Fuel LCA Methodology 2020, Annexe B, Tableau 1 (p.129 du PDF)"]
[null,"ESSENCE"]
[null,"HHVgasoline","PCS de l’essence sans plomb","GJ/kL",{"$f":"F270","v":34.869999999999997},34.869999999999997,"MECP ON.20, 2019, Table 20-1a, page 96"]
[null,"CICTCG,gasoline","Intensité carbone de l’essence – du berceau au consommateur (CTCG)","gCO2éq/MJ",24,24,"Canada Fuel LCA Methodology 2020, Annexe B, Tableau 1 (p.129 du PDF)"]
[null,"CICTC,gasoline","Intensité carbone de l’essence – du berceau à la combustion (CTC)","gCO2éq/MJ",96,96,"Canada Fuel LCA Methodology 2020, Annexe B, Tableau 1 (p.129 du PDF)"]
[null,"BIODIESEL"]
[null,"HHVbiodiesel","PCS du biodiesel B10","GJ/m3",{"$f":"F274","v":32.06},32.06,"MECP ON.20, 2019, Table 20-1, page 97"]
[null,"CICTCG,biodiesel","Intensité carbone du biodiesel – du berceau au consommateur (CTCG)","gCO2éq/MJ",{"$f":"F275","v":26.6},{"$f":"31-4.4","v":26.6},"Canada Fuel LCA Methodology 2020, Annexe G, Tableau 37 - Biodiesel issu d’oléagineux (p.395 du PDF)"]
[null,"CICTC,biodiesel","Intensité carbone du biodiesel – du berceau à la combustion (CTC)","gCO2éq/MJ",{"$f":"F276","v":31},31,"Canada Fuel LCA Methodology 2020, Annexe G, Tableau 37 - Biodiesel issu d’oléagineux (p.395 du PDF)"]
[]
[null,"PORTÉE 2 ET 3 – ÉMISSIONS LIÉES À LA CONSOMMATION D’ÉLECTRICITÉ SUR PLACE"]
[null,"EFelec","CE de l’intensité de la production d’électricité en Ontario (Portée 2)","gCO2éq/kWh",{"$f":"F279","v":35},35,"NIR 2024, Partie 3, Tableau A13-7"]
[null,null,"CE du réseau basé sur l’ACV de l’Ontario (Portée 2 + 3)","gCO2éq/kWh",{"$f":"F280","v":42.280169999999998},42.280169999999998,"Canada Fuel LCA Model 2024"]
[]
[null,"PORTÉE 3 – ÉMISSIONS DE LA CONSOMMATION DE PRODUITS CHIMIQUES",null,"Unités","Valeur de l’entrée","Entrée par défaut","Référence"]
[null,"EFtransport,truck","CE du transport camion lourd, camion 25 tonnes métriques","kgCO2éq/t*km",{"$f":"F283","v":8.7508950000000002E-2},8.7508950000000002E-2,"Canada Fuel LCA Model 2024"]
[null,"EFtransport,train","CE de train de marchandises diesel","kgCO2éq/t*km",{"$f":"F284","v":1.5415460000000001E-2},1.5415460000000001E-2,"Canada Fuel LCA Model 2024"]
[null,"EFtransport,ship","CE de navire de fret pour marchandises en vrac","kgCO2éq/t*km",{"$f":"F285","v":2.4671729999999999E-2},{"$f":"24.67173/1000","v":2.4671729999999999E-2},"Canada Fuel LCA Model 2024"]
[]
[null,"EFchem","CE des émissions de produits chimiques",null,"Valeur de l’entrée",null,"Remarques à l’intention de l’utilisateur"]
[null,null,{"$f":"C145","v":"Produit chimique 1"},"kgCO2éq/kg",null,null,null,null,null,null,null,null,null,null,null,null,null,null,null,{"$f":"T124","v":false}]
[null,null,"Produit chimique 2","kgCO2éq/kg",null,null,null,null,null,null,null,null,null,null,null,null,null,null,null,{"$f":"T125","v":false}]
[null,null,"Produit chimique 3","kgCO2éq/kg",null,null,null,null,null,null,null,null,null,null,null,null,null,null,null,false]
[null,null,"Produit chimique 4","kgCO2éq/kg",null,null,null,null,null,null,null,null,null,null,null,null,null,null,null,false]
[null,null,"Produit chimique 5","kgCO2éq/kg",null,null,null,null,null,null,null,null,null,null,null,null,null,null,null,false]
[null,null,"Produit chimique 6","kgCO2éq/kg",null,null,null,null,null,null,null,null,null,null,null,null,null,null,null,false]
[null,null,"Produit chimique 7","kgCO2éq/kg",null,null,null,null,null,null,null,null,null,null,null,null,null,null,null,false]
[null,null,"Produit chimique 8","kgCO2éq/kg",null,null,null,null,null,null,null,null,null,null,null,null,null,null,null,false]
[null,null,"Produit chimique 9","kgCO2éq/kg",null,null,null,null,null,null,null,null,null,null,null,null,null,null,null,false]
[null,null,"Produit chimique 10","kgCO2éq/kg",null,null,null,null,null,null,null,null,null,null,null,null,null,null,null,false]
[null,null,"Produit chimique 11","kgCO2éq/kg",null,null,null,null,null,null,null,null,null,null,null,null,null,null,null,false]
[null,null,"Produit chimique 12","kgCO2éq/kg",null,null,null,null,null,null,null,null,null,null,null,null,null,null,null,false]
[null,null,"Produit chimique 13","kgCO2éq/kg",null,null,null,null,null,null,null,null,null,null,null,null,null,null,null,false]
[null,null,"Produit chimique 14","kgCO2éq/kg",null,null,null,null,null,null,null,null,null,null,null,null,null,null,null,false]
[null,null,"Produit chimique 15","kgCO2éq/kg",null,null,null,null,null,null,null,null,null,null,null,null,null,null,null,false]
[null,null,"Produit chimique 16","kgCO2éq/kg",null,null,null,null,null,null,null,null,null,null,null,null,null,null,null,false]
[null,null,"Produit chimique 17","kgCO2éq/kg",null,null,null,null,null,null,null,null,null,null,null,null,null,null,null,false]
[null,null,"Produit chimique 18","kgCO2éq/kg",null,null,null,null,null,null,null,null,null,null,null,null,null,null,null,false]
[null,null,"Produit chimique 19","kgCO2éq/kg",null,null,null,null,null,null,null,null,null,null,null,null,null,null,null,false]
[null,null,"Produit chimique 20","kgCO2éq/kg",null,null,null,null,null,null,null,null,null,null,null,null,null,null,null,false]

{"sheet":"Bilan","index":3,"n_rows":95,"n_cols":20,"rows_kept":95,"cut":false,"hidden":false,"merged":[[16,1,17,1],[3,1,15,1],[18,1,27,1],[30,1,30,2],[42,5,42,8],[45,13,45,15],[50,9,50,12],[51,9,51,12],[51,13,51,15],[42,9,42,12],[45,9,45,12]]}
[null,"Inventaire des émissions de GES – Bilan",null,null,null,null,null,null,null,null,null,null,null,null,null,null,null,null,"NE PAS SUPPRIMER OU MODIFIER LES CELLULES DANS LES COLONNES AU-DELÀ DE LA COLONNE GRISE. ELLES SONT UTILISÉES COMME CALCULS INTERNES POUR LE FORMATAGE ET LES LISTES."]
[null,null,null,null,null,null,null,null,null,null,null,null,null,null,null,null,null,null,"LES COLONNES AU-DELÀ DE LA COLONNE GRISE NE DOIVENT PAS ÊTRE IMPRIMÉES POUR LES SORTIES."]
[null,"Détails des sources d'émission",null,"Unité","TOTAL",{"$f":"IF(WWTP1=\"\",\"\",WWTP1)","v":"STEU1"},{"$f":"IF(WWTP2=\"\",\"\",WWTP2)","v":"STEU2"},{"$f":"IF(WWTP3=\"\",\"\",WWTP3)","v":"STEU3"},{"$f":"IF(WWTP4=\"\",\"\",WWTP4)","v":"STEU4"},{"$f":"IF(WTP1_=\"\",\"\",WTP1_)","v":"STE1"},{"$f":"IF(WTP2_=\"\",\"\",WTP2_)","v":"STE2"},{"$f":"IF(WTP3_=\"\",\"\",WTP3_)","v":"STE3"},{"$f":"IF(WTP4_=\"\",\"\",WTP4_)","v":"STE4"},{"$f":"IF(WWCollection=\"\",\"\",WWCollection)","v":"Collecte"},{"$f":"IF(WDistr=\"\",\"\",WDistr)","v":"Distribution"},{"$f":"IF(SuppFac=\"\",\"\",SuppFac)","v":"Inst. sout."}]
[null,"Portée 1","Combustion du biogaz dans le digesteur ","tCO2éq./an",{"$f":"SUM(F4:Q4)","v":0},{"$f":"'Portée 1 - Combustion'!G47","v":0},{"$f":"'Portée 1 - Combustion'!H47","v":0},{"$f":"'Portée 1 - Combustion'!I47","v":0},{"$f":"'Portée 1 - Combustion'!J47","v":0}]
[null,null,"Incinération des boues de biosolides","tCO2éq./an",{"$f":"SUM(F5:Q5)","v":0},{"$f":"'Portée 1 - Combustion'!G68","v":""},{"$f":"'Portée 1 - Combustion'!H68","v":""},{"$f":"'Portée 1 - Combustion'!I68","v":""},{"$f":"'Portée 1 - Combustion'!J68","v":""}]
[null,null,"N2O provenant du traitement","tCO2éq./an",0,{"$f":"'Portée 1 - Procédés'!G144","v":0},{"$f":"'Portée 1 - Procédés'!H144","v":0},{"$f":"'Portée 1 - Procédés'!I144","v":0},{"$f":"'Portée 1 - Procédés'!J144","v":0}]
[null,null,"CH4 provenant du traitement","tCO2éq./an",0,{"$f":"'Portée 1 - Procédés'!G76","v":0},{"$f":"'Portée 1 - Procédés'!H76","v":0},{"$f":"'Portée 1 - Procédés'!I76","v":0},{"$f":"'Portée 1 - Procédés'!J76","v":0}]
[null,null,"N2O fugitif provenant du rejet d’effluents ","tCO2éq./an",0,{"$f":"'Portée 1 - Procédés'!G153","v":0},{"$f":"'Portée 1 - Procédés'!H153","v":0},{"$f":"'Portée 1 - Procédés'!I153","v":0},{"$f":"'Portée 1 - Procédés'!J153","v":0}]
[null,null,"CH4 fugitif du digesteur anaérobie ","tCO2éq./an",0,{"$f":"'Portée 1 - Procédés'!G112","v":0},{"$f":"'Portée 1 - Procédés'!H112","v":0},{"$f":"'Portée 1 - Procédés'!I112","v":0},{"$f":"'Portée 1 - Procédés'!J112","v":0}]
[null,null,"CH4 fugitif provenant du rejet d’effluent ","tCO2éq./an",0,{"$f":"'Portée 1 - Procédés'!G85","v":0},{"$f":"'Portée 1 - Procédés'!H85","v":0},{"$f":"'Portée 1 - Procédés'!I85","v":0},{"$f":"'Portée 1 - Procédés'!J85","v":0}]
[null,null,"Combustion de gaz naturel ","tCO2éq./an",0,{"$f":"'Portée 1 - Combustion'!G79","v":0},{"$f":"'Portée 1 - Combustion'!H79","v":0},{"$f":"'Portée 1 - Combustion'!I79","v":0},{"$f":"'Portée 1 - Combustion'!J79","v":0},{"$f":"'Portée 1 - Combustion'!L79","v":0},{"$f":"'Portée 1 - Combustion'!M79","v":0},{"$f":"'Portée 1 - Combustion'!N79","v":0},{"$f":"'Portée 1 - Combustion'!O79","v":0},{"$f":"'Portée 1 - Combustion'!K79","v":0},{"$f":"'Portée 1 - Combustion'!P79","v":0},{"$f":"'Portée 1 - Combustion'!Q79","v":0}]
[null,null,"Combustion de mazout ","tCO2éq./an",0,{"$f":"'Portée 1 - Combustion'!G90","v":0},{"$f":"'Portée 1 - Combustion'!H90","v":0},{"$f":"'Portée 1 - Combustion'!I90","v":0},{"$f":"'Portée 1 - Combustion'!J90","v":0},{"$f":"'Portée 1 - Combustion'!L90","v":0},{"$f":"'Portée 1 - Combustion'!M90","v":0},{"$f":"'Portée 1 - Combustion'!N90","v":0},{"$f":"'Portée 1 - Combustion'!O90","v":0},{"$f":"'Portée 1 - Combustion'!K90","v":0},{"$f":"'Portée 1 - Combustion'!P90","v":0},{"$f":"'Portée 1 - Combustion'!Q90","v":0}]
[null,null,"Combustion diesel ","tCO2éq./an",0,{"$f":"'Portée 1 - Combustion'!G101","v":0},{"$f":"'Portée 1 - Combustion'!H101","v":0},{"$f":"'Portée 1 - Combustion'!I101","v":0},{"$f":"'Portée 1 - Combustion'!J101","v":0},{"$f":"'Portée 1 - Combustion'!L101","v":0},{"$f":"'Portée 1 - Combustion'!M101","v":0},{"$f":"'Portée 1 - Combustion'!N101","v":0},{"$f":"'Portée 1 - Combustion'!O101","v":0},{"$f":"'Portée 1 - Combustion'!K101","v":0},{"$f":"'Portée 1 - Combustion'!P101","v":0},{"$f":"'Portée 1 - Combustion'!Q101","v":0}]
[null,null,"Combustion du propane ","tCO2éq./an",0,{"$f":"'Portée 1 - Combustion'!G112","v":0},{"$f":"'Portée 1 - Combustion'!H112","v":0},{"$f":"'Portée 1 - Combustion'!I112","v":0},{"$f":"'Portée 1 - Combustion'!J112","v":0},{"$f":"'Portée 1 - Combustion'!L112","v":0},{"$f":"'Portée 1 - Combustion'!M112","v":0},{"$f":"'Portée 1 - Combustion'!N112","v":0},{"$f":"'Portée 1 - Combustion'!O112","v":0},{"$f":"'Portée 1 - Combustion'!K112","v":0},{"$f":"'Portée 1 - Combustion'!P112","v":0},{"$f":"'Portée 1 - Combustion'!Q112","v":0}]
[null,null,"Combustion de carburant pour la flotte de véhicules ","tCO2éq./an",0,null,null,null,null,null,null,null,null,null,null,{"$f":"'Portée 1 - Combustion'!Q128","v":0}]
[null,null,"Émissions totales de GES de la Portée 1",null,{"$f":"+SUM(E4:E15)","v":0},0,0,0,0,{"$f":"+SUM(J4:J15)","v":0},{"$f":"+SUM(K4:K15)","v":0},{"$f":"+SUM(L4:L15)","v":0},{"$f":"+SUM(M4:M15)","v":0},{"$f":"+SUM(N4:N15)","v":0},0,0]
[null,"Portée 2","Électricité consommée  ","tCO2éq./an",{"$f":"SUM(F17:P17)","v":0},{"$f":"'Portée 2 - Électricité'!G9","v":0},{"$f":"'Portée 2 - Électricité'!H9","v":0},{"$f":"'Portée 2 - Électricité'!I9","v":0},{"$f":"'Portée 2 - Électricité'!J9","v":0},{"$f":"'Portée 2 - Électricité'!L9","v":0},{"$f":"'Portée 2 - Électricité'!M9","v":0},{"$f":"'Portée 2 - Électricité'!N9","v":0},{"$f":"'Portée 2 - Électricité'!O9","v":0},{"$f":"'Portée 2 - Électricité'!K9","v":0},{"$f":"'Portée 2 - Électricité'!P9","v":0},{"$f":"'Portée 2 - Électricité'!Q9","v":0}]
[null,null,"Émissions totales de GES de la Portée 2",null,{"$f":"SUM(E17:E17)","v":0},0,0,0,0,{"$f":"SUM(J17:J17)","v":0},{"$f":"SUM(K17:K17)","v":0},{"$f":"SUM(L17:L17)","v":0},{"$f":"SUM(M17:M17)","v":0},{"$f":"SUM(N17:N17)","v":0},0,0]
[null,"Portée 3","Électricité","tCO2éq./an",{"$f":"SUM(F19:P19)","v":0},{"$f":"'Portée 3 - Électricité'!G11","v":0},{"$f":"'Portée 3 - Électricité'!H11","v":0},{"$f":"'Portée 3 - Électricité'!I11","v":0},{"$f":"'Portée 3 - Électricité'!J11","v":0},{"$f":"'Portée 3 - Électricité'!L11","v":0},{"$f":"'Portée 3 - Électricité'!M11","v":0},{"$f":"'Portée 3 - Électricité'!N11","v":0},{"$f":"'Portée 3 - Électricité'!O11","v":0},{"$f":"'Portée 3 - Électricité'!K11","v":0},{"$f":"'Portée 3 - Électricité'!P11","v":0},{"$f":"'Portée 3 - Électricité'!Q11","v":0}]
[null,null,"Gaz naturel en amont ","tCO2éq./an",0,{"$f":"'Portée 3 - Combustibles'!G10","v":0},{"$f":"'Portée 3 - Combustibles'!H10","v":0},{"$f":"'Portée 3 - Combustibles'!I10","v":0},{"$f":"'Portée 3 - Combustibles'!J10","v":0},{"$f":"'Portée 3 - Combustibles'!L10","v":0},{"$f":"'Portée 3 - Combustibles'!M10","v":0},{"$f":"'Portée 3 - Combustibles'!N10","v":0},{"$f":"'Portée 3 - Combustibles'!O10","v":0},{"$f":"'Portée 3 - Combustibles'!K10","v":0},{"$f":"'Portée 3 - Combustibles'!P10","v":0},{"$f":"'Portée 3 - Combustibles'!Q10","v":0}]
[null,null,"Mazout en amont ","tCO2éq./an",0,{"$f":"'Portée 3 - Combustibles'!G19","v":0},{"$f":"'Portée 3 - Combustibles'!H19","v":0},{"$f":"'Portée 3 - Combustibles'!I19","v":0},{"$f":"'Portée 3 - Combustibles'!J19","v":0},{"$f":"'Portée 3 - Combustibles'!L19","v":0},{"$f":"'Portée 3 - Combustibles'!M19","v":0},{"$f":"'Portée 3 - Combustibles'!N19","v":0},{"$f":"'Portée 3 - Combustibles'!O19","v":0},{"$f":"'Portée 3 - Combustibles'!K19","v":0},{"$f":"'Portée 3 - Combustibles'!P19","v":0},{"$f":"'Portée 3 - Combustibles'!Q19","v":0}]
[null,null,"Diesel en amont ","tCO2éq./an",0,{"$f":"'Portée 3 - Combustibles'!G28","v":0},{"$f":"'Portée 3 - Combustibles'!H28","v":0},{"$f":"'Portée 3 - Combustibles'!I28","v":0},{"$f":"'Portée 3 - Combustibles'!J28","v":0},{"$f":"'Portée 3 - Combustibles'!L28","v":0},{"$f":"'Portée 3 - Combustibles'!M28","v":0},{"$f":"'Portée 3 - Combustibles'!N28","v":0},{"$f":"'Portée 3 - Combustibles'!O28","v":0},{"$f":"'Portée 3 - Combustibles'!K28","v":0},{"$f":"'Portée 3 - Combustibles'!P28","v":0},{"$f":"'Portée 3 - Combustibles'!Q28","v":0}]
[null,null,"Combustion du propane ","tCO2éq./an",0,{"$f":"'Portée 3 - Combustibles'!G37","v":0},{"$f":"'Portée 3 - Combustibles'!H37","v":0},{"$f":"'Portée 3 - Combustibles'!I37","v":0},{"$f":"'Portée 3 - Combustibles'!J37","v":0},{"$f":"'Portée 3 - Combustibles'!L37","v":0},{"$f":"'Portée 3 - Combustibles'!M37","v":0},{"$f":"'Portée 3 - Combustibles'!N37","v":0},{"$f":"'Portée 3 - Combustibles'!O37","v":0},{"$f":"'Portée 3 - Combustibles'!K37","v":0},{"$f":"'Portée 3 - Combustibles'!P37","v":0},{"$f":"'Portée 3 - Combustibles'!Q37","v":0}]
[null,null,"Carburant de la flotte de véhicules en amont ","tCO2éq./an",0,null,null,null,null,null,null,null,null,null,null,{"$f":"'Portée 3 - Combustibles'!Q54","v":0}]
[null,null,"Production chimique ","tCO2éq./an",0,{"$f":"'Portée 3 - Produits chimiques'!G72","v":0},{"$f":"'Portée 3 - Produits chimiques'!H72","v":0},{"$f":"'Portée 3 - Produits chimiques'!I72","v":0},{"$f":"'Portée 3 - Produits chimiques'!J72","v":0},{"$f":"'Portée 3 - Produits chimiques'!L72","v":0},{"$f":"'Portée 3 - Produits chimiques'!M72","v":0},{"$f":"'Portée 3 - Produits chimiques'!N72","v":0},{"$f":"'Portée 3 - Produits chimiques'!O72","v":0},{"$f":"'Portée 3 - Produits chimiques'!K72","v":0},{"$f":"'Portée 3 - Produits chimiques'!P72","v":0},{"$f":"'Portée 3 - Produits chimiques'!Q72","v":0}]
[null,null,"Transport de produits chimiques ","tCO2éq./an",0,{"$f":"'Portée 3 - Produits chimiques'!G166","v":0},{"$f":"'Portée 3 - Produits chimiques'!H166","v":0},{"$f":"'Portée 3 - Produits chimiques'!I166","v":0},{"$f":"'Portée 3 - Produits chimiques'!J166","v":0},{"$f":"'Portée 3 - Produits chimiques'!L166","v":0},{"$f":"'Portée 3 - Produits chimiques'!M166","v":0},{"$f":"'Portée 3 - Produits chimiques'!N166","v":0},{"$f":"'Portée 3 - Produits chimiques'!O166","v":0},{"$f":"'Portée 3 - Produits chimiques'!K166","v":0},{"$f":"'Portée 3 - Produits chimiques'!P166","v":0},{"$f":"'Portée 3 - Produits chimiques'!Q166","v":0}]
[null,null,"Gestion des biosolides","tCO2éq./an",{"$f":"SUM(F27:P27)","v":0},{"$f":"'Portée 3 - Biosolides'!G22","v":0},{"$f":"'Portée 3 - Biosolides'!H22","v":0},{"$f":"'Portée 3 - Biosolides'!I22","v":0},{"$f":"'Portée 3 - Biosolides'!J22","v":0}]
[null,null,"Émissions de GES de la Portée 3",null,{"$f":"SUM(E19:E27)","v":0},{"$f":"SUM(F19:F27)","v":0},0,0,0,{"$f":"SUM(J19:J27)","v":0},{"$f":"SUM(K19:K27)","v":0},{"$f":"SUM(L19:L27)","v":0},{"$f":"SUM(M19:M27)","v":0},{"$f":"SUM(N19:N27)","v":0},0,0]
[null,"Émissions totales de GES",null,"tCO2éq./an",{"$f":"SUM(E28,E18,E16)","v":0},0,0,0,0,{"$f":"SUM(J28,J18,J16)","v":0},{"$f":"SUM(K28,K18,K16)","v":0},{"$f":"SUM(L28,L18,L16)","v":0},{"$f":"SUM(M28,M18,M16)","v":0},{"$f":"SUM(N28,N18,N16)","v":0},0,0]
[]
[null,"Répartition par source d’émission",null,"Unité","TOTAL",{"$f":"IF(WWTP1=\"\",\"\",WWTP1)","v":"STEU1"},{"$f":"IF(WWTP2=\"\",\"\",WWTP2)","v":"STEU2"},{"$f":"IF(WWTP3=\"\",\"\",WWTP3)","v":"STEU3"},{"$f":"IF(WWTP4=\"\",\"\",WWTP4)","v":"STEU4"},{"$f":"IF(WTP1_=\"\",\"\",WTP1_)","v":"STE1"},{"$f":"IF(WTP2_=\"\",\"\",WTP2_)","v":"STE2"},{"$f":"IF(WTP3_=\"\",\"\",WTP3_)","v":"STE3"},{"$f":"IF(WTP4_=\"\",\"\",WTP4_)","v":"STE4"},{"$f":"IF(WWCollection=\"\",\"\",WWCollection)","v":"Collecte"},{"$f":"IF(WDistr=\"\",\"\",WDistr)","v":"Distribution"},{"$f":"IF(SuppFac=\"\",\"\",SuppFac)","v":"Inst. sout."}]
[null,null,"Combustion du biogaz dans le digesteur","tCO2éq./an",{"$f":"SUM(F32:P32)","v":0},{"$f":"F4","v":0},0,0,0,{"$f":"J4","v":0},0,0,0,{"$f":"N4","v":0},0,0]
[null,null,"Incinération des boues de biosolides","tCO2éq./an",0,{"$f":"F5","v":""},"","","",0,0,0,0,{"$f":"N5","v":0},0,0]
[null,null,"N2O de procédé et fugitif","tCO2éq./an",0,{"$f":"F6+F8","v":0},0,0,0,{"$f":"J6+J8","v":0},{"$f":"K6+K8","v":0},{"$f":"L6+L8","v":0},{"$f":"M6+M8","v":0},{"$f":"N6+N8","v":0},0,0]
[null,null,"CH4 de procédé et fugitif","tCO2éq./an",0,{"$f":"F7+F9+F10","v":0},0,0,0,{"$f":"J7+J9+J10","v":0},{"$f":"K7+K9+K10","v":0},{"$f":"L7+L9+L10","v":0},{"$f":"M7+M9+M10","v":0},{"$f":"N7+N9+N10","v":0},0,0]
[null,null,"Combustion de combustibles fossiles (Portée 1+3)","tCO2éq./an",{"$f":"SUM(F36:P36)","v":0},{"$f":"SUM(F11:F14)+SUM(F20:F23)","v":0},0,0,0,{"$f":"SUM(J11:J14)+SUM(J20:J23)","v":0},{"$f":"SUM(K11:K14)+SUM(K20:K23)","v":0},{"$f":"SUM(L11:L14)+SUM(L20:L23)","v":0},{"$f":"SUM(M11:M14)+SUM(M20:M23)","v":0},{"$f":"SUM(N11:N14)+SUM(N20:N23)","v":0},0,0]
[null,null,"Flotte de véhicules (Portée 1+3)","tCO2éq./an",0,{"$f":"F15+F24","v":0},0,0,0,{"$f":"J15+J24","v":0},{"$f":"K15+K24","v":0},{"$f":"L15+L24","v":0},{"$f":"M15+M24","v":0},{"$f":"N15+N24","v":0},0,0]
[null,null,"Électricité (Portée 2+3)","tCO2éq./an",0,{"$f":"F17+F19","v":0},0,0,0,{"$f":"J17+J19","v":0},{"$f":"K17+K19","v":0},{"$f":"L17+L19","v":0},{"$f":"M17+M19","v":0},{"$f":"N17+N19","v":0},0,0]
[null,null,"Production et transport de produits chimiques","tCO2éq./an",0,{"$f":"F25+F26","v":0},0,0,0,{"$f":"J25+J26","v":0},{"$f":"K25+K26","v":0},{"$f":"L25+L26","v":0},{"$f":"M25+M26","v":0},{"$f":"N25+N26","v":0},0,0]
[null,null,"Gestion des biosolides","tCO2éq./an",0,{"$f":"SUM(F27:F27)","v":0},0,0,0,{"$f":"SUM(J27:J27)","v":0},{"$f":"SUM(K27:K27)","v":0},{"$f":"SUM(L27:L27)","v":0},{"$f":"SUM(M27:M27)","v":0},{"$f":"SUM(N27:N27)","v":0},0,0]
[null,"Émissions totales de GES",null,"tCO2éq./an",{"$f":"SUM(E32:E40)","v":0},0,0,0,0,{"$f":"SUM(J32:J40)","v":0},{"$f":"SUM(K32:K40)","v":0},{"$f":"SUM(L32:L40)","v":0},{"$f":"SUM(M32:M40)","v":0},{"$f":"SUM(N32:N40)","v":0},0,0]
[]
[null,null,"BILAN",null,null,"TRAITEMENT DES EAUX USÉES",null,null,null,"APPROVISIONNEMENT EN EAU",null,null,null,"COLLECTE DES EAUX USÉES","DISTRIBUTION D’EAU","SYSTÈMES DE SOUTIEN"]
[null,null,"Nom de l’installation/du système","Unité",null,{"$f":"IF(WWTP1=\"\",\"\",WWTP1)","v":"STEU1"},{"$f":"IF(WWTP2=\"\",\"\",WWTP2)","v":"STEU2"},{"$f":"IF(WWTP3=\"\",\"\",WWTP3)","v":"STEU3"},{"$f":"IF(WWTP4=\"\",\"\",WWTP4)","v":"STEU4"},{"$f":"IF(WTP1_=\"\",\"\",WTP1_)","v":"STE1"},{"$f":"IF(WTP2_=\"\",\"\",WTP2_)","v":"STE2"},{"$f":"IF(WTP3_=\"\",\"\",WTP3_)","v":"STE3"},{"$f":"IF(WTP4_=\"\",\"\",WTP4_)","v":"STE4"},{"$f":"WWCollection","v":"Collecte"},{"$f":"WDistr","v":"Distribution"},{"$f":"SuppFac","v":"Inst. sout."}]
[null,null,"Émissions annuelles de GES par installation","tCO2éq./an",null,{"$f":"+F29","v":0},{"$f":"+G29","v":0},{"$f":"+H29","v":0},0,{"$f":"+J29","v":0},{"$f":"+K29","v":0},{"$f":"+L29","v":0},{"$f":"+M29","v":0},{"$f":"+N29","v":0},{"$f":"+O29","v":0},{"$f":"P29","v":0},null,null,{"$f":"OR(E45,F45,G45,H45,I45,J45,K45,L45,M45,N45,O45,P45)","v":false}]
[null,null,"Émissions annuelles de GES par type de système","tCO2éq./an",null,{"$f":"SUM(F45:I45)","v":0},null,null,null,{"$f":"SUM(J45:M45)","v":0},null,null,null,{"$f":"SUM(N45:P45)","v":0}]
[null,null,"Part des émissions par système","%",null,null,null,null,{"$f":"IF(S45=TRUE,+F46/SUM(F45:P45),0)","v":0},null,null,null,{"$f":"IF(S45=TRUE,+J46/SUM(F45:P45),0)","v":0},null,null,{"$f":"IF(S45=TRUE,+N46/SUM(F45:P45),0)","v":0}]
[null,null,"Population",null,null,{"$f":"Entrées!$D$12","v":0}]
[null,null,"Débit annuel","m3/an",null,{"$f":"+Entrées!E23*365","v":0},{"$f":"+Entrées!F23*365","v":0},{"$f":"+Entrées!G23*365","v":0},{"$f":"+Entrées!H23*365","v":0},{"$f":"+Entrées!J20*365","v":0},{"$f":"+Entrées!K20*365","v":0},{"$f":"+Entrées!L20*365","v":0},{"$f":"+Entrées!M20*365","v":0}]
[null,null,"Intensité d’émission par installation","gCO2éq./m3",null,{"$f":"IF(F45=0,0,(IF(F49=0,0,+F45*10^6/F49)))","v":0},{"$f":"IF(G45=0,0,(IF(G49=0,0,+G45*10^6/G49)))","v":0},{"$f":"IF(H45=0,0,(IF(H49=0,0,+H45*10^6/H49)))","v":0},{"$f":"IF(I45=0,0,(IF(I49=0,0,+I45*10^6/I49)))","v":0},{"$f":"IF(J45=0,0,(IF(J49=0,0,+J45*10^6/J49)))","v":0},{"$f":"IF(K45=0,0,(IF(K49=0,0,+K45*10^6/K49)))","v":0},0,0,null,null,null,null,null,{"$f":"OR(E49,F49,G49,H49,E50,F50,G50,H50,I49,I50)","v":false},{"$f":"OR(J49,K49,L49,M49,J50,K50,L50,M50)","v":false}]
[null,null,"Intensité d’émission par système","gCO2éq./m3",null,{"$f":"IF(S50=TRUE,(F50*F49+G50*G49+H50*H49+I50*I49)/SUM(F49:I49),0)","v":0},null,null,null,{"$f":"IF(T50=TRUE,(J50*J49+K50*K49+L50*L49+M50*M49)/SUM(J49:M49),0)","v":0}]
[null,null,"Intensité d’émission par population desservie","tCO2éq./an/personne",null,{"$f":"IF(F48=0,0,(IF(F46=0,0,F46/F48)))","v":0},null,null,null,{"$f":"IF(F48=0,0,(IF(J46=0,0,J46/F48)))","v":0},null,null,null,{"$f":"IF(F48=0,0,(IF(N46=0,0,N46/F48)))","v":0}]
[]
[]
[]
[]
[]
[]
[]
[]
[]
[]
[]
[]
[]
[]
[]
[]
[]
[]
[]
[]
[]
[]
[]
[]
[]
[]
[]
[]
[]
[]
[]
[]
[]
[]
[]
[]
[]
[]
[]
[null,null,"Émissions par type de traitement ou par système de soutien",null,"Émissions GES","Distribution des émissions",null,null,"Émissions GES","Distribution des émissions"]
[null,null,null,"Traitement des eaux useés",{"$f":"+SUM(F29:I29)","v":0},{"$f":"+E93/SUM(E93:E95)","v":{"$error":"#DIV/0!"}},null,"Portée 1",{"$f":"E16","v":0},{"$f":"+I93/SUM(I93:I95)","v":{"$error":"#DIV/0!"}}]
[null,null,null,"Approvisionnement en eau",{"$f":"+SUM(J29:M29)","v":0},{"$f":"+E94/SUM(E93:E95)","v":{"$error":"#DIV/0!"}},null,"Portée 2",{"$f":"E18","v":0},{"$f":"+I94/SUM(I93:I95)","v":{"$error":"#DIV/0!"}}]
[null,null,null,"Collection, distribution, et systèmes de soutien",{"$f":"+SUM(N29,O29,P29)","v":0},{"$f":"+E95/SUM(E93:E95)","v":{"$error":"#DIV/0!"}},null,"Portée 3",{"$f":"E28","v":0},{"$f":"+I95/SUM(I93:I95)","v":{"$error":"#DIV/0!"}}]

{"sheet":"Portée 1 - Procédés","index":4,"n_rows":156,"n_cols":14,"rows_kept":156,"cut":false,"hidden":false,"merged":[[11,2,11,3],[17,2,17,3],[35,2,35,3],[41,2,41,3],[74,2,75,2],[23,2,23,3],[78,2,78,3],[47,2,47,3],[83,3,84,3],[83,2,84,2],[74,3,75,3],[90,6,90,9],[125,2,125,3],[92,1,99,1],[98,3,99,3],[107,3,108,3],[101,2,101,3],[119,2,119,3],[107,2,108,2],[102,1,108,1],[92,2,92,3],[110,2,111,2],[110,3,111,3],[154,3,155,3],[151,3,152,3],[142,3,143,3],[131,2,131,3],[138,2,138,3],[146,2,146,3],[142,2,143,2],[151,2,152,2]]}
[null,"Portée 1 – Émissions de GES associées aux processus de traitement",null,null,null,null,null,null,null,null,null,null,"NE PAS SUPPRIMER OU MODIFIER LES CELLULES DANS LES COLONNES AU-DELÀ DE LA COLONNE VERTE. ELLES SONT UTILISÉES COMME CALCULS INTERNES POUR LE FORMATAGE ET LES LISTES."]
[null,null,null,null,null,null,null,null,null,null,null,null,"LES COLONNES AU-DELÀ DE LA COLONNE VERTE NE DOIVENT PAS ÊTRE IMPRIMÉES POUR LES SORTIES."]
[null,"POTENTIEL DE RÉCHAUFFEMENT PLANÉTAIRE"]
[null,null,null,"PRP du CH4 biogénique (horizon de 100 ans)","-",null,{"$f":"Entrées!$E$212","v":27},{"$f":"Entrées!$E$212","v":27},{"$f":"Entrées!$E$212","v":27},{"$f":"Entrées!$E$212","v":27},{"$f":"Entrées!$I$212","v":"AR4: IPCC 2007, Tableau 2.14, AR5: IPCC 2013, Tableau 8.7, AR6: IPCC 2021, Tableau 7.15"}]
[null,null,null,"PRP du N2O (horizon de 100 ans)","-",null,{"$f":"Entrées!$E$214","v":273},{"$f":"Entrées!$E$214","v":273},{"$f":"Entrées!$E$214","v":273},{"$f":"Entrées!$E$214","v":273},{"$f":"Entrées!$I$214","v":"AR4: IPCC 2007, Tableau 2.14, AR5: IPCC 2013, Tableau 8.7, AR6: IPCC 2021, Tableau 7.17"}]
[]
[null,"ÉMISSIONS DE MÉTHANE PROVENANT DES EAUX USÉES DOMESTIQUES"]
[null,"Méthodologie : Les cinq étapes suivantes ont été adaptées à partir du document 2019 Refinement of the IPCC Guidelines, volume 5, chapitres 4 et 6."]
[]
[null,"Étape 1 –","Estimer la quantité de matières organiques en kg de DBO/an dans l’influent des eaux usées, la dérivation et les effluents rejetés dans l’environnement aquatique"]
[null,null,"Total des matières organiques de l’effluent de l’usine"]
[null,null,"TOWin = Fin*C BOD in",null,"Unité",null,{"$f":"IF(WWTP1=\"\",\"\",WWTP1)","v":"STEU1"},{"$f":"IF(WWTP2=\"\",\"\",WWTP2)","v":"STEU2"},{"$f":"IF(WWTP3=\"\",\"\",WWTP3)","v":"STEU3"},{"$f":"IF(WWTP4=\"\",\"\",WWTP4)","v":"STEU4"},"Notes/références de l’utilisateur"]
[null,null,"Fin","Débit moyen annuel de l’influent de la station","m3/jour",null,{"$f":"+Entrées!E23","v":0},{"$f":"+Entrées!F23","v":0},{"$f":"+Entrées!G23","v":0},{"$f":"+Entrées!H23","v":0},{"$f":"Entrées!$Q$23","v":0}]
[null,null,"CBOD in","Concentration de demande biochimique en oxygène (DBO5 dans les formules) dans l’influent de l’usine","mgDBO/L",null,{"$f":"+Entrées!E32","v":0},{"$f":"+Entrées!F32","v":0},{"$f":"+Entrées!G32","v":0},{"$f":"+Entrées!H32","v":0},{"$f":"Entrées!$Q$32","v":0}]
[null,null,"TOWin","Total de matières organiques de l’influent ","kgDBO/an",null,{"$f":"+G13*G14*365/1000","v":0},{"$f":"+H13*H14*365/1000","v":0},0,0]
[]
[null,null,"Total de matières organiques de l’influent du traitement secondaire"]
[null,null,"TOWin = Fin,sec*C BOD eff,prim",null,null,null,{"$f":"IF(WWTP1=\"\",\"\",WWTP1)","v":"STEU1"},{"$f":"IF(WWTP2=\"\",\"\",WWTP2)","v":"STEU2"},{"$f":"IF(WWTP3=\"\",\"\",WWTP3)","v":"STEU3"},{"$f":"IF(WWTP4=\"\",\"\",WWTP4)","v":"STEU4"}]
[null,null,"Fin,sec","Débit moyen annuel de l’influent secondaire","m3/jour",null,{"$f":"+Entrées!E23","v":0},{"$f":"+Entrées!F23","v":0},{"$f":"+Entrées!G23","v":0},{"$f":"+Entrées!H23","v":0},{"$f":"Entrées!$Q$23","v":0}]
[null,null,"CBOD eff,prim","Concentration de DBO5 dans l’influent secondaire","mgDBO/L",null,{"$f":"+Entrées!E33","v":0},{"$f":"+Entrées!F33","v":0},{"$f":"+Entrées!G33","v":0},{"$f":"+Entrées!H33","v":0},{"$f":"Entrées!$Q$33","v":0}]
[null,null,"TOWin,sec","Total de matières organiques de l’influent secondaire","kgDBO/an",null,{"$f":"+G19*G20*365/1000","v":0},{"$f":"+H19*H20*365/1000","v":0},0,0]
[]
[null,null,"Total des matières organiques de l’influent de l'étang"]
[null,null,"TOWin,lagoon = Fin,lagoon*C BOD in,lagoon",null,null,null,{"$f":"IF(WWTP1=\"\",\"\",WWTP1)","v":"STEU1"},{"$f":"IF(WWTP2=\"\",\"\",WWTP2)","v":"STEU2"},{"$f":"IF(WWTP3=\"\",\"\",WWTP3)","v":"STEU3"},{"$f":"IF(WWTP4=\"\",\"\",WWTP4)","v":"STEU4"}]
[null,null,"Flag,ANA,in","Volume annuel dans les étangs anaérobies","m3/an",null,{"$f":"Entrées!E27","v":0},{"$f":"Entrées!F27","v":0},{"$f":"Entrées!G27","v":0},{"$f":"Entrées!H27","v":0},{"$f":"Entrées!$Q$27","v":0}]
[null,null,"Flag,AERin","Volume annuel dans les étangs aérobies/aérés","m3/an",null,{"$f":"Entrées!E28","v":0},{"$f":"Entrées!F28","v":0},{"$f":"Entrées!G28","v":0},{"$f":"Entrées!H28","v":0},{"$f":"Entrées!$Q$28","v":0}]
[null,null,"Flag,FAC,in","Volume annuel dans les étangs facultatifs ou non spécifiés","m3/an",null,{"$f":"Entrées!E29","v":0},{"$f":"Entrées!F29","v":0},{"$f":"Entrées!G29","v":0},{"$f":"Entrées!H29","v":0},{"$f":"Entrées!$Q$29","v":0}]
[null,null,"CBOD lag,ANA,in","Concentration de DBO5 dans l’influent des étangs secondaires","mgDBO/L",null,{"$f":"Entrées!E36","v":0},{"$f":"Entrées!F36","v":0},{"$f":"Entrées!G36","v":0},{"$f":"Entrées!H36","v":0},{"$f":"Entrées!$Q$36","v":0}]
[null,null,"CBOD lag,AER,in","Concentration de DBO5 dans l’influent des étangs aérobies/aérés secondaires","mgDBO/L",null,{"$f":"Entrées!E37","v":0},{"$f":"Entrées!F37","v":0},{"$f":"Entrées!G37","v":0},{"$f":"Entrées!H37","v":0},{"$f":"Entrées!$Q$38","v":0}]
[null,null,"CBOD lag,FAC,in","Concentration de DBO5 dans l’influent des étangs facultatifs ou non spécifiés","mgDBO/L",null,{"$f":"Entrées!E40","v":0},{"$f":"Entrées!F40","v":0},{"$f":"Entrées!G40","v":0},{"$f":"Entrées!H40","v":0},{"$f":"Entrées!$Q$40","v":0}]
[null,null,"TOWlag,ANA,in","Totale de matières organiques de l’influent entrant dans les étangs anaérobies","kgDBO/an",null,{"$f":"G28/1000*G25","v":0},{"$f":"H28/1000*H25","v":0},0,0]
[null,null,"TOWlag,AER,in","Total des matières organiques entrantes dans les étangs aérobies/aérés","kgDBO/an",null,{"$f":"G29/1000*G26","v":0},0,0,0]
[null,null,"TOWlag,FAC,in","Total des matières organiques de l’influent vers les étangs d’épuration ou les étangs non spécifiés","kgDBO/an",null,0,0,0,0]
[]
[null,null,"Total des matières organiques de l’influent secondaire d’eaux usées"]
[null,null,"TOWeff = Feff*C BOD eff",null,null,null,{"$f":"IF(WWTP1=\"\",\"\",WWTP1)","v":"STEU1"},{"$f":"IF(WWTP2=\"\",\"\",WWTP2)","v":"STEU2"},{"$f":"IF(WWTP3=\"\",\"\",WWTP3)","v":"STEU3"},{"$f":"IF(WWTP4=\"\",\"\",WWTP4)","v":"STEU4"}]
[null,null,"FEff","Moyenne annuelle du débit de l’effluent du traitement secondaire","m3/jour",null,{"$f":"+Entrées!E26","v":0},{"$f":"+Entrées!F26","v":0},{"$f":"+Entrées!G26","v":0},{"$f":"+Entrées!H26","v":0},{"$f":"Entrées!$Q$26","v":0}]
[null,null,"CBOD eff","Concentration de DBO5 dans l’effluent secondaire","mgDBO/L",null,{"$f":"+Entrées!E34","v":0},{"$f":"+Entrées!F34","v":0},{"$f":"+Entrées!G34","v":0},{"$f":"+Entrées!H34","v":0},{"$f":"Entrées!$Q$34","v":0}]
[null,null,"TOWeff","Total de matière organique de l’effluent secondaire","kgDBO/an",null,{"$f":"+G37*G38*365/1000","v":0},{"$f":"+H37*H38*365/1000","v":0},0,0]
[]
[null,null,"Total de matière organique de dérivation des eaux usées"]
[null,null,"TOWbypass = Fbypass*C BOD bypass",null,null,null,{"$f":"IF(WWTP1=\"\",\"\",WWTP1)","v":"STEU1"},{"$f":"IF(WWTP2=\"\",\"\",WWTP2)","v":"STEU2"},{"$f":"IF(WWTP3=\"\",\"\",WWTP3)","v":"STEU3"},{"$f":"IF(WWTP4=\"\",\"\",WWTP4)","v":"STEU4"}]
[null,null,"Fbypass","Moyenne annuelle du débit de dérivation du traitement secondaire","m3/jour",null,{"$f":"+Entrées!E25","v":0},{"$f":"+Entrées!F25","v":0},{"$f":"+Entrées!G25","v":0},{"$f":"+Entrées!H25","v":0},{"$f":"Entrées!$Q$25","v":0}]
[null,null,"CBOD bypass","Concentration de DBO5 de dérivation secondaire","mgDBO/L",null,{"$f":"+Entrées!E35","v":0},{"$f":"+Entrées!F35","v":0},{"$f":"+Entrées!G35","v":0},{"$f":"+Entrées!H35","v":0},{"$f":"Entrées!$Q$35","v":0}]
[null,null,"TOWbypass","Total de matière organique de dérivation secondaire","kgDBO/an",null,{"$f":"+G43*G44*365/1000","v":0},{"$f":"+H43*H44*365/1000","v":0},0,0]
[]
[null,"Étape 2 –","Estimate emissions from treatment"]
[null,null,"Q CH4_tretment =ΣtTOWt,in(1 - erem,t*αt) *EFt ",null,null,null,null,null,null,null,"Rapport d’inventaire national du Canada, 2021, Partie 2"]
[null,null,null,null,null,"TOTAL",{"$f":"IF(WWTP1=\"\",\"\",WWTP1)","v":"STEU1"},{"$f":"IF(WWTP2=\"\",\"\",WWTP2)","v":"STEU2"},{"$f":"IF(WWTP3=\"\",\"\",WWTP3)","v":"STEU3"},{"$f":"IF(WWTP4=\"\",\"\",WWTP4)","v":"STEU4"}]
[null,null,"TOWprim,in","Total de matière organique de l’influent ","kgDBO/an",null,{"$f":"+G15","v":0},{"$f":"+H15","v":0},{"$f":"+I15","v":0},{"$f":"+J15","v":0}]
[null,null,"TOWsec,in","Total de matières organiques de l’influent secondaire","kgDBO/an",null,{"$f":"+G21","v":0},{"$f":"+H21","v":0},{"$f":"+I21","v":0},{"$f":"+J21","v":0}]
[null,null,"TOWlag,ANA,in","Total des matières organiques de l’influent d'étang anaérobie","kgDBO/an",null,{"$f":"G31","v":0},{"$f":"H31","v":0},0,0]
[null,null,"TOWlag,AER,in","Total des matières organiques de l’influent d'étang aérobie/aéré","kgDBO/an",null,{"$f":"G32","v":0},0,0,0]
[null,null,"TOWlag,FAC,in","Total des matières organiques de l’influent d'étang facultatif","kgDBO/an",null,0,0,0,0]
[null,null,"erem,prim","Pourcentage d’enlèvement de DBO5 du traitement primaire","% DBO retirée",null,{"$f":"Entrées!E56","v":0.33},{"$f":"Entrées!F56","v":0.33},{"$f":"Entrées!G56","v":0.33},{"$f":"Entrées!H56","v":0.33},{"$f":"Entrées!$P$56","v":"Metcalf & Eddy, Wastewater Engineering, Treatment and Reuse, 4th Edition, 2003"}]
[null,null,"erem,sec","Pourcentage d’enlèvement de DBO5 du traitement secondaire","% DBO retirée",null,{"$f":"Entrées!E57","v":0.95},{"$f":"Entrées!F57","v":0.95},{"$f":"Entrées!G57","v":0.95},{"$f":"Entrées!H57","v":0.95},{"$f":"Entrées!$P$56","v":"Metcalf & Eddy, Wastewater Engineering, Treatment and Reuse, 4th Edition, 2003"}]
[null,null,"erem,lag,ANA","Pourcentage d’enlèvement de DBO5 des étangs anaérobies","% DBO retirée",null,{"$f":"Entrées!E58","v":0.85},{"$f":"Entrées!F58","v":0.85},{"$f":"Entrées!G58","v":0.85},{"$f":"Entrées!H58","v":0.85},{"$f":"Entrées!$P$58","v":"NIR2024, Partie 2, Tableau A3.6-14"}]
[null,null,"erem,lag,AER","Pourcentage d’enlèvement de DBO5 des étangs aérobies/aérés","% DBO retirée",null,{"$f":"Entrées!E59","v":0.85},{"$f":"Entrées!F59","v":0.85},{"$f":"Entrées!G59","v":0.85},{"$f":"Entrées!H59","v":0.85},{"$f":"Entrées!$P$59","v":"NIR2024, Partie 2, Tableau A3.6-14"}]
[null,null,"erem,lag,FAC","Pourcentage d’enlèvement de DBO5 des étangs facultatifs ou non spécifiés","% DBO retirée",null,{"$f":"Entrées!E60","v":0.85},{"$f":"Entrées!F60","v":0.85},{"$f":"Entrées!G60","v":0.85},{"$f":"Entrées!H60","v":0.85},{"$f":"Entrées!$P$60","v":"NIR2024, Partie 2, Tableau A3.6-14"}]
[null,null,"αt prim","Facteur de traitement primaire pour la quantité de DBO5 éliminée","DBOboue/DBOeauxusées",null,{"$f":"Entrées!$E$218","v":1},{"$f":"Entrées!$E$218","v":1},{"$f":"Entrées!$E$218","v":1},{"$f":"Entrées!$E$218","v":1},{"$f":"Entrées!$P$56","v":"Metcalf & Eddy, Wastewater Engineering, Treatment and Reuse, 4th Edition, 2003"}]
[null,null,"αt,sec","Facteur de traitement secondaire pour la quantité de DBO5 éliminée","DBOboue/DBOeauxusées",null,{"$f":"Entrées!$E$219","v":0.46},{"$f":"Entrées!$E$219","v":0.46},{"$f":"Entrées!$E$219","v":0.46},{"$f":"Entrées!$E$219","v":0.46},{"$f":"Entrées!$P$56","v":"Metcalf & Eddy, Wastewater Engineering, Treatment and Reuse, 4th Edition, 2003"}]
[null,null,"αt,lag,ANA","Facteur de boue d'étang anaérobie par quantité de DBO5 retirée","BoueDBO/EauxuséesDBO",null,{"$f":"Entrées!$E$220","v":0.02},{"$f":"Entrées!$E$220","v":0.02},{"$f":"Entrées!$E$220","v":0.02},{"$f":"Entrées!$E$220","v":0.02},{"$f":"Entrées!$G$220","v":"NIR 2024, Partie 2, Tableau A3.6-14"}]
[null,null,"αt,lag,AER","Facteur de boue d'étang aérobie/aéré par quantité de DBO5 retirée","BoueDBO/EauxuséesDBO",null,{"$f":"Entrées!$E$221","v":0.01},{"$f":"Entrées!$E$221","v":0.01},{"$f":"Entrées!$E$221","v":0.01},{"$f":"Entrées!$E$221","v":0.01},{"$f":"Entrées!$G$221","v":"NIR 2024, Partie 2, Tableau A3.6-14"}]
[null,null,"αt,lag,FAC","Facteur de boue d'étang facultatif ou non spécifié par quantité de DBO5 retirée","BoueDBO/EauxuséesDBO",null,{"$f":"Entrées!$E$222","v":0.01},{"$f":"Entrées!$E$222","v":0.01},{"$f":"Entrées!$E$222","v":0.01},{"$f":"Entrées!$E$222","v":0.01},{"$f":"Entrées!$G$222","v":"NIR 2024, Partie 2, Tableau A3.6-14"}]
[null,null,"EFaerobic,prim","CE pour le traitement primaire","kgCH4/kgDBO ",null,{"$f":"+Entrées!$E$223","v":3.5999999999999999E-3},{"$f":"+Entrées!$E$223","v":3.5999999999999999E-3},{"$f":"+Entrées!$E$223","v":3.5999999999999999E-3},{"$f":"+Entrées!$E$223","v":3.5999999999999999E-3},{"$f":"Entrées!$G$223","v":"NIR 2024, Partie 2, Tableau A3.6-14"}]
[null,null,"EFaerobic,sec","CE pour le traitement secondaire","kgCH4/kgDBO ",null,{"$f":"+Entrées!$E$224","v":3.5999999999999999E-3},{"$f":"+Entrées!$E$224","v":3.5999999999999999E-3},{"$f":"+Entrées!$E$224","v":3.5999999999999999E-3},{"$f":"+Entrées!$E$224","v":3.5999999999999999E-3},{"$f":"Entrées!$G$224","v":"NIR 2024, Partie 2, Tableau A3.6-14"}]
[null,null,"EFlag,ANA,sec","CE pour le traitement par étang anaérobie","kgCH4/kgDBO ",null,{"$f":"Entrées!$E$225","v":0.28799999999999998},{"$f":"Entrées!$E$225","v":0.28799999999999998},{"$f":"Entrées!$E$225","v":0.28799999999999998},{"$f":"Entrées!$E$225","v":0.28799999999999998},{"$f":"Entrées!$G$225","v":"NIR 2024, Partie 2, Tableau A3.6-14"}]
[null,null,"EFlag,AER,sec","CE pour le traitement de étang aérobie/aéré","kgCH4/kgDBO ",null,{"$f":"Entrées!$E$226","v":0},{"$f":"Entrées!$E$226","v":0},{"$f":"Entrées!$E$226","v":0},{"$f":"Entrées!$E$226","v":0},{"$f":"Entrées!$G$226","v":"NIR 2024, Partie 2, Tableau A3.6-14"}]
[null,null,"EFlag,FAC,sec","CE pour le traitement de étang facultatif ou non spécifié","kgCH4/kgDBO ",null,{"$f":"Entrées!$E$227","v":7.1999999999999995E-2},{"$f":"Entrées!$E$227","v":7.1999999999999995E-2},{"$f":"Entrées!$E$227","v":7.1999999999999995E-2},{"$f":"Entrées!$E$227","v":7.1999999999999995E-2},{"$f":"Entrées!$G$227","v":"NIR 2024, Partie 2, Tableau A3.6-14"}]
[null,null,"QCH4_prim","Émissions de CH4 provenant du traitement primaire","kgCH4/an",null,{"$f":"+G50*(1-G55*G60)*G65","v":0},{"$f":"+H50*(1-H55*H60)*H65","v":0},0,0]
[null,null,"QCH4_sec","Émissions de CH4 provenant du traitement secondaire","kgCH4/an",null,{"$f":"G51*(1-G56*G61)*G66","v":0},{"$f":"H51*(1-H56*H61)*H66","v":0},0,0]
[null,null,"QCH4_lagANA","Émissions de CH4 provenant du traitement des étangs anaérobies","kgCH4/an",null,{"$f":"G52*(1-G57*G62)*G67","v":0},0,0,0]
[null,null,"QCH4_lagAER","Émissions de CH4 provenant du traitement des étangs aérobies/aérés","kgCH4/an",null,{"$f":"G53*(1-G58*G63)*G68","v":0},0,0,0]
[null,null,"QCH4_lagFAC","Émissions de CH4 provenant du traitement des étangs facultatifs ou non spécifiés","kgCH4/an",null,{"$f":"G54*(1-G59*G64)*G69","v":0},0,0,0]
[null,null,"QCH4_treatment","Émissions de CH4 provenant du traitement","kgCH4/an",{"$f":"SUM(G75:J75)","v":0},{"$f":"SUM(G70:G74)","v":0},{"$f":"SUM(H70:H74)","v":0},0,0]
[null,null,null,null,"tCO2éq./an",{"$f":"SUM(G76:J76)","v":0},{"$f":"G75*G4/1000","v":0},{"$f":"H75*H4/1000","v":0},{"$f":"I75*I4/1000","v":0},{"$f":"J75*J4/1000","v":0}]
[]
[null,"Étape 3 –","Estimer les émissions provenant des effluents traités et des rejets de dérivation (eaux usées non traitées) dans l’environnement aquatique"]
[null,null,"Q CH4 _discharge   =(TOWeff + TOWbyp) * EF discharge",null,null,null,null,null,null,null,"Adapté de l'équation 6.1, IPCC 2019, Volume 5, Chap 6"]
[null,null,null,null,null,"TOTAL",{"$f":"IF(WWTP1=\"\",\"\",WWTP1)","v":"STEU1"},{"$f":"IF(WWTP2=\"\",\"\",WWTP2)","v":"STEU2"},{"$f":"IF(WWTP3=\"\",\"\",WWTP3)","v":"STEU3"},{"$f":"IF(WWTP4=\"\",\"\",WWTP4)","v":"STEU4"}]
[null,null,"TOWeff","Total de matière organique de l’effluent secondaire","kgDBO/an",null,{"$f":"+G39","v":0},{"$f":"+H39","v":0},{"$f":"+I39","v":0},{"$f":"+J39","v":0}]
[null,null,"TOWbypass","Total de matière organique de dérivation secondaire","kgDBO/an",null,{"$f":"+G45","v":0},{"$f":"+H45","v":0},{"$f":"+I45","v":0},{"$f":"+J45","v":0}]
[null,null,"EFdischarge","CE pour le rejet d’effluents","kgCH4/kgDBO ",null,{"$f":"IF(Entrées!$E$61=Entrées!$U$61,Entrées!$E$228,IF(Entrées!$E$61=Entrées!$U$62,Entrées!$E$229,IF(Entrées!$E$61=Entrées!$U$63,Entrées!$E$230)))","v":6.8000000000000005E-2},{"$f":"IF(Entrées!$F$61=Entrées!$U$61,Entrées!$E$228,IF(Entrées!$F$61=Entrées!$U$62,Entrées!$E$229,IF(Entrées!$F$61=Entrées!$U$63,Entrées!$E$230)))","v":6.8000000000000005E-2},{"$f":"IF(Entrées!$G$61=Entrées!$U$61,Entrées!$E$228,IF(Entrées!$G$61=Entrées!$U$62,Entrées!$E$229,IF(Entrées!$G$61=Entrées!$U$63,Entrées!$E$230)))","v":6.8000000000000005E-2},{"$f":"IF(Entrées!$H$61=Entrées!$U$61,Entrées!$E$228,IF(Entrées!$H$61=Entrées!$U$62,Entrées!$E$229,IF(Entrées!$H$61=Entrées!$U$63,Entrées!$E$230)))","v":6.8000000000000005E-2},{"$f":"Entrées!G228","v":"IPCC 2019, Tableau 6.3"}]
[null,null,"QCH4_discharge","Émissions de CH4 provenant du rejet d’effluents","kgCH4/an",{"$f":"SUM(G84:J84)","v":0},{"$f":"(G82+G81)*G83","v":0},{"$f":"(H82+H81)*H83","v":0},0,0]
[null,null,null,null,"tCO2éq./an",{"$f":"SUM(G85:J85)","v":0},{"$f":"G84*G4/1000","v":0},{"$f":"H84*H4/1000","v":0},{"$f":"I84*I4/1000","v":0},{"$f":"J84*J4/1000","v":0}]
[]
[null,"Étape 4 –","Estimer les émissions provenant de la digestion anaérobie des boues"]
[null,null,"Remarque : Les deux méthodes sont offertes pour calculer ces émissions, l’une utilise la masse des déchets organiques et l’autre le volume de gaz de digestion produit et suppose des émissions fugitives de 2,1 % selon le RIN (la valeur par défaut du GIEC est de 5 %, mais sa fourchette est de 0 à 10 %). "]
[null,null," Le GIEC fournit des valeurs mondiales, alors que le RIN devrait en théorie fournir des estimations plus précises pour les installations canadiennes.  Les deux sont incluses pour donner aux utilisateurs un choix basé sur les données dont ils disposent.  "]
[]
[null,null,"Choisir une méthode d’inventaire pour les émissions fugitives des digesteurs anaérobies",null,null,null,"Méthode 2 - NIR Canada",null,null,null,null,null,null,"Méthode 1 - GIEC"]
[null,null,null,null,null,null,null,null,null,null,null,null,null,"Méthode 2 - NIR Canada"]
[null,"Méthode 1 – GIEC","Q CH4 fugitive = (Mslud_org x EF anaerobic) x 10-3",null,null,null,null,null,null,null,{"$f":"N91","v":"Méthode 1 - GIEC"}]
[null,null,null,null,null,"TOTAL",{"$f":"IF(WWTP1=\"\",\"\",WWTP1)","v":"STEU1"},{"$f":"IF(WWTP2=\"\",\"\",WWTP2)","v":"STEU2"},{"$f":"IF(WWTP3=\"\",\"\",WWTP3)","v":"STEU3"},{"$f":"IF(WWTP4=\"\",\"\",WWTP4)","v":"STEU4"}]
[null,null,null,"Masse sèche de solides volatils primaires à la digestion","kg de boues sèches/an",null,{"$f":"+Entrées!E49","v":0},{"$f":"+Entrées!F49","v":0},{"$f":"+Entrées!G49","v":0},{"$f":"+Entrées!H49","v":0}]
[null,null,null,"Masse sèche de solides volatils secondaires à la digestion","kg de boues sèches/an",null,{"$f":"Entrées!E51","v":0},{"$f":"Entrées!F51","v":0},{"$f":"Entrées!G51","v":0},{"$f":"Entrées!H51","v":0}]
[null,null,"Mslud_org","Masse sèche de solides volatils primaires et secondaires à la digestion","kg de boues sèches/an",null,{"$f":"G95+G96","v":0},{"$f":"H95+H96","v":0},0,0]
[null,null,"EFanaerobic","CE pour la digestion anaérobie","kgCH4/kgdéchetstraités",null,{"$f":"+Entrées!$E$231","v":2},{"$f":"+Entrées!$E$231","v":2},{"$f":"+Entrées!$E$231","v":2},{"$f":"+Entrées!$E$231","v":2},{"$f":"Entrées!$G$231","v":"IPCC 2006, Vol 5, Chap 4, Tableau 4.1"}]
[null,null,"QCH4 fugitive","Émissions fugitives de CH4 du digesteur anaérobie (méthode 1)","kgCH4/an",{"$f":"SUM(G99:J99)","v":0},{"$f":"+G97*G98*10^-3","v":0},{"$f":"+H97*H98*10^-3","v":0},0,0]
[null,null,null,null,"tCO2éq./an",{"$f":"SUM(G100:J100)","v":0},{"$f":"G99*G4/1000","v":0},{"$f":"H99*H4/1000","v":0},{"$f":"I99*I4/1000","v":0},{"$f":"J99*J4/1000","v":0}]
[]
[null,null,"Q CH4 fugitive  = p * Vcap / (1-p) * CCH4  ",null,null,null,null,null,null,null,{"$f":"N92","v":"Méthode 2 - NIR Canada"}]
[null,"Méthode 2 – RIN du Canada",null,null,null,"TOTAL",{"$f":"IF(WWTP1=\"\",\"\",WWTP1)","v":"STEU1"},{"$f":"IF(WWTP2=\"\",\"\",WWTP2)","v":"STEU2"},{"$f":"IF(WWTP3=\"\",\"\",WWTP3)","v":"STEU3"},{"$f":"IF(WWTP4=\"\",\"\",WWTP4)","v":"STEU4"}]
[null,null,"p","Pourcentage d’émissions fugitives du digesteur","%",null,{"$f":"+Entrées!E70","v":2.1000000000000001E-2},{"$f":"+Entrées!F70","v":2.1000000000000001E-2},{"$f":"+Entrées!G70","v":2.1000000000000001E-2},{"$f":"+Entrées!H70","v":2.1000000000000001E-2},{"$f":"Entrées!$P$70","v":"NIR2024, Partie 2, section A3.6.2.2.1"}]
[null,null,"Vcap","Volume journalier moyen de gaz de digesteur mesuré ou capté","m3/jour",null,{"$f":"+Entrées!E64","v":0},{"$f":"+Entrées!F64","v":0},{"$f":"+Entrées!G64","v":0},{"$f":"+Entrées!H64","v":0},{"$f":"Entrées!$Q$64","v":0}]
[null,null,"VDG","Volume total annuel de gaz de digestion produit (avant les pertes fugitives)","m3/an",null,{"$f":"+G105/(1-G104)*365","v":0},{"$f":"+H105/(1-H104)*365","v":0},{"$f":"+I105/(1-I104)*365","v":0},{"$f":"+J105/(1-J104)*365","v":0}]
[null,null,"CCH4","Concentration de CH4 dans le gaz de digesteur","kgCH4/L",null,{"$f":"+Entrées!E69","v":4.2835000000000003E-4},{"$f":"+Entrées!F69","v":4.2835000000000003E-4},{"$f":"+Entrées!G69","v":4.2835000000000003E-4},{"$f":"+Entrées!H69","v":4.2835000000000003E-4},{"$f":"Entrées!$P$68","v":"Metcalf & Eddy, Wastewater Engineering, Treatment and Reuse, 4th Edition, 2003 and professional judgement"}]
[null,null,"QCH4 fugitive","Émissions fugitives de CH4 du digesteur anaérobie (méthode 2)","kgCH4/an",{"$f":"SUM(G108:J108)","v":0},{"$f":"+(G106*1000)*G107*G104","v":0},{"$f":"+(H106*1000)*H107*H104","v":0},0,0]
[null,null,null,null,"tCO2éq./an",{"$f":"SUM(G109:J109)","v":0},{"$f":"G108*G4/1000","v":0},{"$f":"H108*H4/1000","v":0},{"$f":"I108*I4/1000","v":0},{"$f":"J108*J4/1000","v":0}]
[]
[null,null,"QCH4 fugitive",{"$f":"\"Émissions fugitives de CH4 du digesteur anaérobie (méthode choisie = \"&G91&\")\"","v":"Émissions fugitives de CH4 du digesteur anaérobie (méthode choisie = Méthode 2 - NIR Canada)"},"kgCH4/an",{"$f":"SUM(G111:J111)","v":0},{"$f":"IF($G$91=$K$93,G99,G108)","v":0},0,0,0]
[null,null,null,null,"tCO2éq./an",{"$f":"SUM(G112:J112)","v":0},0,0,0,0]
[]
[null,null,null,"Émissions totales de méthane (en tant que méthane)","kgCH4/an",{"$f":"SUM(G114:J114)","v":0},{"$f":"G111+G84+G75","v":0},{"$f":"H111+H84+H75","v":0},0,0]
[null,null,null,"Émissions totales de méthane (en CO2-éq.)","tCO2éq./an",{"$f":"SUM(G115:J115)","v":0},{"$f":"G112+G85+G76","v":0},{"$f":"H112+H85+H76","v":0},0,0,{"$f":"\"Utilisation de la \"&G91&\" pour les émissions de digestion anaérobique.\"","v":"Utilisation de la Méthode 2 - NIR Canada pour les émissions de digestion anaérobique."}]
[]
[null,"ÉMISSIONS D’OXYDE NITREUX PROVENANT DES EAUX USÉES DOMESTIQUES"]
[null,"Étape 1 –","Estimer la quantité total d’azote en kgN/an dans l’influent des eaux usées et dans les effluents rejetés dans l’environnement aquatique"]
[null,null,"Azote total dans l’influent des eaux usées"]
[null,null,"TNin = Fin*C N in",null,"Unité",null,{"$f":"IF(WWTP1=\"\",\"\",WWTP1)","v":"STEU1"},{"$f":"IF(WWTP2=\"\",\"\",WWTP2)","v":"STEU2"},{"$f":"IF(WWTP3=\"\",\"\",WWTP3)","v":"STEU3"},{"$f":"IF(WWTP4=\"\",\"\",WWTP4)","v":"STEU4"},"User Notes/References"]
[null,null,"Fin","Débit moyen annuel de l’influent de la station","m3/jour",null,{"$f":"+Entrées!E23","v":0},{"$f":"+Entrées!F23","v":0},{"$f":"+Entrées!G23","v":0},{"$f":"+Entrées!H23","v":0},{"$f":"Entrées!$Q$23","v":0}]
[null,null,"CN in","Concentration moyenne d’azote total dans l’effluent d’eaux usées","mgN/L",null,{"$f":"+Entrées!E53","v":0},{"$f":"+Entrées!F53","v":0},{"$f":"+Entrées!G53","v":0},{"$f":"+Entrées!H53","v":0},{"$f":"Entrées!$Q$53","v":0}]
[null,null,"TNin","Azote total de l’influent","kgN/an",null,{"$f":"+G121*G122*365/1000","v":0},{"$f":"+H121*H122*365/1000","v":0},0,0]
[]
[null,null,"Azote total dans l’effluent d’eaux usées traitées rejeté dans l’environnement aquatique"]
[null,null,"TNeff = Feff*C N eff",null,null,null,{"$f":"IF(WWTP1=\"\",\"\",WWTP1)","v":"STEU1"},{"$f":"IF(WWTP2=\"\",\"\",WWTP2)","v":"STEU2"},{"$f":"IF(WWTP3=\"\",\"\",WWTP3)","v":"STEU3"},{"$f":"IF(WWTP4=\"\",\"\",WWTP4)","v":"STEU4"}]
[null,null,"FEff","Moyenne annuelle du débit de l’effluent du traitement secondaire","m3/jour",null,{"$f":"+Entrées!E26","v":0},{"$f":"+Entrées!F26","v":0},{"$f":"+Entrées!G26","v":0},{"$f":"+Entrées!H26","v":0},{"$f":"Entrées!$Q$26","v":0}]
[null,null,"CN eff_treat","Concentration moyenne d’azote total dans l’effluent du traitement secondaire","mgN/L",null,{"$f":"+Entrées!E54","v":0},{"$f":"+Entrées!F54","v":0},{"$f":"+Entrées!G54","v":0},{"$f":"+Entrées!H54","v":0},{"$f":"Entrées!$Q$54","v":0}]
[null,null,"TN eff_treat","Total de l’azote du traitement secondaire","kgN/an",null,{"$f":"+G127*G128*365/1000","v":0},{"$f":"+H127*H128*365/1000","v":0},0,0]
[]
[null,null,"Azote total dans l’effluent d’eaux usées non traitées (ou dérivées) rejeté dans l’environnement aquatique"]
[null,null,"TN eff_bypass = Fbypass* CN eff_bypass",null,null,null,{"$f":"IF(WWTP1=\"\",\"\",WWTP1)","v":"STEU1"},{"$f":"IF(WWTP2=\"\",\"\",WWTP2)","v":"STEU2"},{"$f":"IF(WWTP3=\"\",\"\",WWTP3)","v":"STEU3"},{"$f":"IF(WWTP4=\"\",\"\",WWTP4)","v":"STEU4"}]
[null,null,"Fbypass","Moyenne annuelle du débit de dérivation du traitement secondaire","m3/jour",null,{"$f":"+Entrées!E25","v":0},{"$f":"+Entrées!F25","v":0},{"$f":"+Entrées!G25","v":0},{"$f":"+Entrées!H25","v":0},{"$f":"Entrées!$Q$25","v":0}]
[null,null,"CN eff_bypass","Concentration moyenne d’azote total dans la dérivation du traitement secondaire","mgN/L",null,{"$f":"+Entrées!E55","v":0},{"$f":"+Entrées!F55","v":0},{"$f":"+Entrées!G55","v":0},{"$f":"+Entrées!H55","v":0},{"$f":"Entrées!$Q$55","v":0}]
[null,null,"TNeff_bypass","Total de l’azote de dérivation secondaire","kgN/an",null,{"$f":"+G133*G134*365/1000","v":0},{"$f":"+H133*H134*365/1000","v":0},0,0]
[]
[null,"Étape 2 –","Estimation des émissions du traitement "]
[null,null,"Émissions de N2O provenant des stations d’épuration des eaux usées domestiques"]
[null,null,"QN2O treatment =  TNin* EFt*(kg N2O/kg N2O-N)",null,null,null,null,null,null,null,"IPCC 2019, Volume 5, Chap 6, "]
[null,null,null,null,null,"TOTAL",{"$f":"IF(WWTP1=\"\",\"\",WWTP1)","v":"STEU1"},{"$f":"IF(WWTP2=\"\",\"\",WWTP2)","v":"STEU2"},{"$f":"IF(WWTP3=\"\",\"\",WWTP3)","v":"STEU3"},{"$f":"IF(WWTP4=\"\",\"\",WWTP4)","v":"STEU4"}]
[null,null,"TNin","Azote total de l’influent","kgN/an",null,{"$f":"+G123","v":0},{"$f":"+H123","v":0},{"$f":"+I123","v":0},{"$f":"+J123","v":0}]
[null,null,"EFaerobic ","CE pour une station d’épuration aérobie centralisée ","kgN2O-N/kgN ",null,{"$f":"+Entrées!$E$234","v":1.61E-2},{"$f":"+Entrées!$E$234","v":1.61E-2},{"$f":"+Entrées!$E$234","v":1.61E-2},{"$f":"+Entrées!$E$234","v":1.61E-2},{"$f":"Entrées!$G$234","v":"IPCC 2019 Vol 5 Chap 6 Tableau 6.8A"}]
[null,null,"QN2O treatment","Émissions de N2O provenant du traitement","kgN2O/an",{"$f":"SUM(G143:J143)","v":0},{"$f":"+G141*G142*44/28","v":0},{"$f":"+H141*H142*44/28","v":0},{"$f":"+I141*I142*44/28","v":0},{"$f":"+J141*J142*44/28","v":0}]
[null,null,null,null,"tCO2éq./an",{"$f":"SUM(G144:J144)","v":0},{"$f":"G143*G5/1000","v":0},{"$f":"H143*H5/1000","v":0},{"$f":"I143*I5/1000","v":0},{"$f":"J143*J5/1000","v":0}]
[]
[null,"Étape 3 –","Estimer les émissions de N2O provenant des effluents traités et des rejets de dérivation (eaux usées non traitées) dans l’environnement aquatique"]
[null,null,"Q N2O_discharge= ( TNeff_treat + TNeff_bypass) * EFeff_dischargeN2O *(kg N2O/kg N2O-N)",null,null,null,null,null,null,null,"Adapté de l'équation 6.7, IPCC 2019, Volume 5, Chap 6"]
[null,null,null,null,null,"TOTAL",{"$f":"IF(WWTP1=\"\",\"\",WWTP1)","v":"STEU1"},{"$f":"IF(WWTP2=\"\",\"\",WWTP2)","v":"STEU2"},{"$f":"IF(WWTP3=\"\",\"\",WWTP3)","v":"STEU3"},{"$f":"IF(WWTP4=\"\",\"\",WWTP4)","v":"STEU4"}]
[null,null,"TNeff_treat","Total de l’azote du traitement secondaire",null,null,{"$f":"+G129","v":0},{"$f":"+H129","v":0},{"$f":"+I129","v":0},{"$f":"+J129","v":0}]
[null,null,"TNeff_bypass","Total de l’azote de dérivation secondaire","kgN/an",null,{"$f":"+G135","v":0},{"$f":"+H135","v":0},{"$f":"+I135","v":0},{"$f":"+J135","v":0}]
[null,null,"EFeff_dischargeN2O","CE pour le rejet d’effluents traités","kgN2O-N/kgN ",null,{"$f":"+Entrées!$E$235","v":5.0000000000000001E-3},{"$f":"+Entrées!$E$235","v":5.0000000000000001E-3},{"$f":"+Entrées!$E$235","v":5.0000000000000001E-3},{"$f":"+Entrées!$E$235","v":5.0000000000000001E-3},{"$f":"Entrées!$G$235","v":"IPCC 2019 Vol 5 Chap 6 Tableau 6.8A"}]
[null,null,"Q N2O_discharge","Émissions de N2O provenant du rejet d’effluent","kgN2O/an",{"$f":"SUM(G152:J152)","v":0},{"$f":"(G149+G150)*G151*44/28","v":0},{"$f":"(H149+H150)*H151*44/28","v":0},0,0]
[null,null,null,null,"tCO2éq./an",{"$f":"SUM(G153:J153)","v":0},{"$f":"G152*G5/1000","v":0},{"$f":"H152*H5/1000","v":0},{"$f":"I152*I5/1000","v":0},{"$f":"J152*J5/1000","v":0}]
[]
[null,null,null,"Total des émissions d’oxyde nitreux ","kgN2O/an",{"$f":"SUM(G155:J155)","v":0},{"$f":"G152+G143","v":0},0,0,0]
[null,null,null,null,"tCO2éq./an",{"$f":"SUM(G156:J156)","v":0},0,0,0,0]

{"sheet":"Portée 1 - Combustion","index":5,"n_rows":128,"n_cols":18,"rows_kept":128,"cut":false,"hidden":false,"merged":[[120,8,120,17],[13,10,13,17],[23,10,23,17],[39,10,39,17],[118,8,118,17],[119,8,119,17],[115,2,115,3],[116,5,116,7],[104,2,104,3],[71,2,71,3],[8,2,8,4],[21,2,21,4],[33,2,33,4],[93,2,93,3],[82,2,82,3],[50,2,50,3],[59,2,59,3]]}
[null,"Portée 1 – Émissions de GES associées à la combustion"]
[]
[null,"POTENTIEL DE RÉCHAUFFEMENT PLANÉTAIRE"]
[null,null,null,"PRP du CH4 biogénique (horizon de 100 ans)","-",null,{"$f":"Entrées!$E$212","v":27},{"$f":"Entrées!$E$212","v":27},{"$f":"Entrées!$E$212","v":27},{"$f":"Entrées!$E$212","v":27},{"$f":"Entrées!$I$212","v":"AR4: IPCC 2007, Tableau 2.14, AR5: IPCC 2013, Tableau 8.7, AR6: IPCC 2021, Tableau 7.15"}]
[null,null,null,"PRP du N2O (horizon de 100 ans)","-",null,{"$f":"Entrées!$E$214","v":273},{"$f":"Entrées!$E$214","v":273},{"$f":"Entrées!$E$214","v":273},{"$f":"Entrées!$E$214","v":273},{"$f":"Entrées!$I$214","v":"AR4: IPCC 2007, Tableau 2.14, AR5: IPCC 2013, Tableau 8.7, AR6: IPCC 2021, Tableau 7.17"}]
[]
[null,"ÉMISSIONS DE COMBUSTION DU BIOGAZ DU DIGESTEUR"]
[null,"Étape 1 –","Estimation des émissions de la combustion du gaz de digesteur dans les chaudières",null,null,null,null,null,null,null,"Notes/références de l’utilisateur"]
[null,null,"EDG,boiler  = ((1-εCH4 )* fCH4 * dboiler * VDG)*GWPCH4 + (EFN2O * dboiler * VDG)*GWPN2O",null,null,null,null,null,null,null,"Adapté de Méthodologie du modèle ACV des combustibles du Canada 2020, Annexe B, Étape clé 2, Annex D (pg. 295 du PDF) "]
[null,null,null,null,"Unité","TOTAL",{"$f":"IF(WWTP1=\"\",\"\",WWTP1)","v":"STEU1"},{"$f":"IF(WWTP2=\"\",\"\",WWTP2)","v":"STEU2"},{"$f":"IF(WWTP3=\"\",\"\",WWTP3)","v":"STEU3"},{"$f":"IF(WWTP4=\"\",\"\",WWTP4)","v":"STEU4"}]
[null,null,"εCH4,boiler","Efficacité de la combustion pour les chaudières – Taux de conversion du CH4 en CO2","%",null,{"$f":"Entrées!$E$244","v":0.98},{"$f":"Entrées!$E$244","v":0.98},{"$f":"Entrées!$E$244","v":0.98},{"$f":"Entrées!$E$244","v":0.98},{"$f":"Entrées!G244","v":"Canada GHG Requirements 2023, Équation 2-19 (p. 45 du PDF)"}]
[null,null,"CCH4","Concentration de CH4 dans le gaz de digesteur","kgCH4/L",null,{"$f":"Entrées!E69","v":4.2835000000000003E-4},{"$f":"Entrées!F69","v":4.2835000000000003E-4},{"$f":"Entrées!G69","v":4.2835000000000003E-4},{"$f":"Entrées!H69","v":4.2835000000000003E-4},{"$f":"Entrées!$P$68","v":"Metcalf & Eddy, Wastewater Engineering, Treatment and Reuse, 4th Edition, 2003 and professional judgement"}]
[null,null,"fCH4","Fraction de CH4 dans le gaz de digesteur","g/m3",null,{"$f":"G12*1000000","v":428.35},{"$f":"H12*1000000","v":428.35},428.35,428.35]
[null,null,"EFN2O","CE de N2O pour la combustion des gaz de digesteur","Gaz de digesteur kgN2O/m3",null,{"$f":"Entrées!$E$243","v":1.5525244553066889E-5},{"$f":"Entrées!$E$243","v":1.5525244553066889E-5},{"$f":"Entrées!$E$243","v":1.5525244553066889E-5},{"$f":"Entrées!$E$243","v":1.5525244553066889E-5},{"$f":"Entrées!$G$242","v":"EPA Direct Emissions, 2016, Table A-4 (https://www.epa.gov/sites/production/files/2016-03/documents/stationaryemissions_3_2016.pdf)"}]
[null,null,"dboiler","Pourcentage de gaz de digesteur brûlé dans des chaudières","%",null,{"$f":"Entrées!E65","v":0},{"$f":"Entrées!F65","v":0},{"$f":"Entrées!G65","v":0},{"$f":"Entrées!H65","v":0},{"$f":"Entrées!Q65","v":0}]
[null,null,"VDG","Volume moyen annuel de gaz de digesteur produit","m3/jour",null,{"$f":"Entrées!E64","v":0},{"$f":"Entrées!F64","v":0},{"$f":"Entrées!G64","v":0},{"$f":"Entrées!H64","v":0},{"$f":"Entrées!Q64","v":0}]
[null,null,null,"Émissions de CH4 provenant de la combustion de gaz de digesteur dans les chaudières","tCH4/an",null,{"$f":"+(1-G11)*G13/(1*10^6)*(G15*365)*G16","v":0},{"$f":"+(1-H11)*H13/(1*10^6)*(H15*365)*H16","v":0},{"$f":"+(1-I11)*I13/(1*10^6)*(I15*365)*I16","v":0},{"$f":"+(1-J11)*J13/(1*10^6)*(J15*365)*J16","v":0}]
[null,null,null,"Émissions de N2O provenant de la combustion de gaz de digesteur dans les chaudières","tN2O/an",null,{"$f":"+G14*G15*(G16*365)/1000","v":0},{"$f":"+H14*H15*(H16*365)/1000","v":0},{"$f":"+I14*I15*(I16*365)/1000","v":0},{"$f":"+J14*J15*(J16*365)/1000","v":0}]
[null,null,"EDG,boiler","Émissions de la combustion du gaz de digesteur dans la chaudière","tCO2éq./an",{"$f":"SUM(G19:Q19)","v":0},{"$f":"+(G17*G4)+(G18*G5)","v":0},{"$f":"+(H17*H4)+(H18*H5)","v":0},{"$f":"+(I17*I4)+(I18*I5)","v":0},{"$f":"+(J17*J4)+(J18*J5)","v":0}]
[]
[null,"Étape 2 –","Estimation des émissions de la combustion du gaz de digesteur des dispositifs de cogénération ",null,null,null,null,null,null,null,"Notes/références de l’utilisateur"]
[null,null,"EDG,cogen  = ((1-εCH4) * fCH4 * dcogen * VDG)*GWPCH4 + (EFN2O * dcogen * VDG)*GWPN2O",null,null,null,null,null,null,null,{"$f":"K9","v":"Adapté de Méthodologie du modèle ACV des combustibles du Canada 2020, Annexe B, Étape clé 2, Annex D (pg. 295 du PDF) "}]
[null,null,null,null,"Unité","TOTAL",{"$f":"IF(WWTP1=\"\",\"\",WWTP1)","v":"STEU1"},{"$f":"IF(WWTP2=\"\",\"\",WWTP2)","v":"STEU2"},{"$f":"IF(WWTP3=\"\",\"\",WWTP3)","v":"STEU3"},{"$f":"IF(WWTP4=\"\",\"\",WWTP4)","v":"STEU4"}]
[null,null,"εCH4,cogen","Rendement de combustion pour les dispositifs de cogénération","%",null,{"$f":"Entrées!$E$245","v":0.98499999999999999},{"$f":"Entrées!$E$245","v":0.98499999999999999},{"$f":"Entrées!$E$245","v":0.98499999999999999},{"$f":"Entrées!$E$245","v":0.98499999999999999},{"$f":"Entrées!G245","v":"Willis, J. (2017) GHG Methodologies for Sewer CH4, Methanol-Use CO2, and Biogas-Combustion CH4 and their Significance for Centralized Wastewater Treatment. Queensland."}]
[null,null,"fCH4","Fraction de CH4 dans le gaz de digesteur","g/m3",null,{"$f":"G13","v":428.35},{"$f":"H13","v":428.35},{"$f":"I13","v":428.35},{"$f":"J13","v":428.35}]
[null,null,"dcogen","Gaz de digestion brûlé dans des dispositifs de cogénération","%",null,{"$f":"Entrées!E66","v":0},{"$f":"Entrées!F66","v":0},{"$f":"Entrées!G66","v":0},{"$f":"Entrées!H66","v":0},{"$f":"Entrées!Q66","v":0}]
[null,null,"VDG","Volume moyen annuel de gaz de digesteur produit","m3/jour",null,{"$f":"Entrées!E64","v":0},{"$f":"Entrées!F64","v":0},{"$f":"Entrées!G64","v":0},{"$f":"Entrées!H64","v":0}]
[null,null,"EFN2O","CE de N2O pour la combustion des gaz de digesteur","Gaz de digesteur kgN2O/m3",null,{"$f":"Entrées!$E$243","v":1.5525244553066889E-5},{"$f":"Entrées!$E$243","v":1.5525244553066889E-5},{"$f":"Entrées!$E$243","v":1.5525244553066889E-5},{"$f":"Entrées!$E$243","v":1.5525244553066889E-5},{"$f":"Entrées!$G$242","v":"EPA Direct Emissions, 2016, Table A-4 (https://www.epa.gov/sites/production/files/2016-03/documents/stationaryemissions_3_2016.pdf)"}]
[null,null,null,"Émissions de CH4 provenant de la combustion de gaz de dispositifs de cogénération","tCH4/an",null,{"$f":"+(1-G24)*G25/(1*10^6)*(G26*365)*G27","v":0},{"$f":"+(1-H24)*H25/(1*10^6)*(H26*365)*H27","v":0},0,0]
[null,null,null,"Émissions de N2O provenant de la combustion de gaz de digesteur des dispositifs de cogénération","tN2O/an",null,{"$f":"+G28*G26*(G27*365)/1000","v":0},{"$f":"+H28*H26*(H27*365)/1000","v":0},0,0]
[null,null,"EDG,cogen","Émissions de combustion des gaz de digesteur dans les dispositifs de cogénération","tCO2éq./an",{"$f":"SUM(G31:Q31)","v":0},{"$f":"+(G29*G4)+(G30*G5)","v":0},{"$f":"+(H29*H4)+(H30*H5)","v":0},{"$f":"+(I29*I4)+(I30*I5)","v":0},{"$f":"+(J29*J4)+(J30*J5)","v":0}]
[]
[null,"Étape 3 –","Estimation des émissions de la combustion du gaz de digestion du torchage",null,null,null,null,null,null,null,"Notes/références de l’utilisateur"]
[null,null,"EDG,flare  = ((1-εCH4)  * fCH4 * dflare * VDG)*GWPCH4 + (EFN2O * dflare * VDG)*GWPN2O",null,null,null,null,null,null,null,{"$f":"K9","v":"Adapté de Méthodologie du modèle ACV des combustibles du Canada 2020, Annexe B, Étape clé 2, Annex D (pg. 295 du PDF) "}]
[null,null,null,null,"Unité","TOTAL",{"$f":"IF(WWTP1=\"\",\"\",WWTP1)","v":"STEU1"},{"$f":"IF(WWTP2=\"\",\"\",WWTP2)","v":"STEU2"},{"$f":"IF(WWTP3=\"\",\"\",WWTP3)","v":"STEU3"},{"$f":"IF(WWTP4=\"\",\"\",WWTP4)","v":"STEU4"}]
[null,null,"εCH4,fl","Efficacité de la combustion pour le torchage","%",null,{"$f":"Entrées!$E$246","v":0.98},{"$f":"Entrées!$E$246","v":0.98},{"$f":"Entrées!$E$246","v":0.98},{"$f":"Entrées!$E$246","v":0.98},{"$f":"Entrées!G246","v":"US EPA AP-42, Chapter 13.5"}]
[null,null,"fCH4","Fraction de CH4 dans le gaz de digesteur ","g/m3",null,{"$f":"G13","v":428.35},{"$f":"H13","v":428.35},{"$f":"I13","v":428.35},{"$f":"J13","v":428.35}]
[null,null,"dflare","% de gaz de digestion torché","%",null,{"$f":"Entrées!E67","v":1},{"$f":"Entrées!F67","v":1},{"$f":"Entrées!G67","v":1},{"$f":"Entrées!H67","v":1},{"$f":"Entrées!Q67","v":0}]
[null,null,"VDG","Volume moyen annuel de gaz de digesteur produit","m3/jour",null,{"$f":"+Entrées!E64","v":0},{"$f":"+Entrées!F64","v":0},{"$f":"+Entrées!G64","v":0},{"$f":"+Entrées!H64","v":0}]
[null,null,"EFN2O","CE de N2O pour la combustion des gaz de digesteur","Gaz de digesteur kgN2O/m3",null,{"$f":"Entrées!$E$243","v":1.5525244553066889E-5},{"$f":"Entrées!$E$243","v":1.5525244553066889E-5},{"$f":"Entrées!$E$243","v":1.5525244553066889E-5},{"$f":"Entrées!$E$243","v":1.5525244553066889E-5},{"$f":"Entrées!$G$242","v":"EPA Direct Emissions, 2016, Table A-4 (https://www.epa.gov/sites/production/files/2016-03/documents/stationaryemissions_3_2016.pdf)"}]
[null,null,null,"Émissions de CH4 provenant de la combustion de gaz de digesteur de torchage","tCH4/an",null,{"$f":"+(1-G36)*G37/(1*10^6)*(G38*365)*G39","v":0},{"$f":"+(1-H36)*H37/(1*10^6)*(H38*365)*H39","v":0},0,0]
[null,null,null,"Émissions de N2O provenant de la combustion de gaz de digesteur de torchage","tN2O/an",null,{"$f":"+G40*(G38*365)*G39/1000","v":0},{"$f":"+H40*(H38*365)*H39/1000","v":0},0,0]
[null,null,"EDG,flare","Émissions de combustion des gaz de digesteur de torchage","tCO2éq./an",{"$f":"SUM(G43:Q43)","v":0},{"$f":"(G41*G4)+(G5*G42)","v":0},{"$f":"(H41*H4)+(H5*H42)","v":0},{"$f":"(I41*I4)+(I5*I42)","v":0},{"$f":"(J41*J4)+(J5*J42)","v":0}]
[]
[null,"Étape 4 – ","Estimation des émissions de la combustion du gaz de digesteur"]
[null,null,null,null,"Unité","TOTAL",{"$f":"IF(WWTP1=\"\",\"\",WWTP1)","v":"STEU1"},{"$f":"IF(WWTP2=\"\",\"\",WWTP2)","v":"STEU2"},{"$f":"IF(WWTP3=\"\",\"\",WWTP3)","v":"STEU3"},{"$f":"IF(WWTP4=\"\",\"\",WWTP4)","v":"STEU4"}]
[null,null,null,"Total des émissions de combustion des gaz de digesteur","tCO2éq./an",{"$f":"SUM(G47:Q47)","v":0},{"$f":"+G19+G31+G43","v":0},{"$f":"+H19+H31+H43","v":0},{"$f":"+I19+I31+I43","v":0},{"$f":"+J19+J31+J43","v":0}]
[]
[null,"INCINÉRATION DES BOUES"]
[null,"Étape 1 –","Estimation des émissions de méthane pour l’incinération des boues de biosolides",null,null,null,null,null,null,null,"Notes/références de l’utilisateur"]
[null,null,"QCH4,inc = EFCH4 * Wwet,sludge",null,null,null,null,null,null,null,"IPCC 2006 Volume 5, Chapter 5 "]
[null,null,null,null,"Unité","TOTAL",{"$f":"IF(WWTP1=\"\",\"\",WWTP1)","v":"STEU1"},{"$f":"IF(WWTP2=\"\",\"\",WWTP2)","v":"STEU2"},{"$f":"IF(WWTP3=\"\",\"\",WWTP3)","v":"STEU3"},{"$f":"IF(WWTP4=\"\",\"\",WWTP4)","v":"STEU4"}]
[null,null,"EFCH4","CE du CH4, incinération continue de boues de DSM ","gCH4/tbouehumide",null,{"$f":"Entrées!$E$249","v":9.6999999999999993},{"$f":"Entrées!$E$249","v":9.6999999999999993},{"$f":"Entrées!$E$249","v":9.6999999999999993},{"$f":"Entrées!$E$249","v":9.6999999999999993},{"$f":"Entrées!G249","v":"IPCC 2006, Vol 5 Chap 5 Section 5.4.2"}]
[null,null,null,"Quantité de biosolides secs incinérés","tbouesèche/an",null,{"$f":"IF(Entrées!E73=\"\",\"\",Entrées!E73)","v":""},{"$f":"IF(Entrées!F73=\"\",\"\",Entrées!F73)","v":""},{"$f":"IF(Entrées!G73=\"\",\"\",Entrées!G73)","v":""},{"$f":"IF(Entrées!H73=\"\",\"\",Entrées!H73)","v":""},{"$f":"Entrées!Q73","v":0}]
[null,null,null,"Pourcentage du total des solides de gâteau de biosolides","%",null,{"$f":"IF(Entrées!E74=\"\",\"\",Entrées!E74)","v":""},{"$f":"IF(Entrées!F74=\"\",\"\",Entrées!F74)","v":""},{"$f":"IF(Entrées!G74=\"\",\"\",Entrées!G74)","v":""},{"$f":"IF(Entrées!H74=\"\",\"\",Entrées!H74)","v":""},{"$f":"Entrées!Q74","v":0}]
[null,null,"Wwet,sludge","Poids humide des biosolides incinérés","tBouehumide/an",null,{"$f":"IF(OR(G55=\"\",G54=\"\"),\"\",G54/G55)","v":""},{"$f":"IF(OR(H55=\"\",H54=\"\"),\"\",H54/H55)","v":""},"",""]
[null,null,"QCH4,inc","Émissions de CH4 provenant de l’incinération des boues","tCH4/an",{"$f":"SUM(G57:P57)","v":0},{"$f":"IF(G56=\"\",\"\",G56*G53/1000000)","v":""},{"$f":"IF(H56=\"\",\"\",H56*H53/1000000)","v":""},"",""]
[]
[null,"Étape 2 –","Estimation des émissions d’oxyde nitreux pour l’incinération des boues de biosolides",null,null,null,null,null,null,null,"Notes/références de l’utilisateur"]
[null,null,"QN2O,inc = EFN2O * Wwet, sludge",null,null,null,null,null,null,null,"IPCC 2006 Volume 5, Chapter 5 "]
[null,null,null,null,"Unité","TOTAL",{"$f":"IF(WWTP1=\"\",\"\",WWTP1)","v":"STEU1"},{"$f":"IF(WWTP2=\"\",\"\",WWTP2)","v":"STEU2"},{"$f":"IF(WWTP3=\"\",\"\",WWTP3)","v":"STEU3"},{"$f":"IF(WWTP4=\"\",\"\",WWTP4)","v":"STEU4"}]
[null,null,"EFN2O,wet","CE du N2O, incinération continue des boues de DSM ","gN2O/tBouehumide",null,{"$f":"Entrées!$E$250","v":900},{"$f":"Entrées!$E$250","v":900},{"$f":"Entrées!$E$250","v":900},{"$f":"Entrées!$E$250","v":900},{"$f":"Entrées!G250","v":"IPCC 2006, Vol 5 Chap 5 Tableau 5.5"}]
[null,null,"Wwet,sludge","Poids humide des biosolides incinérés","tBouehumide/an",null,{"$f":"G56","v":""},{"$f":"H56","v":""},{"$f":"I56","v":""},""]
[null,null,"QN2O,inc","Émissions de N2O provenant de l’incinération des boues","tN2O/an",{"$f":"SUM(G64:P64)","v":0},{"$f":"IF(G63=\"\",\"\",G63*G62/1000000)","v":""},{"$f":"IF(H63=\"\",\"\",H63*H62/1000000)","v":""},{"$f":"IF(I63=\"\",\"\",I63*I62/1000000)","v":""},""]
[]
[null,"Étape 3 – ","Estimation des émissions d’oxyde nitreux pour l’incinération des boues de biosolides"]
[null,null,null,null,"Unité","TOTAL",{"$f":"IF(WWTP1=\"\",\"\",WWTP1)","v":"STEU1"},{"$f":"IF(WWTP2=\"\",\"\",WWTP2)","v":"STEU2"},{"$f":"IF(WWTP3=\"\",\"\",WWTP3)","v":"STEU3"},{"$f":"IF(WWTP4=\"\",\"\",WWTP4)","v":"STEU4"}]
[null,null,null,"Total des émissions de l’incinération des boues de biosolides","tCO2éq./an",{"$f":"SUM(G68:Q68)","v":0},{"$f":"IF(OR(G64=\"\",G57=\"\"),\"\",(G57*G4)+(G5*G64))","v":""},{"$f":"IF(OR(H64=\"\",H57=\"\"),\"\",(H57*H4)+(H5*H64))","v":""},{"$f":"IF(OR(I64=\"\",I57=\"\"),\"\",(I57*I4)+(I5*I64))","v":""},{"$f":"IF(OR(J64=\"\",J57=\"\"),\"\",(J57*J4)+(J5*J64))","v":""}]
[]
[null,"ÉMISSIONS DE LA COMBUSTION DU GAZ NATUREL"]
[null,"Étape 1 –","Estimation des émissions de la combustion du gaz naturel sur le site",null,null,"Référence"]
[null,null,"C NG = EFc * HHV * VNG",null,null,"Guideline for Greenhouse Gas Emissions Reporting, Ministry of the Environment and Climate Change, 2015"]
[null,null,null,null,"Unité","TOTAL",{"$f":"IF(WWTP1=\"\",\"\",WWTP1)","v":"STEU1"},{"$f":"IF(WWTP2=\"\",\"\",WWTP2)","v":"STEU2"},{"$f":"IF(WWTP3=\"\",\"\",WWTP3)","v":"STEU3"},{"$f":"IF(WWTP4=\"\",\"\",WWTP4)","v":"STEU4"},{"$f":"IF(WWCollection=\"\",\"\",WWCollection)","v":"Collecte"},{"$f":"IF(WTP1_=\"\",\"\",WTP1_)","v":"STE1"},{"$f":"IF(WTP2_=\"\",\"\",WTP2_)","v":"STE2"},{"$f":"IF(WTP3_=\"\",\"\",WTP3_)","v":"STE3"},{"$f":"IF(WTP4_=\"\",\"\",WTP4_)","v":"STE4"},{"$f":"IF(WDistr=\"\",\"\",WDistr)","v":"Distribution"},{"$f":"IF(SuppFac=\"\",\"\",SuppFac)","v":"Inst. sout."},"Notes/références de l’utilisateur"]
[null,null,"HHVNG","Pouvoir calorifique supérieur du gaz naturel","GJ/m3",null,{"$f":"Entrées!$E$254","v":3.7999999999999999E-2},{"$f":"Entrées!$E$254","v":3.7999999999999999E-2},{"$f":"Entrées!$E$254","v":3.7999999999999999E-2},{"$f":"Entrées!$E$254","v":3.7999999999999999E-2},{"$f":"Entrées!$E$254","v":3.7999999999999999E-2},{"$f":"Entrées!$E$254","v":3.7999999999999999E-2},{"$f":"Entrées!$E$254","v":3.7999999999999999E-2},{"$f":"Entrées!$E$254","v":3.7999999999999999E-2},{"$f":"Entrées!$E$254","v":3.7999999999999999E-2},{"$f":"Entrées!$E$254","v":3.7999999999999999E-2},{"$f":"Entrées!$E$254","v":3.7999999999999999E-2},{"$f":"Entrées!G254","v":"MECP ON.20, 2019, Table 20-1, page 96"}]
[null,null,"CICTCG,natural gas","Intensité carbone du gaz naturel – du berceau au consommateur (CTCG)","gCO2éq/MJ",null,{"$f":"Entrées!$E$255","v":15},{"$f":"Entrées!$E$255","v":15},{"$f":"Entrées!$E$255","v":15},{"$f":"Entrées!$E$255","v":15},{"$f":"Entrées!$E$255","v":15},{"$f":"Entrées!$E$255","v":15},{"$f":"Entrées!$E$255","v":15},{"$f":"Entrées!$E$255","v":15},{"$f":"Entrées!$E$255","v":15},{"$f":"Entrées!$E$255","v":15},{"$f":"Entrées!$E$255","v":15},{"$f":"Entrées!G255","v":"Canada Fuel LCA Methodology 2020, Annexe B, Tableau 1 (p.129 du PDF)"}]
[null,null,"CICTC,natural gas","Intensité carbone du gaz naturel – du berceau à la combustion (CTC)","gCO2éq/MJ",null,{"$f":"Entrées!$E$256","v":65},{"$f":"Entrées!$E$256","v":65},{"$f":"Entrées!$E$256","v":65},{"$f":"Entrées!$E$256","v":65},{"$f":"Entrées!$E$256","v":65},{"$f":"Entrées!$E$256","v":65},{"$f":"Entrées!$E$256","v":65},{"$f":"Entrées!$E$256","v":65},{"$f":"Entrées!$E$256","v":65},{"$f":"Entrées!$E$256","v":65},{"$f":"Entrées!$E$256","v":65},{"$f":"Entrées!G256","v":"Canada Fuel LCA Methodology 2020, Annexe B, Tableau 1 (p.129 du PDF)"}]
[null,null,"EFc","CE de la combustion du gaz naturel","gCO2éq/MJ",null,{"$f":"G76-G75","v":50},50,50,50,50,50,50,50,50,50,50]
[null,null,"VNG","Consommation annuelle de gaz naturel","m3/an",null,{"$f":"Entrées!E78","v":0},{"$f":"Entrées!F78","v":0},{"$f":"Entrées!G78","v":0},{"$f":"Entrées!H78","v":0},{"$f":"Entrées!I78","v":0},{"$f":"Entrées!J78","v":0},{"$f":"Entrées!K78","v":0},{"$f":"Entrées!L78","v":0},{"$f":"Entrées!M78","v":0},{"$f":"Entrées!N78","v":0},{"$f":"Entrées!O78","v":0},{"$f":"Entrées!Q78","v":0}]
[null,null,"CNG","Émissions de la combustion du gaz naturel","tCO2éq./an",{"$f":"SUM(G79:Q79)","v":0},{"$f":"G74*G78*G77/1000","v":0},{"$f":"H74*H78*H77/1000","v":0},0,0,0,0,0,0,0,0,0]
[]
[null,"ÉMISSIONS DE COMBUSTION DU MAZOUT - No. 2 (LFO) "]
[null,"Étape 1 –","Estimation des émissions de la combustion du mazout sur le site",null,null,"Référence"]
[null,null,"C LFO = EFc * HHV * VFO",null,null,"Guideline for Greenhouse Gas Emissions Reporting, Ministry of the Environment and Climate Change, 2015"]
[null,null,null,null,"Unité","TOTAL",{"$f":"IF(WWTP1=\"\",\"\",WWTP1)","v":"STEU1"},{"$f":"IF(WWTP2=\"\",\"\",WWTP2)","v":"STEU2"},{"$f":"IF(WWTP3=\"\",\"\",WWTP3)","v":"STEU3"},{"$f":"IF(WWTP4=\"\",\"\",WWTP4)","v":"STEU4"},{"$f":"IF(WWCollection=\"\",\"\",WWCollection)","v":"Collecte"},{"$f":"IF(WTP1_=\"\",\"\",WTP1_)","v":"STE1"},{"$f":"IF(WTP2_=\"\",\"\",WTP2_)","v":"STE2"},{"$f":"IF(WTP3_=\"\",\"\",WTP3_)","v":"STE3"},{"$f":"IF(WTP4_=\"\",\"\",WTP4_)","v":"STE4"},{"$f":"IF(WDistr=\"\",\"\",WDistr)","v":"Distribution"},{"$f":"IF(SuppFac=\"\",\"\",SuppFac)","v":"Inst. sout."},"Notes/références de l’utilisateur"]
[null,null,"HHVLFO","Pouvoir calorifique supérieur du mazout","GJ/m3",null,{"$f":"Entrées!$E$258","v":38.799999999999997},{"$f":"Entrées!$E$258","v":38.799999999999997},{"$f":"Entrées!$E$258","v":38.799999999999997},{"$f":"Entrées!$E$258","v":38.799999999999997},{"$f":"Entrées!$E$258","v":38.799999999999997},{"$f":"Entrées!$E$258","v":38.799999999999997},{"$f":"Entrées!$E$258","v":38.799999999999997},{"$f":"Entrées!$E$258","v":38.799999999999997},{"$f":"Entrées!$E$258","v":38.799999999999997},{"$f":"Entrées!$E$258","v":38.799999999999997},{"$f":"Entrées!$E$258","v":38.799999999999997},{"$f":"Entrées!G258","v":"MECP ON.20, 2019, Table 20-1, page 96"}]
[null,null,"CICTCG,LFO","Intensité carbone du mazout – du berceau au consommateur (CTCG)","gCO2éq/MJ",null,{"$f":"Entrées!$E$259","v":24},{"$f":"Entrées!$E$259","v":24},{"$f":"Entrées!$E$259","v":24},{"$f":"Entrées!$E$259","v":24},{"$f":"Entrées!$E$259","v":24},{"$f":"Entrées!$E$259","v":24},{"$f":"Entrées!$E$259","v":24},{"$f":"Entrées!$E$259","v":24},{"$f":"Entrées!$E$259","v":24},{"$f":"Entrées!$E$259","v":24},{"$f":"Entrées!$E$259","v":24},{"$f":"Entrées!G259","v":"Canada Fuel LCA Methodology 2020, Annexe B, Tableau 1 (p.129 du PDF)"}]
[null,null,"CICTC,LFO","Intensité carbone du mazout – du berceau à la combustion (CTC)","gCO2éq/MJ",null,{"$f":"Entrées!$E$260","v":95},{"$f":"Entrées!$E$260","v":95},{"$f":"Entrées!$E$260","v":95},{"$f":"Entrées!$E$260","v":95},{"$f":"Entrées!$E$260","v":95},{"$f":"Entrées!$E$260","v":95},{"$f":"Entrées!$E$260","v":95},{"$f":"Entrées!$E$260","v":95},{"$f":"Entrées!$E$260","v":95},{"$f":"Entrées!$E$260","v":95},{"$f":"Entrées!$E$260","v":95},{"$f":"Entrées!G260","v":"Canada Fuel LCA Methodology 2020, Annexe B, Tableau 1 (p.129 du PDF)"}]
[null,null,"EFc","CE de la combustion de mazout","gCO2éq/MJ",null,{"$f":"G87-G86","v":71},71,71,71,71,71,71,71,71,71,71]
[null,null,"VLFO","Consommation annuelle de mazout léger (n° 2)","L/an",null,{"$f":"Entrées!E79","v":0},{"$f":"Entrées!F79","v":0},{"$f":"Entrées!G79","v":0},{"$f":"Entrées!H79","v":0},{"$f":"Entrées!I79","v":0},{"$f":"Entrées!J79","v":0},{"$f":"Entrées!K79","v":0},{"$f":"Entrées!L79","v":0},{"$f":"Entrées!M79","v":0},{"$f":"Entrées!N79","v":0},{"$f":"Entrées!O79","v":0},{"$f":"Entrées!Q79","v":0}]
[null,null,"CLFO","Émissions de combustion du mazout léger","tCO2éq./an",{"$f":"SUM(G90:Q90)","v":0},{"$f":"G85*G89*G88/1000000","v":0},0,0,{"$f":"J85*J89*J88/1000000","v":0},{"$f":"K85*K89*K88/1000000","v":0},{"$f":"L85*L89*L88/1000000","v":0},{"$f":"M85*M89*M88/1000000","v":0},0,{"$f":"O85*O89*O88/1000000","v":0},{"$f":"P85*P89*P88/1000000","v":0},{"$f":"Q85*Q89*Q88/1000000","v":0}]
[]
[null,"ÉMISSIONS DE COMBUSTION DU DIESEL"]
[null,"Étape 1 –","Estimation des émissions de la combustion du diesel sur site",null,null,"Référence",null,null,null,null,null,null,null,null,null,null,null,"Notes/références de l’utilisateur"]
[null,null,"C fleet = EFc * HHV * Vfacility, diesel",null,null,"Guideline for Greenhouse Gas Emissions Reporting, Ministry of the Environment and Climate Change, 2015"]
[null,null,null,null,"Unité","TOTAL",{"$f":"IF(WWTP1=\"\",\"\",WWTP1)","v":"STEU1"},{"$f":"IF(WWTP2=\"\",\"\",WWTP2)","v":"STEU2"},{"$f":"IF(WWTP3=\"\",\"\",WWTP3)","v":"STEU3"},{"$f":"IF(WWTP4=\"\",\"\",WWTP4)","v":"STEU4"},{"$f":"IF(WWCollection=\"\",\"\",WWCollection)","v":"Collecte"},{"$f":"IF(WTP1_=\"\",\"\",WTP1_)","v":"STE1"},{"$f":"IF(WTP2_=\"\",\"\",WTP2_)","v":"STE2"},{"$f":"IF(WTP3_=\"\",\"\",WTP3_)","v":"STE3"},{"$f":"IF(WTP4_=\"\",\"\",WTP4_)","v":"STE4"},{"$f":"IF(WDistr=\"\",\"\",WDistr)","v":"Distribution"},{"$f":"IF(SuppFac=\"\",\"\",SuppFac)","v":"Inst. sout."}]
[null,null,"HHVdiesel","Pouvoir calorifique supérieur du diesel","GJ/m3",null,{"$f":"Entrées!$E$262","v":38.299999999999997},{"$f":"Entrées!$E$262","v":38.299999999999997},{"$f":"Entrées!$E$262","v":38.299999999999997},{"$f":"Entrées!$E$262","v":38.299999999999997},{"$f":"Entrées!$E$262","v":38.299999999999997},{"$f":"Entrées!$E$262","v":38.299999999999997},{"$f":"Entrées!$E$262","v":38.299999999999997},{"$f":"Entrées!$E$262","v":38.299999999999997},{"$f":"Entrées!$E$262","v":38.299999999999997},{"$f":"Entrées!$E$262","v":38.299999999999997},{"$f":"Entrées!$E$262","v":38.299999999999997},{"$f":"Entrées!G262","v":"MECP ON.20, 2019, Table 20-1, page 96"}]
[null,null,"CICTCG","Intensité carbone du diesel – du berceau au consommateur (CTCG)","gCO2éq/MJ",null,{"$f":"Entrées!$E$263","v":25},{"$f":"Entrées!$E$263","v":25},{"$f":"Entrées!$E$263","v":25},{"$f":"Entrées!$E$263","v":25},{"$f":"Entrées!$E$263","v":25},{"$f":"Entrées!$E$263","v":25},{"$f":"Entrées!$E$263","v":25},{"$f":"Entrées!$E$263","v":25},{"$f":"Entrées!$E$263","v":25},{"$f":"Entrées!$E$263","v":25},{"$f":"Entrées!$E$263","v":25},{"$f":"Entrées!G263","v":"Canada Fuel LCA Methodology 2020, Annexe B, Tableau 1 (p.129 du PDF)"}]
[null,null,"CICTC","Intensité carbone du diesel – du berceau à la combustion (CTC)","gCO2éq/MJ",null,{"$f":"Entrées!$E$264","v":96},{"$f":"Entrées!$E$264","v":96},{"$f":"Entrées!$E$264","v":96},{"$f":"Entrées!$E$264","v":96},{"$f":"Entrées!$E$264","v":96},{"$f":"Entrées!$E$264","v":96},{"$f":"Entrées!$E$264","v":96},{"$f":"Entrées!$E$264","v":96},{"$f":"Entrées!$E$264","v":96},{"$f":"Entrées!$E$264","v":96},{"$f":"Entrées!$E$264","v":96},{"$f":"Entrées!G264","v":"Canada Fuel LCA Methodology 2020, Annexe B, Tableau 1 (p.129 du PDF)"}]
[null,null,"EFc","CE de la combustion de diesel ","gCO2éq/MJ",null,{"$f":"G98-G97","v":71},{"$f":"H98-H97","v":71},71,71,71,71,71,71,71,71,71]
[null,null,"Vfacility, diesel","Volume de diesel livré à l’installation","L/an",null,{"$f":"Entrées!E80","v":0},{"$f":"Entrées!F80","v":0},{"$f":"Entrées!G80","v":0},{"$f":"Entrées!H80","v":0},{"$f":"Entrées!I80","v":0},{"$f":"Entrées!J80","v":0},{"$f":"Entrées!K80","v":0},{"$f":"Entrées!L80","v":0},{"$f":"Entrées!M80","v":0},{"$f":"Entrées!N80","v":0},{"$f":"Entrées!O80","v":0},{"$f":"Entrées!Q80","v":0}]
[null,null,"Cdiesel","Émissions de combustion du diesel","tCO2éq./an",{"$f":"SUM(G101:Q101)","v":0},{"$f":"G96*G100*G99/1000000","v":0},0,0,0,0,0,0,0,0,0,0]
[]
[null,"ÉMISSIONS DE COMBUSTION DU PROPANE"]
[null,"Étape 1 –","Estimation des émissions de la combustion du propane sur site",null,null,"Référence"]
[null,null,"C fleet = EFc * HHV * Vfacility, propane",null,null,"Guideline for Greenhouse Gas Emissions Reporting, Ministry of the Environment and Climate Change, 2015"]
[null,null,null,null,"Unité","TOTAL",{"$f":"IF(WWTP1=\"\",\"\",WWTP1)","v":"STEU1"},{"$f":"IF(WWTP2=\"\",\"\",WWTP2)","v":"STEU2"},{"$f":"IF(WWTP3=\"\",\"\",WWTP3)","v":"STEU3"},{"$f":"IF(WWTP4=\"\",\"\",WWTP4)","v":"STEU4"},{"$f":"IF(WWCollection=\"\",\"\",WWCollection)","v":"Collecte"},{"$f":"IF(WTP1_=\"\",\"\",WTP1_)","v":"STE1"},{"$f":"IF(WTP2_=\"\",\"\",WTP2_)","v":"STE2"},{"$f":"IF(WTP3_=\"\",\"\",WTP3_)","v":"STE3"},{"$f":"IF(WTP4_=\"\",\"\",WTP4_)","v":"STE4"},{"$f":"IF(WDistr=\"\",\"\",WDistr)","v":"Distribution"},{"$f":"IF(SuppFac=\"\",\"\",SuppFac)","v":"Inst. sout."},"Notes/références de l’utilisateur"]
[null,null,"HHVpropane","Pouvoir calorifique supérieur du propane","GJ/m3",null,{"$f":"Entrées!$E$266","v":25.48},{"$f":"Entrées!$E$266","v":25.48},{"$f":"Entrées!$E$266","v":25.48},{"$f":"Entrées!$E$266","v":25.48},{"$f":"Entrées!$E$266","v":25.48},{"$f":"Entrées!$E$266","v":25.48},{"$f":"Entrées!$E$266","v":25.48},{"$f":"Entrées!$E$266","v":25.48},{"$f":"Entrées!$E$266","v":25.48},{"$f":"Entrées!$E$266","v":25.48},{"$f":"Entrées!$E$266","v":25.48},{"$f":"Entrées!G266","v":"MECP ON.20, 2019, Table 20-1a, page 97"}]
[null,null,"CICTCG","Intensité carbone du propane – du berceau au consommateur (CTCG)","gCO2éq/MJ",null,{"$f":"Entrées!$E$267","v":16},{"$f":"Entrées!$E$267","v":16},{"$f":"Entrées!$E$267","v":16},{"$f":"Entrées!$E$267","v":16},{"$f":"Entrées!$E$267","v":16},{"$f":"Entrées!$E$267","v":16},{"$f":"Entrées!$E$267","v":16},{"$f":"Entrées!$E$267","v":16},{"$f":"Entrées!$E$267","v":16},{"$f":"Entrées!$E$267","v":16},{"$f":"Entrées!$E$267","v":16},{"$f":"Entrées!G267","v":"Canada Fuel LCA Methodology 2020, Annexe B, Tableau 1 (p.129 du PDF)"}]
[null,null,"CICTC","Intensité carbone du propane – du berceau à la combustion (CTC)","gCO2éq/MJ",null,{"$f":"Entrées!$E$268","v":75},{"$f":"Entrées!$E$268","v":75},{"$f":"Entrées!$E$268","v":75},{"$f":"Entrées!$E$268","v":75},{"$f":"Entrées!$E$268","v":75},{"$f":"Entrées!$E$268","v":75},{"$f":"Entrées!$E$268","v":75},{"$f":"Entrées!$E$268","v":75},{"$f":"Entrées!$E$268","v":75},{"$f":"Entrées!$E$268","v":75},{"$f":"Entrées!$E$268","v":75},{"$f":"Entrées!G268","v":"Canada Fuel LCA Methodology 2020, Annexe B, Tableau 1 (p.129 du PDF)"}]
[null,null,"EFc","CE de la combustion du propane ","gCO2éq/MJ",null,{"$f":"G109-G108","v":59},{"$f":"H109-H108","v":59},59,59,59,59,59,59,59,59,59]
[null,null,"Vfacility, propane","Volume de propane livré à l’installation","L/an",null,{"$f":"Entrées!E81","v":0},{"$f":"Entrées!F81","v":0},{"$f":"Entrées!G81","v":0},{"$f":"Entrées!H81","v":0},{"$f":"Entrées!I81","v":0},{"$f":"Entrées!J81","v":0},{"$f":"Entrées!K81","v":0},{"$f":"Entrées!L81","v":0},{"$f":"Entrées!M81","v":0},{"$f":"Entrées!N81","v":0},{"$f":"Entrées!O81","v":0},{"$f":"Entrées!Q81","v":0}]
[null,null,"Cpropane","Émissions de combustion du propane","tCO2éq./an",{"$f":"SUM(G112:Q112)","v":0},{"$f":"G107*G111*G110/1000000","v":0},0,0,0,0,0,0,0,0,0,0]
[]
[null,"ÉMISSIONS DE COMBUSTION DE LA FLOTTE DE VÉHICULES "]
[null,"Étape 1 –","Estimer les émissions de la combustion de carburant de la flotte de véhicules",null,null,null,null,null,"Référence/Source"]
[null,null,"C fleet = EFc * HHV * Vfleet",null,null,null,null,null,"Guideline for Greenhouse Gas Emissions Reporting, Ministry of the Environment and Climate Change, 2015"]
[null,null,null,null,"Unité","Valeur de l’entrée"]
[null,null,null,null,null,"DIESEL","ESSENCE","BIODIESEL"]
[null,null,"HHV","Pouvoir calorifique supérieur","GJ/m3",{"$f":"Entrées!E262","v":38.299999999999997},{"$f":"Entrées!E270","v":34.869999999999997},{"$f":"Entrées!E274","v":32.06},{"$f":"CONCATENATE(Entrées!G262,\"; \",Entrées!G270,\"; \",Entrées!G274)","v":"MECP ON.20, 2019, Table 20-1, page 96; MECP ON.20, 2019, Table 20-1a, page 96; MECP ON.20, 2019, Table 20-1, page 97"}]
[null,null,"CICTCG","Intensité carbone du carburant – du berceau au consommateur (CTCG)","gCO2éq/MJ",{"$f":"Entrées!E263","v":25},{"$f":"Entrées!E271","v":24},{"$f":"Entrées!E275","v":26.6},{"$f":"CONCATENATE(Entrées!G263,\"; \",Entrées!G271,\"; \",Entrées!G275)","v":"Canada Fuel LCA Methodology 2020, Annexe B, Tableau 1 (p.129 du PDF); Canada Fuel LCA Methodology 2020, Annexe B, Tableau 1 (p.129 du PDF); Canada Fuel LCA Methodology 2020, Annexe G, Tableau 37 - Biodiesel issu d’oléagineux (p.395 du PDF)"}]
[null,null,"CICTC","Intensité carbone du carburant – du berceau à la combustion (CTC)","gCO2éq/MJ",{"$f":"Entrées!E264","v":96},{"$f":"Entrées!E272","v":96},{"$f":"Entrées!E276","v":31},{"$f":"CONCATENATE(Entrées!G264,\"; \",Entrées!G272,\"; \",Entrées!G276)","v":"Canada Fuel LCA Methodology 2020, Annexe B, Tableau 1 (p.129 du PDF); Canada Fuel LCA Methodology 2020, Annexe B, Tableau 1 (p.129 du PDF); Canada Fuel LCA Methodology 2020, Annexe G, Tableau 37 - Biodiesel issu d’oléagineux (p.395 du PDF)"}]
[null,null,"EFc","CE de la combustion de carburant","gCO2éq/MJ",{"$f":"F121-F120","v":71},{"$f":"G121-G120","v":72},{"$f":"H121-H120","v":4.3999999999999986}]
[]
[null,null,null,"Volume annuel de carburant consommé par la flotte de véhicules","Unité","TOTAL",{"$f":"IF(WWTP1=\"\",\"\",WWTP1)","v":"STEU1"},{"$f":"IF(WWTP2=\"\",\"\",WWTP2)","v":"STEU2"},{"$f":"IF(WWTP3=\"\",\"\",WWTP3)","v":"STEU3"},{"$f":"IF(WWTP4=\"\",\"\",WWTP4)","v":"STEU4"},{"$f":"IF(WWCollection=\"\",\"\",WWCollection)","v":"Collecte"},{"$f":"IF(WTP1_=\"\",\"\",WTP1_)","v":"STE1"},{"$f":"IF(WTP2_=\"\",\"\",WTP2_)","v":"STE2"},{"$f":"IF(WTP3_=\"\",\"\",WTP3_)","v":"STE3"},{"$f":"IF(WTP4_=\"\",\"\",WTP4_)","v":"STE4"},{"$f":"IF(WDistr=\"\",\"\",WDistr)","v":"Distribution"},{"$f":"IF(SuppFac=\"\",\"\",SuppFac)","v":"Inst. sout."},"Notes/références de l’utilisateur"]
[null,null,"Vfleet, diesel","Consommation annuelle de diesel de la flotte de véhicules","L/an",null,null,null,null,null,null,null,null,null,null,null,{"$f":"Entrées!O84","v":0},{"$f":"Entrées!Q84","v":0}]
[null,null,"Vfleet, gasoline","Consommation annuelle d’essence de la flotte de véhicules","L/an",null,null,null,null,null,null,null,null,null,null,null,{"$f":"Entrées!O85","v":0},{"$f":"Entrées!Q85","v":0}]
[null,null,"Vfleet, biodiesel","Consommation annuelle de biodiesel de la flotte de véhicules","L/an",null,null,null,null,null,null,null,null,null,null,null,{"$f":"Entrées!O86","v":0},{"$f":"Entrées!Q86","v":0}]
[null,null,"Cfleet","Émissions de combustion du carburant de la flotte de véhicules","tCO2éq./an",{"$f":"SUM(G128:Q128)","v":0},null,null,null,null,null,null,null,null,null,null,{"$f":"((Q125)/1000000*$F$119*$F$122)+(Q126/1000000*$G$119*$G$122)+(Q127/1000000*$H$119*$H$122)","v":0}]

{"sheet":"Portée 2 - Électricité","index":6,"n_rows":9,"n_cols":18,"rows_kept":9,"cut":false,"hidden":false,"merged":[[4,2,4,3]]}
[null,"Portée 2 – Émissions de GES associées à la consommation d’électricité"]
[]
[null,"ÉMISSIONS DE LA CONSOMMATION D’ÉLECTRICITÉ"]
[null,"Étape 1 –","Estimer les émissions de la consommation d’électricité sur le site"]
[null,null,"Eelec = EFelec * Velec"]
[null,null,null,null,"Unit","TOTAL",{"$f":"IF(WWTP1=\"\",\"\",WWTP1)","v":"STEU1"},{"$f":"IF(WWTP2=\"\",\"\",WWTP2)","v":"STEU2"},{"$f":"IF(WWTP3=\"\",\"\",WWTP3)","v":"STEU3"},{"$f":"IF(WWTP4=\"\",\"\",WWTP4)","v":"STEU4"},{"$f":"IF(WWCollection=\"\",\"\",WWCollection)","v":"Collecte"},{"$f":"IF(WTP1_=\"\",\"\",WTP1_)","v":"STE1"},{"$f":"IF(WTP2_=\"\",\"\",WTP2_)","v":"STE2"},{"$f":"IF(WTP3_=\"\",\"\",WTP3_)","v":"STE3"},{"$f":"IF(WTP4_=\"\",\"\",WTP4_)","v":"STE4"},{"$f":"IF(WDistr=\"\",\"\",WDistr)","v":"Distribution"},{"$f":"IF(SuppFac=\"\",\"\",SuppFac)","v":"Inst. sout."},"Notes/références de l’utilisateur"]
[null,null,"EFelec","CE de la consommation d’électricité en Ontario","gCO2éq/kWh",null,{"$f":"Entrées!$E$279","v":35},{"$f":"Entrées!$E$279","v":35},{"$f":"Entrées!$E$279","v":35},{"$f":"Entrées!$E$279","v":35},{"$f":"Entrées!$E$279","v":35},{"$f":"Entrées!$E$279","v":35},{"$f":"Entrées!$E$279","v":35},{"$f":"Entrées!$E$279","v":35},{"$f":"Entrées!$E$279","v":35},{"$f":"Entrées!$E$279","v":35},{"$f":"Entrées!$E$279","v":35},{"$f":"Entrées!G279","v":"NIR 2024, Partie 3, Tableau A13-7"}]
[null,null,"Velec","Consommation annuelle d’électricité","kWh/an",null,{"$f":"Entrées!E89","v":0},{"$f":"Entrées!F89","v":0},{"$f":"Entrées!G89","v":0},{"$f":"Entrées!H89","v":0},{"$f":"Entrées!I89","v":0},{"$f":"Entrées!J89","v":0},{"$f":"Entrées!K89","v":0},{"$f":"Entrées!L89","v":0},{"$f":"Entrées!M89","v":0},{"$f":"Entrées!N89","v":0},{"$f":"Entrées!O89","v":0},{"$f":"Entrées!Q89","v":0}]
[null,null,"Eelec","Émissions de la consommation d’électricité","tCO2éq/an",{"$f":"SUM(G9:Q9)","v":0},{"$f":"G8*G7/1000000","v":0},0,0,0,0,0,0,0,0,0,0]

{"sheet":"Portée 3 - Électricité","index":7,"n_rows":11,"n_cols":18,"rows_kept":11,"cut":false,"hidden":false,"merged":[[4,2,4,3]]}
[null,"Portée 3 – Émissions de GES associées à l’électricité"]
[]
[null,"ÉMISSIONS DE L’ÉLECTRICITÉ – PORTÉE 3 – Utilisation du modèle d’ACV du secteur de l’électricité – Inventaire national "]
[null,"Étape 1 –","Estimer les émissions de la Portée 3 associées à l’électricité "]
[null,null,"Eup-elec = EFup-elec * Velec"]
[null,null,null,null,"Unit","TOTAL",{"$f":"IF(WWTP1=\"\",\"\",WWTP1)","v":"STEU1"},{"$f":"IF(WWTP2=\"\",\"\",WWTP2)","v":"STEU2"},{"$f":"IF(WWTP3=\"\",\"\",WWTP3)","v":"STEU3"},{"$f":"IF(WWTP4=\"\",\"\",WWTP4)","v":"STEU4"},{"$f":"IF(WWCollection=\"\",\"\",WWCollection)","v":"Collecte"},{"$f":"IF(WTP1_=\"\",\"\",WTP1_)","v":"STE1"},{"$f":"IF(WTP2_=\"\",\"\",WTP2_)","v":"STE2"},{"$f":"IF(WTP3_=\"\",\"\",WTP3_)","v":"STE3"},{"$f":"IF(WTP4_=\"\",\"\",WTP4_)","v":"STE4"},{"$f":"IF(WDistr=\"\",\"\",WDistr)","v":"Distribution"},{"$f":"IF(SuppFac=\"\",\"\",SuppFac)","v":"Inst. sout."},"Notes/références de l’utilisateur"]
[null,null,"EFelec","CE de l’intensité de la production d’électricité en Ontario","gCO2éq/kWh",null,{"$f":"Entrées!$E$279","v":35},{"$f":"Entrées!$E$279","v":35},{"$f":"Entrées!$E$279","v":35},{"$f":"Entrées!$E$279","v":35},{"$f":"Entrées!$E$279","v":35},{"$f":"Entrées!$E$279","v":35},{"$f":"Entrées!$E$279","v":35},{"$f":"Entrées!$E$279","v":35},{"$f":"Entrées!$E$279","v":35},{"$f":"Entrées!$E$279","v":35},{"$f":"Entrées!$E$279","v":35},{"$f":"Entrées!G279","v":"NIR 2024, Partie 3, Tableau A13-7"}]
[null,null,null,"CE du réseau basé sur l’ACV de l’Ontario","gCO2éq/kWh",null,{"$f":"Entrées!$E$280","v":42.280169999999998},{"$f":"Entrées!$E$280","v":42.280169999999998},{"$f":"Entrées!$E$280","v":42.280169999999998},{"$f":"Entrées!$E$280","v":42.280169999999998},{"$f":"Entrées!$E$280","v":42.280169999999998},{"$f":"Entrées!$E$280","v":42.280169999999998},{"$f":"Entrées!$E$280","v":42.280169999999998},{"$f":"Entrées!$E$280","v":42.280169999999998},{"$f":"Entrées!$E$280","v":42.280169999999998},{"$f":"Entrées!$E$280","v":42.280169999999998},{"$f":"Entrées!$E$280","v":42.280169999999998},{"$f":"Entrées!G280","v":"Canada Fuel LCA Model 2024"}]
[null,null,"EFup-elec","CE de l’électricité de la Portée 3 de l’Ontario ","gCO2éq/kWh",null,{"$f":"G8-G7","v":7.2801699999999983},7.2801699999999983,7.2801699999999983,7.2801699999999983,7.2801699999999983,7.2801699999999983,7.2801699999999983,7.2801699999999983,7.2801699999999983,7.2801699999999983,7.2801699999999983]
[null,null,"Velec","Consommation annuelle d’électricité","kWh/an",null,{"$f":"Entrées!E89","v":0},{"$f":"Entrées!F89","v":0},{"$f":"Entrées!G89","v":0},{"$f":"Entrées!H89","v":0},{"$f":"Entrées!I89","v":0},{"$f":"Entrées!J89","v":0},{"$f":"Entrées!K89","v":0},{"$f":"Entrées!L89","v":0},{"$f":"Entrées!M89","v":0},{"$f":"Entrées!N89","v":0},{"$f":"Entrées!O89","v":0},{"$f":"Entrées!Q89","v":0}]
[null,null,"Eup-elec","Émissions de la Portée 3 provenant de la consommation d’électricité","tCO2éq./an",{"$f":"SUM(G11:Q11)","v":0},{"$f":"G10*G9/1000000","v":0},0,0,0,0,0,0,{"$f":"N10*N9/1000000","v":0},0,0,0]

{"sheet":"Portée 3 - Combustibles","index":8,"n_rows":54,"n_cols":18,"rows_kept":54,"cut":false,"hidden":false,"merged":[[4,2,4,3],[13,2,13,3],[31,2,31,3],[46,8,46,17],[47,8,47,17],[43,2,43,3],[44,5,44,7],[22,2,22,3]]}
[null,"Portée 3 – Émissions de GES en amont associées au combustible"]
[]
[null,"ÉMISSIONS EN AMONT DU GAZ NATUREL"]
[null,"Étape 1 –","Estimation des émissions en amont du gaz naturel",null,null,null,null,null,null,null,null,null,null,null,null,null,null,"Notes/références de l’utilisateur"]
[null,null,"U NG = EFu * HHV * VNG",null,null,null,null,null,null,null,null,null,null,null,null,null,null,"Adapté de MECP ON.20"]
[null,null,null,null,"Unité","TOTAL",{"$f":"IF(WWTP1=\"\",\"\",WWTP1)","v":"STEU1"},{"$f":"IF(WWTP2=\"\",\"\",WWTP2)","v":"STEU2"},{"$f":"IF(WWTP3=\"\",\"\",WWTP3)","v":"STEU3"},{"$f":"IF(WWTP4=\"\",\"\",WWTP4)","v":"STEU4"},{"$f":"IF(WWCollection=\"\",\"\",WWCollection)","v":"Collecte"},{"$f":"IF(WTP1_=\"\",\"\",WTP1_)","v":"STE1"},{"$f":"IF(WTP2_=\"\",\"\",WTP2_)","v":"STE2"},{"$f":"IF(WTP3_=\"\",\"\",WTP3_)","v":"STE3"},{"$f":"IF(WTP4_=\"\",\"\",WTP4_)","v":"STE4"},{"$f":"IF(WDistr=\"\",\"\",WDistr)","v":"Distribution"},{"$f":"IF(SuppFac=\"\",\"\",SuppFac)","v":"Inst. sout."}]
[null,null,"HHVNG","Pouvoir calorifique supérieur du gaz naturel","GJ/m3",null,{"$f":"Entrées!$E$254","v":3.7999999999999999E-2},{"$f":"Entrées!$E$254","v":3.7999999999999999E-2},{"$f":"Entrées!$E$254","v":3.7999999999999999E-2},{"$f":"Entrées!$E$254","v":3.7999999999999999E-2},{"$f":"Entrées!$E$254","v":3.7999999999999999E-2},{"$f":"Entrées!$E$254","v":3.7999999999999999E-2},{"$f":"Entrées!$E$254","v":3.7999999999999999E-2},{"$f":"Entrées!$E$254","v":3.7999999999999999E-2},{"$f":"Entrées!$E$254","v":3.7999999999999999E-2},{"$f":"Entrées!$E$254","v":3.7999999999999999E-2},{"$f":"Entrées!$E$254","v":3.7999999999999999E-2},{"$f":"Entrées!G254","v":"MECP ON.20, 2019, Table 20-1, page 96"}]
[null,null,"EFu","Intensité carbone du gaz naturel – du berceau au consommateur (CTCG)","gCO2éq/MJ",null,{"$f":"Entrées!$E$255","v":15},{"$f":"Entrées!$E$255","v":15},{"$f":"Entrées!$E$255","v":15},{"$f":"Entrées!$E$255","v":15},{"$f":"Entrées!$E$255","v":15},{"$f":"Entrées!$E$255","v":15},{"$f":"Entrées!$E$255","v":15},{"$f":"Entrées!$E$255","v":15},{"$f":"Entrées!$E$255","v":15},{"$f":"Entrées!$E$255","v":15},{"$f":"Entrées!$E$255","v":15},{"$f":"Entrées!G255","v":"Canada Fuel LCA Methodology 2020, Annexe B, Tableau 1 (p.129 du PDF)"}]
[null,null,"VNG","Consommation annuelle de gaz naturel","m3/an",null,{"$f":"Entrées!E78","v":0},{"$f":"Entrées!F78","v":0},{"$f":"Entrées!G78","v":0},{"$f":"Entrées!H78","v":0},{"$f":"Entrées!I78","v":0},{"$f":"Entrées!J78","v":0},{"$f":"Entrées!K78","v":0},{"$f":"Entrées!L78","v":0},{"$f":"Entrées!M78","v":0},{"$f":"Entrées!N78","v":0},{"$f":"Entrées!O78","v":0},{"$f":"Entrées!Q78","v":0}]
[null,null,"UNG","Émissions en amont du gaz naturel","tCO2éq./an",{"$f":"SUM(G10:Q10)","v":0},{"$f":"G7*G9*G8/1000","v":0},{"$f":"H7*H9*H8/1000","v":0},0,0,0,0,0,0,0,0,0]
[]
[null,"ÉMISSIONS EN AMONT DE MAZOUT N° 2 (LFO)"]
[null,"Étape 1 –","Estimation des émissions en amont de LFO "]
[null,null,"U LFO = EFu * HHV * Vfleet"]
[null,null,null,null,"Unité","TOTAL",{"$f":"IF(WWTP1=\"\",\"\",WWTP1)","v":"STEU1"},{"$f":"IF(WWTP2=\"\",\"\",WWTP2)","v":"STEU2"},{"$f":"IF(WWTP3=\"\",\"\",WWTP3)","v":"STEU3"},{"$f":"IF(WWTP4=\"\",\"\",WWTP4)","v":"STEU4"},{"$f":"IF(WWCollection=\"\",\"\",WWCollection)","v":"Collecte"},{"$f":"IF(WTP1_=\"\",\"\",WTP1_)","v":"STE1"},{"$f":"IF(WTP2_=\"\",\"\",WTP2_)","v":"STE2"},{"$f":"IF(WTP3_=\"\",\"\",WTP3_)","v":"STE3"},{"$f":"IF(WTP4_=\"\",\"\",WTP4_)","v":"STE4"},{"$f":"IF(WDistr=\"\",\"\",WDistr)","v":"Distribution"},{"$f":"IF(SuppFac=\"\",\"\",SuppFac)","v":"Inst. sout."},"Notes/références de l’utilisateur"]
[null,null,"HHVLFO","Pouvoir calorifique supérieur du mazout","GJ/m3",null,{"$f":"Entrées!$E$258","v":38.799999999999997},{"$f":"Entrées!$E$258","v":38.799999999999997},{"$f":"Entrées!$E$258","v":38.799999999999997},{"$f":"Entrées!$E$258","v":38.799999999999997},{"$f":"Entrées!$E$258","v":38.799999999999997},{"$f":"Entrées!$E$258","v":38.799999999999997},{"$f":"Entrées!$E$258","v":38.799999999999997},{"$f":"Entrées!$E$258","v":38.799999999999997},{"$f":"Entrées!$E$258","v":38.799999999999997},{"$f":"Entrées!$E$258","v":38.799999999999997},{"$f":"Entrées!$E$258","v":38.799999999999997},{"$f":"Entrées!G258","v":"MECP ON.20, 2019, Table 20-1, page 96"}]
[null,null,"EFu","Intensité carbone du mazout  – du berceau au consommateur (CTCG)","gCO2éq/MJ",null,{"$f":"Entrées!$E$259","v":24},{"$f":"Entrées!$E$259","v":24},{"$f":"Entrées!$E$259","v":24},{"$f":"Entrées!$E$259","v":24},{"$f":"Entrées!$E$259","v":24},{"$f":"Entrées!$E$259","v":24},{"$f":"Entrées!$E$259","v":24},{"$f":"Entrées!$E$259","v":24},{"$f":"Entrées!$E$259","v":24},{"$f":"Entrées!$E$259","v":24},{"$f":"Entrées!$E$259","v":24},{"$f":"Entrées!G259","v":"Canada Fuel LCA Methodology 2020, Annexe B, Tableau 1 (p.129 du PDF)"}]
[null,null,"VLFO","Consommation annuelle de mazout léger (n° 2)","L/an",null,{"$f":"Entrées!E79","v":0},{"$f":"Entrées!F79","v":0},{"$f":"Entrées!G79","v":0},{"$f":"Entrées!H79","v":0},{"$f":"Entrées!I79","v":0},{"$f":"Entrées!J79","v":0},{"$f":"Entrées!K79","v":0},{"$f":"Entrées!L79","v":0},{"$f":"Entrées!M79","v":0},{"$f":"Entrées!N79","v":0},{"$f":"Entrées!O79","v":0},{"$f":"Entrées!Q79","v":0}]
[null,null,"ULFO","Émissions en amont de combustion du mazout léger","tCO2éq./an",{"$f":"SUM(G19:Q19)","v":0},{"$f":"G18/1000000*G16*G17","v":0},{"$f":"H18/1000000*H16*H17","v":0},{"$f":"I18/1000000*I16*I17","v":0},{"$f":"J18/1000000*J16*J17","v":0},{"$f":"K18/1000000*K16*K17","v":0},0,0,0,0,0,0]
[]
[null,"ÉMISSIONS EN AMONT DES GÉNÉRATRICES DIESEL"]
[null,"Étape 1 –","Estimation des émissions en amont de diesel"]
[null,null,"U fleet = EFu * HHV * Vfacility, diesel"]
[null,null,null,null,"Unité","TOTAL",{"$f":"IF(WWTP1=\"\",\"\",WWTP1)","v":"STEU1"},{"$f":"IF(WWTP2=\"\",\"\",WWTP2)","v":"STEU2"},{"$f":"IF(WWTP3=\"\",\"\",WWTP3)","v":"STEU3"},{"$f":"IF(WWTP4=\"\",\"\",WWTP4)","v":"STEU4"},{"$f":"IF(WWCollection=\"\",\"\",WWCollection)","v":"Collecte"},{"$f":"IF(WTP1_=\"\",\"\",WTP1_)","v":"STE1"},{"$f":"IF(WTP2_=\"\",\"\",WTP2_)","v":"STE2"},{"$f":"IF(WTP3_=\"\",\"\",WTP3_)","v":"STE3"},{"$f":"IF(WTP4_=\"\",\"\",WTP4_)","v":"STE4"},{"$f":"IF(WDistr=\"\",\"\",WDistr)","v":"Distribution"},{"$f":"IF(SuppFac=\"\",\"\",SuppFac)","v":"Inst. sout."},"Notes/références de l’utilisateur"]
[null,null,"HHVdiesel","Pouvoir calorifique supérieur du diesel","GJ/m3",null,{"$f":"Entrées!$E$262","v":38.299999999999997},{"$f":"Entrées!$E$262","v":38.299999999999997},{"$f":"Entrées!$E$262","v":38.299999999999997},{"$f":"Entrées!$E$262","v":38.299999999999997},{"$f":"Entrées!$E$262","v":38.299999999999997},{"$f":"Entrées!$E$262","v":38.299999999999997},{"$f":"Entrées!$E$262","v":38.299999999999997},{"$f":"Entrées!$E$262","v":38.299999999999997},{"$f":"Entrées!$E$262","v":38.299999999999997},{"$f":"Entrées!$E$262","v":38.299999999999997},{"$f":"Entrées!$E$262","v":38.299999999999997},{"$f":"Entrées!G262","v":"MECP ON.20, 2019, Table 20-1, page 96"}]
[null,null,"EFu","Intensité carbone du diesel – du berceau au consommateur (CTCG)","gCO2éq/MJ",null,{"$f":"Entrées!$E$263","v":25},{"$f":"Entrées!$E$263","v":25},{"$f":"Entrées!$E$263","v":25},{"$f":"Entrées!$E$263","v":25},{"$f":"Entrées!$E$263","v":25},{"$f":"Entrées!$E$263","v":25},{"$f":"Entrées!$E$263","v":25},{"$f":"Entrées!$E$263","v":25},{"$f":"Entrées!$E$263","v":25},{"$f":"Entrées!$E$263","v":25},{"$f":"Entrées!$E$263","v":25},{"$f":"Entrées!G263","v":"Canada Fuel LCA Methodology 2020, Annexe B, Tableau 1 (p.129 du PDF)"}]
[null,null,"Vfacility, diesel","Volume de diesel livré à l’installation","L/an",null,{"$f":"Entrées!E80","v":0},{"$f":"Entrées!F80","v":0},{"$f":"Entrées!G80","v":0},{"$f":"Entrées!H80","v":0},{"$f":"Entrées!I80","v":0},{"$f":"Entrées!J80","v":0},{"$f":"Entrées!K80","v":0},{"$f":"Entrées!L80","v":0},{"$f":"Entrées!M80","v":0},{"$f":"Entrées!N80","v":0},{"$f":"Entrées!O80","v":0},{"$f":"Entrées!Q80","v":0}]
[null,null,"Cdiesel","Émissions en amont de combustion du diesel","tCO2éq./an",{"$f":"SUM(G28:Q28)","v":0},{"$f":"((G27)/1000000*G25*G26)","v":0},{"$f":"((H27)/1000000*H25*H26)","v":0},0,0,0,0,0,0,0,0,0]
[]
[null,"ÉMISSIONS EN AMONT DU PROPANE"]
[null,"Étape 1 –","Estimation des émissions en amont de propane"]
[null,null,"U fleet = EFu * HHV * Vfacility, propane"]
[null,null,null,null,"Unité","TOTAL",{"$f":"IF(WWTP1=\"\",\"\",WWTP1)","v":"STEU1"},{"$f":"IF(WWTP2=\"\",\"\",WWTP2)","v":"STEU2"},{"$f":"IF(WWTP3=\"\",\"\",WWTP3)","v":"STEU3"},{"$f":"IF(WWTP4=\"\",\"\",WWTP4)","v":"STEU4"},{"$f":"IF(WWCollection=\"\",\"\",WWCollection)","v":"Collecte"},{"$f":"IF(WTP1_=\"\",\"\",WTP1_)","v":"STE1"},{"$f":"IF(WTP2_=\"\",\"\",WTP2_)","v":"STE2"},{"$f":"IF(WTP3_=\"\",\"\",WTP3_)","v":"STE3"},{"$f":"IF(WTP4_=\"\",\"\",WTP4_)","v":"STE4"},{"$f":"IF(WDistr=\"\",\"\",WDistr)","v":"Distribution"},{"$f":"IF(SuppFac=\"\",\"\",SuppFac)","v":"Inst. sout."},"Notes/références de l’utilisateur"]
[null,null,"HHVpropane","Pouvoir calorifique supérieur du propane","GJ/m3",null,{"$f":"Entrées!$E$266","v":25.48},{"$f":"Entrées!$E$266","v":25.48},{"$f":"Entrées!$E$266","v":25.48},{"$f":"Entrées!$E$266","v":25.48},{"$f":"Entrées!$E$266","v":25.48},{"$f":"Entrées!$E$266","v":25.48},{"$f":"Entrées!$E$266","v":25.48},{"$f":"Entrées!$E$266","v":25.48},{"$f":"Entrées!$E$266","v":25.48},{"$f":"Entrées!$E$266","v":25.48},{"$f":"Entrées!$E$266","v":25.48},{"$f":"Entrées!G266","v":"MECP ON.20, 2019, Table 20-1a, page 97"}]
[null,null,"EFu","Intensité carbone du propane – du berceau au consommateur (CTCG)","gCO2éq/MJ",null,{"$f":"Entrées!$E$267","v":16},{"$f":"Entrées!$E$267","v":16},{"$f":"Entrées!$E$267","v":16},{"$f":"Entrées!$E$267","v":16},{"$f":"Entrées!$E$267","v":16},{"$f":"Entrées!$E$267","v":16},{"$f":"Entrées!$E$267","v":16},{"$f":"Entrées!$E$267","v":16},{"$f":"Entrées!$E$267","v":16},{"$f":"Entrées!$E$267","v":16},{"$f":"Entrées!$E$267","v":16},{"$f":"Entrées!G267","v":"Canada Fuel LCA Methodology 2020, Annexe B, Tableau 1 (p.129 du PDF)"}]
[null,null,"Vfacility, propane","Volume de propane livré à l’installation","L/an",null,{"$f":"Entrées!E81","v":0},{"$f":"Entrées!F81","v":0},{"$f":"Entrées!G81","v":0},{"$f":"Entrées!H81","v":0},{"$f":"Entrées!I81","v":0},{"$f":"Entrées!J81","v":0},{"$f":"Entrées!K81","v":0},{"$f":"Entrées!L81","v":0},{"$f":"Entrées!M81","v":0},{"$f":"Entrées!N81","v":0},{"$f":"Entrées!O81","v":0},{"$f":"Entrées!Q81","v":0}]
[null,null,"Cpropane","Émissions en amont de combustion du propane","tCO2éq./an",{"$f":"SUM(G37:Q37)","v":0},{"$f":"((G36)/1000000*G34*G35)","v":0},{"$f":"((H36)/1000000*H34*H35)","v":0},{"$f":"((I36)/1000000*I34*I35)","v":0},{"$f":"((J36)/1000000*J34*J35)","v":0},{"$f":"((K36)/1000000*K34*K35)","v":0},{"$f":"((L36)/1000000*L34*L35)","v":0},{"$f":"((M36)/1000000*M34*M35)","v":0},{"$f":"((N36)/1000000*N34*N35)","v":0},{"$f":"((O36)/1000000*O34*O35)","v":0},{"$f":"((P36)/1000000*P34*P35)","v":0},{"$f":"((Q36)/1000000*Q34*Q35)","v":0}]
[]
[null,"ÉMISSIONS EN AMONT DE LA FLOTTE DE VÉHICULES"]
[null,"Remarque : Un facteur d’émission générique pour le biodiesel a été fourni et il est approprié lorsqu’une faible proportion du carburant brûlé est du biodiesel.  "]
[null,null,"Il est important de noter que si l’on utilise une quantité importante de biodiesel, il convient de rechercher un CE basé sur le type de biodiesel brûlé, car les émissions du cycle de vie peuvent varier de manière significative entre les différentes matières premières du biodiesel."]
[]
[null,"Étape 1 –","Estimation des émissions en amont de la flotte de véhicules"]
[null,null,"U fleet = EFu * HHV * Vfleet"]
[null,null,null,null,null,"Valeur de l’entrée",null,null,"Référence/Source"]
[null,null,null,null,null,"DIESEL","ESSENCE","BIODIESEL"]
[null,null,"HHV","Pouvoir calorifique supérieur","GJ/m3",{"$f":"'Portée 1 - Combustion'!F119","v":38.299999999999997},{"$f":"'Portée 1 - Combustion'!G119","v":34.869999999999997},{"$f":"'Portée 1 - Combustion'!H119","v":32.06},{"$f":"CONCATENATE(Entrées!G262,\"; \",Entrées!G270,\"; \",Entrées!G274)","v":"MECP ON.20, 2019, Table 20-1, page 96; MECP ON.20, 2019, Table 20-1a, page 96; MECP ON.20, 2019, Table 20-1, page 97"}]
[null,null,"EFu","CE en amont du carburant ","gCO2eq/MJ",{"$f":"'Portée 1 - Combustion'!F120","v":25},{"$f":"'Portée 1 - Combustion'!G120","v":24},{"$f":"'Portée 1 - Combustion'!H120","v":26.6},{"$f":"CONCATENATE(Entrées!G263,\"; \",Entrées!G271,\"; \",Entrées!G275)","v":"Canada Fuel LCA Methodology 2020, Annexe B, Tableau 1 (p.129 du PDF); Canada Fuel LCA Methodology 2020, Annexe B, Tableau 1 (p.129 du PDF); Canada Fuel LCA Methodology 2020, Annexe G, Tableau 37 - Biodiesel issu d’oléagineux (p.395 du PDF)"}]
[]
[null,null,null,"Volume annuel de carburant consommé par la flotte de véhicules","Unité","TOTAL",{"$f":"IF(WWTP1=\"\",\"\",WWTP1)","v":"STEU1"},{"$f":"IF(WWTP2=\"\",\"\",WWTP2)","v":"STEU2"},{"$f":"IF(WWTP3=\"\",\"\",WWTP3)","v":"STEU3"},{"$f":"IF(WWTP4=\"\",\"\",WWTP4)","v":"STEU4"},{"$f":"IF(WWCollection=\"\",\"\",WWCollection)","v":"Collecte"},{"$f":"IF(WTP1_=\"\",\"\",WTP1_)","v":"STE1"},{"$f":"IF(WTP2_=\"\",\"\",WTP2_)","v":"STE2"},{"$f":"IF(WTP3_=\"\",\"\",WTP3_)","v":"STE3"},{"$f":"IF(WTP4_=\"\",\"\",WTP4_)","v":"STE4"},{"$f":"IF(WDistr=\"\",\"\",WDistr)","v":"Distribution"},{"$f":"IF(SuppFac=\"\",\"\",SuppFac)","v":"Inst. sout."},"Notes/références de l’utilisateur"]
[null,null,"Vfleet, diesel","Consommation annuelle de diesel de la flotte de véhicules","L/an",null,null,null,null,null,null,null,null,null,null,null,{"$f":"Entrées!O84","v":0},{"$f":"Entrées!Q84","v":0}]
[null,null,"Vfleet, gasoline","Consommation annuelle d’essence de la flotte de véhicules","L/an",null,null,null,null,null,null,null,null,null,null,null,{"$f":"Entrées!O85","v":0},{"$f":"Entrées!Q85","v":0}]
[null,null,"Vfleet, biodiesel","Consommation annuelle de biodiesel de la flotte de véhicules","L/an",null,null,null,null,null,null,null,null,null,null,null,{"$f":"Entrées!O86","v":0},{"$f":"Entrées!Q86","v":0}]
[null,null,"Cfleet","Émissions en amont de la combustion du carburant de la flotte de véhicules","tCO2éq./an",{"$f":"SUM(G54:Q54)","v":0},null,null,null,null,null,null,null,null,null,null,{"$f":"((Q51)/1000000*$F$48*$F$47)+(Q52/1000000*$G$47*$G$48)+(Q53/1000000*$H$47*$H$48)","v":0}]

{"sheet":"Portée 3 - Biosolides","index":9,"n_rows":22,"n_cols":10,"rows_kept":22,"cut":false,"hidden":false,"merged":[[4,6,4,8]]}
[null,"Portée 3 – Émissions de GES associées à la gestion des biosolides"]
[]
[null,"ÉMISSIONS LIÉES À LA GESTION DES BIOSOLIDES HORS SITE"]
[null,"Étape 1 –","Choisir une méthode d’inventaire pour les biosolides"]
[null,null,"Approche d’inventaire pour les biosolides",null,null,null,{"$f":"Entrées!$E$95","v":"BEAM 2011"}]
[]
[null,"Étape 2 –","Estimer les émissions associées à la gestion des biosolides (BEAM)"]
[null,null,null,"Unité de procédé",null,null,{"$f":"IF(WWTP1=\"\",\"\",WWTP1)","v":"STEU1"},{"$f":"IF(WWTP2=\"\",\"\",WWTP2)","v":"STEU2"},{"$f":"IF(WWTP3=\"\",\"\",WWTP3)","v":"STEU3"},{"$f":"IF(WWTP4=\"\",\"\",WWTP4)","v":"STEU4"}]
[null,null,null,"Stabilisation alcaline","tCO2éq./an",null,{"$f":"IF($G$5=Entrées!$T$94,Entrées!E99,IF($G$5=Entrées!$T$95,Entrées!E108,\"\"))","v":0},{"$f":"IF($G$5=Entrées!$T$94,Entrées!F99,IF($G$5=Entrées!$T$95,Entrées!F108,\"\"))","v":0},{"$f":"IF($G$5=Entrées!$T$94,Entrées!G99,IF($G$5=Entrées!$T$95,Entrées!G108,\"\"))","v":0},{"$f":"IF($G$5=Entrées!$T$94,Entrées!H99,IF($G$5=Entrées!$T$95,Entrées!H108,\"\"))","v":0}]
[null,null,null,"Compostage","tCO2éq./an",null,{"$f":"IF($G$5=Entrées!$T$94,Entrées!E100,IF($G$5=Entrées!$T$95,Entrées!E109,\"\"))","v":0},{"$f":"IF($G$5=Entrées!$T$94,Entrées!F100,IF($G$5=Entrées!$T$95,Entrées!F109,\"\"))","v":0},{"$f":"IF($G$5=Entrées!$T$94,Entrées!G100,IF($G$5=Entrées!$T$95,Entrées!G109,\"\"))","v":0},{"$f":"IF($G$5=Entrées!$T$94,Entrées!H100,IF($G$5=Entrées!$T$95,Entrées!H109,\"\"))","v":0}]
[null,null,null,"Compostage 2","tCO2éq./an",null,{"$f":"IF($G$5=Entrées!$T$95,Entrées!E110,\"\")","v":""},{"$f":"IF($G$5=Entrées!$T$95,Entrées!F110,\"\")","v":""},{"$f":"IF($G$5=Entrées!$T$95,Entrées!G110,\"\")","v":""},{"$f":"IF($G$5=Entrées!$T$95,Entrées!H110,\"\")","v":""}]
[null,null,null,"Enfouissement – Typique","tCO2éq./an",null,{"$f":"IF($G$5=Entrées!$T$94,Entrées!E101,IF($G$5=Entrées!$T$95,Entrées!E111,\"\"))","v":0},{"$f":"IF($G$5=Entrées!$T$94,Entrées!F101,IF($G$5=Entrées!$T$95,Entrées!F111,\"\"))","v":0},{"$f":"IF($G$5=Entrées!$T$94,Entrées!G101,IF($G$5=Entrées!$T$95,Entrées!G111,\"\"))","v":0},{"$f":"IF($G$5=Entrées!$T$94,Entrées!H101,IF($G$5=Entrées!$T$95,Entrées!H111,\"\"))","v":0}]
[null,null,null,"Enfouissement – Pire cas","tCO2éq./an",null,{"$f":"IF($G$5=Entrées!$T$95,Entrées!E112,\"\")","v":""},{"$f":"IF($G$5=Entrées!$T$95,Entrées!F112,\"\")","v":""},{"$f":"IF($G$5=Entrées!$T$95,Entrées!G112,\"\")","v":""},{"$f":"IF($G$5=Entrées!$T$95,Entrées!H112,\"\")","v":""}]
[null,null,null,"Enfouissement – Important","tCO2éq./an",null,{"$f":"IF($G$5=Entrées!$T$95,Entrées!E113,\"\")","v":""},{"$f":"IF($G$5=Entrées!$T$95,Entrées!F113,\"\")","v":""},{"$f":"IF($G$5=Entrées!$T$95,Entrées!G113,\"\")","v":""},{"$f":"IF($G$5=Entrées!$T$95,Entrées!H113,\"\")","v":""}]
[null,null,null,"Élimination des déchets – Réglementation CA","tCO2éq./an",null,{"$f":"IF($G$5=Entrées!$T$95,Entrées!E114,\"\")","v":""},{"$f":"IF($G$5=Entrées!$T$95,Entrées!F114,\"\")","v":""},{"$f":"IF($G$5=Entrées!$T$95,Entrées!G114,\"\")","v":""},{"$f":"IF($G$5=Entrées!$T$95,Entrées!H114,\"\")","v":""}]
[null,null,null,"Combustion","tCO2éq./an",null,{"$f":"IF($G$5=Entrées!$T$94,Entrées!E102,IF($G$5=Entrées!$T$95,Entrées!E115,\"\"))","v":0},{"$f":"IF($G$5=Entrées!$T$94,Entrées!F102,IF($G$5=Entrées!$T$95,Entrées!F115,\"\"))","v":0},{"$f":"IF($G$5=Entrées!$T$94,Entrées!G102,IF($G$5=Entrées!$T$95,Entrées!G115,\"\"))","v":0},{"$f":"IF($G$5=Entrées!$T$94,Entrées!H102,IF($G$5=Entrées!$T$95,Entrées!H115,\"\"))","v":0}]
[null,null,null,"Pyrolyse","tCO2éq./an",null,{"$f":"IF($G$5=Entrées!$T$95,Entrées!E116,\"\")","v":""},{"$f":"IF($G$5=Entrées!$T$95,Entrées!F116,\"\")","v":""},{"$f":"IF($G$5=Entrées!$T$95,Entrées!G116,\"\")","v":""},{"$f":"IF($G$5=Entrées!$T$95,Entrées!H116,\"\")","v":""}]
[null,null,null,"Épandage ","tCO2éq./an",null,{"$f":"IF($G$5=Entrées!$T$94,Entrées!E103,IF($G$5=Entrées!$T$95,Entrées!E117,\"\"))","v":0},{"$f":"IF($G$5=Entrées!$T$94,Entrées!F103,IF($G$5=Entrées!$T$95,Entrées!F117,\"\"))","v":0},{"$f":"IF($G$5=Entrées!$T$94,Entrées!G103,IF($G$5=Entrées!$T$95,Entrées!G117,\"\"))","v":0},{"$f":"IF($G$5=Entrées!$T$94,Entrées!H103,IF($G$5=Entrées!$T$95,Entrées!H117,\"\"))","v":0}]
[null,null,null,"Épandage 2","tCO2éq./an",null,{"$f":"IF($G$5=Entrées!$T$95,Entrées!E118,\"\")","v":""},{"$f":"IF($G$5=Entrées!$T$95,Entrées!F118,\"\")","v":""},{"$f":"IF($G$5=Entrées!$T$95,Entrées!G118,\"\")","v":""},{"$f":"IF($G$5=Entrées!$T$95,Entrées!H118,\"\")","v":""}]
[null,null,null,"Émissions diverses","tCO2éq./an",null,{"$f":"IF($G$5=Entrées!$T$95,Entrées!E119,\"\")","v":""},{"$f":"IF($G$5=Entrées!$T$95,Entrées!F119,\"\")","v":""},{"$f":"IF($G$5=Entrées!$T$95,Entrées!G119,\"\")","v":""},{"$f":"IF($G$5=Entrées!$T$95,Entrées!H119,\"\")","v":""}]
[null,null,null,"Transport","tCO2éq./an",null,{"$f":"IF($G$5=Entrées!$T$94,Entrées!E104,IF($G$5=Entrées!$T$95,Entrées!E120,\"\"))","v":0},{"$f":"IF($G$5=Entrées!$T$94,Entrées!F104,IF($G$5=Entrées!$T$95,Entrées!F120,\"\"))","v":0},{"$f":"IF($G$5=Entrées!$T$94,Entrées!G104,IF($G$5=Entrées!$T$95,Entrées!G120,\"\"))","v":0},{"$f":"IF($G$5=Entrées!$T$94,Entrées!H104,IF($G$5=Entrées!$T$95,Entrées!H120,\"\"))","v":0}]
[null,null,null,"Total des émissions liées à la gestion des biosolides","tCO2éq./an",{"$f":"SUM(G22:J22)","v":0},{"$f":"SUM(G9:G21)","v":0},{"$f":"SUM(H9:H21)","v":0},0,0]

{"sheet":"Portée 3 - Produits chimiques","index":10,"n_rows":166,"n_cols":19,"rows_kept":166,"cut":false,"hidden":false,"merged":[[5,2,5,3],[74,2,74,3]]}
[null,"Portée 3 – Émissions de GES associées à la consommation de produits chimiques",null,null,null,null,null,null,null,null,null,null,null,null,null,null,null,null,"NE PAS SUPPRIMER OU MODIFIER LES CELLULES DANS LES COLONNES AU-DELÀ DE LA COLONNE BLEUE. ELLES SONT UTILISÉES COMME CALCULS INTERNES POUR LE FORMATAGE ET LES LISTES."]
[null,null,null,null,null,null,null,null,null,null,null,null,null,null,null,null,null,null,"LES COLONNES AU-DELÀ DE LA COLONNE BLEUE NE DOIVENT PAS ÊTRE IMPRIMÉES POUR LES SORTIES."]
[null,"Remarque :","Veuillez vous référer au Guide de l’utilisateur pour obtenir des conseils sur les approches permettant d’estimer les émissions des produits chimiques."]
[null,"ÉMISSIONS DE LA CONSOMMATION DE PRODUITS CHIMIQUES"]
[null,"Étape 1 –","Estimer les émissions associées à la production de produits chimiques",null,null,null,null,null,null,null,null,null,null,null,null,null,null,null,{"$f":"TRUE","v":true}]
[null,null,"Echem = EFchem * Mchem",null,null,null,null,null,null,null,null,null,null,null,null,null,null,null,{"$f":"TRUE","v":true}]
[null,null,null,null,"Unité","Valeur de l’entrée","Notes/références de l’utilisateur",null,null,null,null,null,null,null,null,null,null,null,{"$f":"TRUE","v":true}]
[null,null,"EFchem","CE des émissions de produits chimiques"]
[null,null,null,{"$f":"Entrées!C124","v":"Produit chimique 1"},"kgCO2éq./kg",{"$f":"Entrées!E288","v":0},{"$f":"Entrées!G288","v":0},null,null,null,null,null,null,null,null,null,null,null,{"$f":"Entrées!T124","v":false}]
[null,null,null,{"$f":"Entrées!C125","v":"Produit chimique 2"},"kgCO2éq./kg",{"$f":"Entrées!E289","v":0},{"$f":"Entrées!G289","v":0},null,null,null,null,null,null,null,null,null,null,null,{"$f":"Entrées!T125","v":false}]
[null,null,null,{"$f":"Entrées!C126","v":"Produit chimique 3"},"kgCO2éq./kg",{"$f":"Entrées!E290","v":0},{"$f":"Entrées!G290","v":0},null,null,null,null,null,null,null,null,null,null,null,{"$f":"Entrées!T126","v":false}]
[null,null,null,{"$f":"Entrées!C127","v":"Produit chimique 4"},"kgCO2éq./kg",{"$f":"Entrées!E291","v":0},{"$f":"Entrées!G291","v":0},null,null,null,null,null,null,null,null,null,null,null,{"$f":"Entrées!T127","v":false}]
[null,null,null,{"$f":"Entrées!C128","v":"Produit chimique 5"},"kgCO2éq./kg",{"$f":"Entrées!E292","v":0},{"$f":"Entrées!G292","v":0},null,null,null,null,null,null,null,null,null,null,null,{"$f":"Entrées!T128","v":false}]
[null,null,null,{"$f":"Entrées!C129","v":"Produit chimique 6"},"kgCO2éq./kg",{"$f":"Entrées!E293","v":0},{"$f":"Entrées!G293","v":0},null,null,null,null,null,null,null,null,null,null,null,{"$f":"Entrées!T129","v":false}]
[null,null,null,{"$f":"Entrées!C130","v":"Produit chimique 7"},"kgCO2éq./kg",{"$f":"Entrées!E294","v":0},{"$f":"Entrées!G294","v":0},null,null,null,null,null,null,null,null,null,null,null,{"$f":"Entrées!T130","v":false}]
[null,null,null,{"$f":"Entrées!C131","v":"Produit chimique 8"},"kgCO2éq./kg",{"$f":"Entrées!E295","v":0},{"$f":"Entrées!G295","v":0},null,null,null,null,null,null,null,null,null,null,null,{"$f":"Entrées!T131","v":false}]
[null,null,null,{"$f":"Entrées!C132","v":"Produit chimique 9"},"kgCO2éq./kg",{"$f":"Entrées!E296","v":0},{"$f":"Entrées!G296","v":0},null,null,null,null,null,null,null,null,null,null,null,{"$f":"Entrées!T132","v":false}]
[null,null,null,{"$f":"Entrées!C133","v":"Produit chimique 10"},"kgCO2éq./kg",{"$f":"Entrées!E297","v":0},{"$f":"Entrées!G297","v":0},null,null,null,null,null,null,null,null,null,null,null,{"$f":"Entrées!T133","v":false}]
[null,null,null,{"$f":"Entrées!C134","v":"Produit chimique 11"},"kgCO2éq./kg",{"$f":"Entrées!E298","v":0},{"$f":"Entrées!G298","v":0},null,null,null,null,null,null,null,null,null,null,null,{"$f":"Entrées!T134","v":false}]
[null,null,null,{"$f":"Entrées!C135","v":"Produit chimique 12"},"kgCO2éq./kg",{"$f":"Entrées!E299","v":0},{"$f":"Entrées!G299","v":0},null,null,null,null,null,null,null,null,null,null,null,{"$f":"Entrées!T135","v":false}]
[null,null,null,{"$f":"Entrées!C136","v":"Produit chimique 13"},"kgCO2éq./kg",{"$f":"Entrées!E300","v":0},{"$f":"Entrées!G300","v":0},null,null,null,null,null,null,null,null,null,null,null,{"$f":"Entrées!T136","v":false}]
[null,null,null,{"$f":"Entrées!C137","v":"Produit chimique 14"},"kgCO2éq./kg",{"$f":"Entrées!E301","v":0},{"$f":"Entrées!G301","v":0},null,null,null,null,null,null,null,null,null,null,null,{"$f":"Entrées!T137","v":false}]
[null,null,null,{"$f":"Entrées!C138","v":"Produit chimique 15"},"kgCO2éq./kg",{"$f":"Entrées!E302","v":0},{"$f":"Entrées!G302","v":0},null,null,null,null,null,null,null,null,null,null,null,{"$f":"Entrées!T138","v":false}]
[null,null,null,{"$f":"Entrées!C139","v":"Produit chimique 16"},"kgCO2éq./kg",{"$f":"Entrées!E303","v":0},{"$f":"Entrées!G303","v":0},null,null,null,null,null,null,null,null,null,null,null,{"$f":"Entrées!T139","v":false}]
[null,null,null,{"$f":"Entrées!C140","v":"Produit chimique 17"},"kgCO2éq./kg",{"$f":"Entrées!E304","v":0},{"$f":"Entrées!G304","v":0},null,null,null,null,null,null,null,null,null,null,null,{"$f":"Entrées!T140","v":false}]
[null,null,null,{"$f":"Entrées!C141","v":"Produit chimique 18"},"kgCO2éq./kg",{"$f":"Entrées!E305","v":0},{"$f":"Entrées!G305","v":0},null,null,null,null,null,null,null,null,null,null,null,{"$f":"Entrées!T141","v":false}]
[null,null,null,{"$f":"Entrées!C142","v":"Produit chimique 19"},"kgCO2éq./kg",{"$f":"Entrées!E306","v":0},{"$f":"Entrées!G306","v":0},null,null,null,null,null,null,null,null,null,null,null,{"$f":"Entrées!T142","v":false}]
[null,null,null,{"$f":"Entrées!C143","v":"Produit chimique 20"},"kgCO2éq./kg",{"$f":"Entrées!E307","v":0},{"$f":"Entrées!G307","v":0},null,null,null,null,null,null,null,null,null,null,null,{"$f":"Entrées!T143","v":false}]
[null,null,null,null,null,null,null,null,null,null,null,null,null,null,null,null,null,null,{"$f":"TRUE","v":true}]
[null,null,"Mchem","Masse annuelle de produits chimiques consommés ",null,"TOTAL",{"$f":"IF(WWTP1=\"\",\"\",WWTP1)","v":"STEU1"},{"$f":"IF(WWTP2=\"\",\"\",WWTP2)","v":"STEU2"},{"$f":"IF(WWTP3=\"\",\"\",WWTP3)","v":"STEU3"},{"$f":"IF(WWTP4=\"\",\"\",WWTP4)","v":"STEU4"},{"$f":"IF(WWCollection=\"\",\"\",WWCollection)","v":"Collecte"},{"$f":"IF(WTP1_=\"\",\"\",WTP1_)","v":"STE1"},{"$f":"IF(WTP2_=\"\",\"\",WTP2_)","v":"STE2"},{"$f":"IF(WTP3_=\"\",\"\",WTP3_)","v":"STE3"},{"$f":"IF(WTP4_=\"\",\"\",WTP4_)","v":"STE4"},{"$f":"IF(WDistr=\"\",\"\",WDistr)","v":"Distribution"},{"$f":"IF(SuppFac=\"\",\"\",SuppFac)","v":"Inst. sout."},null,{"$f":"TRUE","v":true}]
[null,null,null,{"$f":"Entrées!C124","v":"Produit chimique 1"},"kg/an",null,{"$f":"IF(Entrées!E124=\"\",\"\",Entrées!E124)","v":""},{"$f":"IF(Entrées!F124=\"\",\"\",Entrées!F124)","v":""},{"$f":"IF(Entrées!G124=\"\",\"\",Entrées!G124)","v":""},{"$f":"IF(Entrées!H124=\"\",\"\",Entrées!H124)","v":""},{"$f":"IF(Entrées!I124=\"\",\"\",Entrées!I124)","v":""},{"$f":"IF(Entrées!J124=\"\",\"\",Entrées!J124)","v":""},{"$f":"IF(Entrées!K124=\"\",\"\",Entrées!K124)","v":""},{"$f":"IF(Entrées!L124=\"\",\"\",Entrées!L124)","v":""},{"$f":"IF(Entrées!M124=\"\",\"\",Entrées!M124)","v":""},{"$f":"IF(Entrées!N124=\"\",\"\",Entrées!N124)","v":""},{"$f":"IF(Entrées!O124=\"\",\"\",Entrées!O124)","v":""},null,{"$f":"Entrées!T124","v":false}]
[null,null,null,{"$f":"Entrées!C125","v":"Produit chimique 2"},"kg/an",null,{"$f":"IF(Entrées!E125=\"\",\"\",Entrées!E125)","v":""},{"$f":"IF(Entrées!F125=\"\",\"\",Entrées!F125)","v":""},{"$f":"IF(Entrées!G125=\"\",\"\",Entrées!G125)","v":""},{"$f":"IF(Entrées!H125=\"\",\"\",Entrées!H125)","v":""},{"$f":"IF(Entrées!I125=\"\",\"\",Entrées!I125)","v":""},{"$f":"IF(Entrées!J125=\"\",\"\",Entrées!J125)","v":""},{"$f":"IF(Entrées!K125=\"\",\"\",Entrées!K125)","v":""},{"$f":"IF(Entrées!L125=\"\",\"\",Entrées!L125)","v":""},{"$f":"IF(Entrées!M125=\"\",\"\",Entrées!M125)","v":""},{"$f":"IF(Entrées!N125=\"\",\"\",Entrées!N125)","v":""},{"$f":"IF(Entrées!O125=\"\",\"\",Entrées!O125)","v":""},null,{"$f":"Entrées!T125","v":false}]
[null,null,null,{"$f":"Entrées!C126","v":"Produit chimique 3"},"kg/an",null,{"$f":"IF(Entrées!E126=\"\",\"\",Entrées!E126)","v":""},{"$f":"IF(Entrées!F126=\"\",\"\",Entrées!F126)","v":""},{"$f":"IF(Entrées!G126=\"\",\"\",Entrées!G126)","v":""},{"$f":"IF(Entrées!H126=\"\",\"\",Entrées!H126)","v":""},{"$f":"IF(Entrées!I126=\"\",\"\",Entrées!I126)","v":""},{"$f":"IF(Entrées!J126=\"\",\"\",Entrées!J126)","v":""},{"$f":"IF(Entrées!K126=\"\",\"\",Entrées!K126)","v":""},{"$f":"IF(Entrées!L126=\"\",\"\",Entrées!L126)","v":""},{"$f":"IF(Entrées!M126=\"\",\"\",Entrées!M126)","v":""},{"$f":"IF(Entrées!N126=\"\",\"\",Entrées!N126)","v":""},{"$f":"IF(Entrées!O126=\"\",\"\",Entrées!O126)","v":""},null,{"$f":"Entrées!T126","v":false}]
[null,null,null,{"$f":"Entrées!C127","v":"Produit chimique 4"},"kg/an",null,{"$f":"IF(Entrées!E127=\"\",\"\",Entrées!E127)","v":""},{"$f":"IF(Entrées!F127=\"\",\"\",Entrées!F127)","v":""},{"$f":"IF(Entrées!G127=\"\",\"\",Entrées!G127)","v":""},{"$f":"IF(Entrées!H127=\"\",\"\",Entrées!H127)","v":""},{"$f":"IF(Entrées!I127=\"\",\"\",Entrées!I127)","v":""},{"$f":"IF(Entrées!J127=\"\",\"\",Entrées!J127)","v":""},{"$f":"IF(Entrées!K127=\"\",\"\",Entrées!K127)","v":""},{"$f":"IF(Entrées!L127=\"\",\"\",Entrées!L127)","v":""},{"$f":"IF(Entrées!M127=\"\",\"\",Entrées!M127)","v":""},{"$f":"IF(Entrées!N127=\"\",\"\",Entrées!N127)","v":""},{"$f":"IF(Entrées!O127=\"\",\"\",Entrées!O127)","v":""},null,{"$f":"Entrées!T127","v":false}]
[null,null,null,{"$f":"Entrées!C128","v":"Produit chimique 5"},"kg/an",null,{"$f":"IF(Entrées!E128=\"\",\"\",Entrées!E128)","v":""},{"$f":"IF(Entrées!F128=\"\",\"\",Entrées!F128)","v":""},{"$f":"IF(Entrées!G128=\"\",\"\",Entrées!G128)","v":""},{"$f":"IF(Entrées!H128=\"\",\"\",Entrées!H128)","v":""},{"$f":"IF(Entrées!I128=\"\",\"\",Entrées!I128)","v":""},{"$f":"IF(Entrées!J128=\"\",\"\",Entrées!J128)","v":""},{"$f":"IF(Entrées!K128=\"\",\"\",Entrées!K128)","v":""},{"$f":"IF(Entrées!L128=\"\",\"\",Entrées!L128)","v":""},{"$f":"IF(Entrées!M128=\"\",\"\",Entrées!M128)","v":""},{"$f":"IF(Entrées!N128=\"\",\"\",Entrées!N128)","v":""},{"$f":"IF(Entrées!O128=\"\",\"\",Entrées!O128)","v":""},null,{"$f":"Entrées!T128","v":false}]
[null,null,null,{"$f":"Entrées!C129","v":"Produit chimique 6"},"kg/an",null,{"$f":"IF(Entrées!E129=\"\",\"\",Entrées!E129)","v":""},{"$f":"IF(Entrées!F129=\"\",\"\",Entrées!F129)","v":""},{"$f":"IF(Entrées!G129=\"\",\"\",Entrées!G129)","v":""},{"$f":"IF(Entrées!H129=\"\",\"\",Entrées!H129)","v":""},{"$f":"IF(Entrées!I129=\"\",\"\",Entrées!I129)","v":""},{"$f":"IF(Entrées!J129=\"\",\"\",Entrées!J129)","v":""},{"$f":"IF(Entrées!K129=\"\",\"\",Entrées!K129)","v":""},{"$f":"IF(Entrées!L129=\"\",\"\",Entrées!L129)","v":""},{"$f":"IF(Entrées!M129=\"\",\"\",Entrées!M129)","v":""},{"$f":"IF(Entrées!N129=\"\",\"\",Entrées!N129)","v":""},{"$f":"IF(Entrées!O129=\"\",\"\",Entrées!O129)","v":""},null,{"$f":"Entrées!T129","v":false}]
[null,null,null,{"$f":"Entrées!C130","v":"Produit chimique 7"},"kg/an",null,{"$f":"IF(Entrées!E130=\"\",\"\",Entrées!E130)","v":""},{"$f":"IF(Entrées!F130=\"\",\"\",Entrées!F130)","v":""},{"$f":"IF(Entrées!G130=\"\",\"\",Entrées!G130)","v":""},{"$f":"IF(Entrées!H130=\"\",\"\",Entrées!H130)","v":""},{"$f":"IF(Entrées!I130=\"\",\"\",Entrées!I130)","v":""},{"$f":"IF(Entrées!J130=\"\",\"\",Entrées!J130)","v":""},{"$f":"IF(Entrées!K130=\"\",\"\",Entrées!K130)","v":""},{"$f":"IF(Entrées!L130=\"\",\"\",Entrées!L130)","v":""},{"$f":"IF(Entrées!M130=\"\",\"\",Entrées!M130)","v":""},{"$f":"IF(Entrées!N130=\"\",\"\",Entrées!N130)","v":""},{"$f":"IF(Entrées!O130=\"\",\"\",Entrées!O130)","v":""},null,{"$f":"Entrées!T130","v":false}]
[null,null,null,{"$f":"Entrées!C131","v":"Produit chimique 8"},"kg/an",null,{"$f":"IF(Entrées!E131=\"\",\"\",Entrées!E131)","v":""},{"$f":"IF(Entrées!F131=\"\",\"\",Entrées!F131)","v":""},{"$f":"IF(Entrées!G131=\"\",\"\",Entrées!G131)","v":""},{"$f":"IF(Entrées!H131=\"\",\"\",Entrées!H131)","v":""},{"$f":"IF(Entrées!I131=\"\",\"\",Entrées!I131)","v":""},{"$f":"IF(Entrées!J131=\"\",\"\",Entrées!J131)","v":""},{"$f":"IF(Entrées!K131=\"\",\"\",Entrées!K131)","v":""},{"$f":"IF(Entrées!L131=\"\",\"\",Entrées!L131)","v":""},{"$f":"IF(Entrées!M131=\"\",\"\",Entrées!M131)","v":""},{"$f":"IF(Entrées!N131=\"\",\"\",Entrées!N131)","v":""},{"$f":"IF(Entrées!O131=\"\",\"\",Entrées!O131)","v":""},null,{"$f":"Entrées!T131","v":false}]
[null,null,null,{"$f":"Entrées!C132","v":"Produit chimique 9"},"kg/an",null,{"$f":"IF(Entrées!E132=\"\",\"\",Entrées!E132)","v":""},{"$f":"IF(Entrées!F132=\"\",\"\",Entrées!F132)","v":""},{"$f":"IF(Entrées!G132=\"\",\"\",Entrées!G132)","v":""},{"$f":"IF(Entrées!H132=\"\",\"\",Entrées!H132)","v":""},{"$f":"IF(Entrées!I132=\"\",\"\",Entrées!I132)","v":""},{"$f":"IF(Entrées!J132=\"\",\"\",Entrées!J132)","v":""},{"$f":"IF(Entrées!K132=\"\",\"\",Entrées!K132)","v":""},{"$f":"IF(Entrées!L132=\"\",\"\",Entrées!L132)","v":""},{"$f":"IF(Entrées!M132=\"\",\"\",Entrées!M132)","v":""},{"$f":"IF(Entrées!N132=\"\",\"\",Entrées!N132)","v":""},{"$f":"IF(Entrées!O132=\"\",\"\",Entrées!O132)","v":""},null,{"$f":"Entrées!T132","v":false}]
[null,null,null,{"$f":"Entrées!C133","v":"Produit chimique 10"},"kg/an",null,{"$f":"IF(Entrées!E133=\"\",\"\",Entrées!E133)","v":""},{"$f":"IF(Entrées!F133=\"\",\"\",Entrées!F133)","v":""},{"$f":"IF(Entrées!G133=\"\",\"\",Entrées!G133)","v":""},{"$f":"IF(Entrées!H133=\"\",\"\",Entrées!H133)","v":""},{"$f":"IF(Entrées!I133=\"\",\"\",Entrées!I133)","v":""},{"$f":"IF(Entrées!J133=\"\",\"\",Entrées!J133)","v":""},{"$f":"IF(Entrées!K133=\"\",\"\",Entrées!K133)","v":""},{"$f":"IF(Entrées!L133=\"\",\"\",Entrées!L133)","v":""},{"$f":"IF(Entrées!M133=\"\",\"\",Entrées!M133)","v":""},{"$f":"IF(Entrées!N133=\"\",\"\",Entrées!N133)","v":""},{"$f":"IF(Entrées!O133=\"\",\"\",Entrées!O133)","v":""},null,{"$f":"Entrées!T133","v":false}]
[null,null,null,{"$f":"Entrées!C134","v":"Produit chimique 11"},"kg/an",null,{"$f":"IF(Entrées!E134=\"\",\"\",Entrées!E134)","v":""},{"$f":"IF(Entrées!F134=\"\",\"\",Entrées!F134)","v":""},{"$f":"IF(Entrées!G134=\"\",\"\",Entrées!G134)","v":""},{"$f":"IF(Entrées!H134=\"\",\"\",Entrées!H134)","v":""},{"$f":"IF(Entrées!I134=\"\",\"\",Entrées!I134)","v":""},{"$f":"IF(Entrées!J134=\"\",\"\",Entrées!J134)","v":""},{"$f":"IF(Entrées!K134=\"\",\"\",Entrées!K134)","v":""},{"$f":"IF(Entrées!L134=\"\",\"\",Entrées!L134)","v":""},{"$f":"IF(Entrées!M134=\"\",\"\",Entrées!M134)","v":""},{"$f":"IF(Entrées!N134=\"\",\"\",Entrées!N134)","v":""},{"$f":"IF(Entrées!O134=\"\",\"\",Entrées!O134)","v":""},null,{"$f":"Entrées!T134","v":false}]
[null,null,null,{"$f":"Entrées!C135","v":"Produit chimique 12"},"kg/an",null,{"$f":"IF(Entrées!E135=\"\",\"\",Entrées!E135)","v":""},{"$f":"IF(Entrées!F135=\"\",\"\",Entrées!F135)","v":""},{"$f":"IF(Entrées!G135=\"\",\"\",Entrées!G135)","v":""},{"$f":"IF(Entrées!H135=\"\",\"\",Entrées!H135)","v":""},{"$f":"IF(Entrées!I135=\"\",\"\",Entrées!I135)","v":""},{"$f":"IF(Entrées!J135=\"\",\"\",Entrées!J135)","v":""},{"$f":"IF(Entrées!K135=\"\",\"\",Entrées!K135)","v":""},{"$f":"IF(Entrées!L135=\"\",\"\",Entrées!L135)","v":""},{"$f":"IF(Entrées!M135=\"\",\"\",Entrées!M135)","v":""},{"$f":"IF(Entrées!N135=\"\",\"\",Entrées!N135)","v":""},{"$f":"IF(Entrées!O135=\"\",\"\",Entrées!O135)","v":""},null,{"$f":"Entrées!T135","v":false}]
[null,null,null,{"$f":"Entrées!C136","v":"Produit chimique 13"},"kg/an",null,{"$f":"IF(Entrées!E136=\"\",\"\",Entrées!E136)","v":""},{"$f":"IF(Entrées!F136=\"\",\"\",Entrées!F136)","v":""},{"$f":"IF(Entrées!G136=\"\",\"\",Entrées!G136)","v":""},{"$f":"IF(Entrées!H136=\"\",\"\",Entrées!H136)","v":""},{"$f":"IF(Entrées!I136=\"\",\"\",Entrées!I136)","v":""},{"$f":"IF(Entrées!J136=\"\",\"\",Entrées!J136)","v":""},{"$f":"IF(Entrées!K136=\"\",\"\",Entrées!K136)","v":""},{"$f":"IF(Entrées!L136=\"\",\"\",Entrées!L136)","v":""},{"$f":"IF(Entrées!M136=\"\",\"\",Entrées!M136)","v":""},{"$f":"IF(Entrées!N136=\"\",\"\",Entrées!N136)","v":""},{"$f":"IF(Entrées!O136=\"\",\"\",Entrées!O136)","v":""},null,{"$f":"Entrées!T136","v":false}]
[null,null,null,{"$f":"Entrées!C137","v":"Produit chimique 14"},"kg/an",null,{"$f":"IF(Entrées!E137=\"\",\"\",Entrées!E137)","v":""},{"$f":"IF(Entrées!F137=\"\",\"\",Entrées!F137)","v":""},{"$f":"IF(Entrées!G137=\"\",\"\",Entrées!G137)","v":""},{"$f":"IF(Entrées!H137=\"\",\"\",Entrées!H137)","v":""},{"$f":"IF(Entrées!I137=\"\",\"\",Entrées!I137)","v":""},{"$f":"IF(Entrées!J137=\"\",\"\",Entrées!J137)","v":""},{"$f":"IF(Entrées!K137=\"\",\"\",Entrées!K137)","v":""},{"$f":"IF(Entrées!L137=\"\",\"\",Entrées!L137)","v":""},{"$f":"IF(Entrées!M137=\"\",\"\",Entrées!M137)","v":""},{"$f":"IF(Entrées!N137=\"\",\"\",Entrées!N137)","v":""},{"$f":"IF(Entrées!O137=\"\",\"\",Entrées!O137)","v":""},null,{"$f":"Entrées!T137","v":false}]
[null,null,null,{"$f":"Entrées!C138","v":"Produit chimique 15"},"kg/an",null,{"$f":"IF(Entrées!E138=\"\",\"\",Entrées!E138)","v":""},{"$f":"IF(Entrées!F138=\"\",\"\",Entrées!F138)","v":""},{"$f":"IF(Entrées!G138=\"\",\"\",Entrées!G138)","v":""},{"$f":"IF(Entrées!H138=\"\",\"\",Entrées!H138)","v":""},{"$f":"IF(Entrées!I138=\"\",\"\",Entrées!I138)","v":""},{"$f":"IF(Entrées!J138=\"\",\"\",Entrées!J138)","v":""},{"$f":"IF(Entrées!K138=\"\",\"\",Entrées!K138)","v":""},{"$f":"IF(Entrées!L138=\"\",\"\",Entrées!L138)","v":""},{"$f":"IF(Entrées!M138=\"\",\"\",Entrées!M138)","v":""},{"$f":"IF(Entrées!N138=\"\",\"\",Entrées!N138)","v":""},{"$f":"IF(Entrées!O138=\"\",\"\",Entrées!O138)","v":""},null,{"$f":"Entrées!T138","v":false}]
[null,null,null,{"$f":"Entrées!C139","v":"Produit chimique 16"},"kg/an",null,{"$f":"IF(Entrées!E139=\"\",\"\",Entrées!E139)","v":""},{"$f":"IF(Entrées!F139=\"\",\"\",Entrées!F139)","v":""},{"$f":"IF(Entrées!G139=\"\",\"\",Entrées!G139)","v":""},{"$f":"IF(Entrées!H139=\"\",\"\",Entrées!H139)","v":""},{"$f":"IF(Entrées!I139=\"\",\"\",Entrées!I139)","v":""},{"$f":"IF(Entrées!J139=\"\",\"\",Entrées!J139)","v":""},{"$f":"IF(Entrées!K139=\"\",\"\",Entrées!K139)","v":""},{"$f":"IF(Entrées!L139=\"\",\"\",Entrées!L139)","v":""},{"$f":"IF(Entrées!M139=\"\",\"\",Entrées!M139)","v":""},{"$f":"IF(Entrées!N139=\"\",\"\",Entrées!N139)","v":""},{"$f":"IF(Entrées!O139=\"\",\"\",Entrées!O139)","v":""},null,{"$f":"Entrées!T139","v":false}]
[null,null,null,{"$f":"Entrées!C140","v":"Produit chimique 17"},"kg/an",null,{"$f":"IF(Entrées!E140=\"\",\"\",Entrées!E140)","v":""},{"$f":"IF(Entrées!F140=\"\",\"\",Entrées!F140)","v":""},{"$f":"IF(Entrées!G140=\"\",\"\",Entrées!G140)","v":""},{"$f":"IF(Entrées!H140=\"\",\"\",Entrées!H140)","v":""},{"$f":"IF(Entrées!I140=\"\",\"\",Entrées!I140)","v":""},{"$f":"IF(Entrées!J140=\"\",\"\",Entrées!J140)","v":""},{"$f":"IF(Entrées!K140=\"\",\"\",Entrées!K140)","v":""},{"$f":"IF(Entrées!L140=\"\",\"\",Entrées!L140)","v":""},{"$f":"IF(Entrées!M140=\"\",\"\",Entrées!M140)","v":""},{"$f":"IF(Entrées!N140=\"\",\"\",Entrées!N140)","v":""},{"$f":"IF(Entrées!O140=\"\",\"\",Entrées!O140)","v":""},null,{"$f":"Entrées!T140","v":false}]
[null,null,null,{"$f":"Entrées!C141","v":"Produit chimique 18"},"kg/an",null,{"$f":"IF(Entrées!E141=\"\",\"\",Entrées!E141)","v":""},{"$f":"IF(Entrées!F141=\"\",\"\",Entrées!F141)","v":""},{"$f":"IF(Entrées!G141=\"\",\"\",Entrées!G141)","v":""},{"$f":"IF(Entrées!H141=\"\",\"\",Entrées!H141)","v":""},{"$f":"IF(Entrées!I141=\"\",\"\",Entrées!I141)","v":""},{"$f":"IF(Entrées!J141=\"\",\"\",Entrées!J141)","v":""},{"$f":"IF(Entrées!K141=\"\",\"\",Entrées!K141)","v":""},{"$f":"IF(Entrées!L141=\"\",\"\",Entrées!L141)","v":""},{"$f":"IF(Entrées!M141=\"\",\"\",Entrées!M141)","v":""},{"$f":"IF(Entrées!N141=\"\",\"\",Entrées!N141)","v":""},{"$f":"IF(Entrées!O141=\"\",\"\",Entrées!O141)","v":""},null,{"$f":"Entrées!T141","v":false}]
[null,null,null,{"$f":"Entrées!C142","v":"Produit chimique 19"},"kg/an",null,{"$f":"IF(Entrées!E142=\"\",\"\",Entrées!E142)","v":""},{"$f":"IF(Entrées!F142=\"\",\"\",Entrées!F142)","v":""},{"$f":"IF(Entrées!G142=\"\",\"\",Entrées!G142)","v":""},{"$f":"IF(Entrées!H142=\"\",\"\",Entrées!H142)","v":""},{"$f":"IF(Entrées!I142=\"\",\"\",Entrées!I142)","v":""},{"$f":"IF(Entrées!J142=\"\",\"\",Entrées!J142)","v":""},{"$f":"IF(Entrées!K142=\"\",\"\",Entrées!K142)","v":""},{"$f":"IF(Entrées!L142=\"\",\"\",Entrées!L142)","v":""},{"$f":"IF(Entrées!M142=\"\",\"\",Entrées!M142)","v":""},{"$f":"IF(Entrées!N142=\"\",\"\",Entrées!N142)","v":""},{"$f":"IF(Entrées!O142=\"\",\"\",Entrées!O142)","v":""},null,{"$f":"Entrées!T142","v":false}]
[null,null,null,{"$f":"Entrées!C143","v":"Produit chimique 20"},"kg/an",null,{"$f":"IF(Entrées!E143=\"\",\"\",Entrées!E143)","v":""},{"$f":"IF(Entrées!F143=\"\",\"\",Entrées!F143)","v":""},{"$f":"IF(Entrées!G143=\"\",\"\",Entrées!G143)","v":""},{"$f":"IF(Entrées!H143=\"\",\"\",Entrées!H143)","v":""},{"$f":"IF(Entrées!I143=\"\",\"\",Entrées!I143)","v":""},{"$f":"IF(Entrées!J143=\"\",\"\",Entrées!J143)","v":""},{"$f":"IF(Entrées!K143=\"\",\"\",Entrées!K143)","v":""},{"$f":"IF(Entrées!L143=\"\",\"\",Entrées!L143)","v":""},{"$f":"IF(Entrées!M143=\"\",\"\",Entrées!M143)","v":""},{"$f":"IF(Entrées!N143=\"\",\"\",Entrées!N143)","v":""},{"$f":"IF(Entrées!O143=\"\",\"\",Entrées!O143)","v":""},null,{"$f":"Entrées!T143","v":false}]
[null,null," Echem","Émissions de la consommation de produits chimiques",null,null,"\n",null,null,null,null,null,null,null,null,null,null,null,{"$f":"TRUE","v":true}]
[null,null,null,{"$f":"D31","v":"Produit chimique 1"},"tCO2éq./an",null,{"$f":"IF(G31=\"\",\"\",G31*$F9/1000)","v":""},{"$f":"IF(H31=\"\",\"\",H31*$F9/1000)","v":""},"","","","","","","","","",null,{"$f":"Entrées!T124","v":false}]
[null,null,null,{"$f":"D32","v":"Produit chimique 2"},"tCO2éq./an",null,{"$f":"IF(G32=\"\",\"\",G32*$F10/1000)","v":""},"","","","","","","","","","",null,{"$f":"Entrées!T125","v":false}]
[null,null,null,"Produit chimique 3","tCO2éq./an",null,"","","","","","","","","","","",null,{"$f":"Entrées!T126","v":false}]
[null,null,null,"Produit chimique 4","tCO2éq./an",null,"","","","","","","","","","","",null,{"$f":"Entrées!T127","v":false}]
[null,null,null,"Produit chimique 5","tCO2éq./an",null,"","","","","","","","","","","",null,{"$f":"Entrées!T128","v":false}]
[null,null,null,"Produit chimique 6","tCO2éq./an",null,"","","","","","","","","","","",null,{"$f":"Entrées!T129","v":false}]
[null,null,null,"Produit chimique 7","tCO2éq./an",null,"","","","","","","","","","","",null,{"$f":"Entrées!T130","v":false}]
[null,null,null,"Produit chimique 8","tCO2éq./an",null,"","","","","","","","","","","",null,{"$f":"Entrées!T131","v":false}]
[null,null,null,"Produit chimique 9","tCO2éq./an",null,"","","","","","","","","","","",null,{"$f":"Entrées!T132","v":false}]
[null,null,null,"Produit chimique 10","tCO2éq./an",null,"","","","","","","","","","","",null,{"$f":"Entrées!T133","v":false}]
[null,null,null,"Produit chimique 11","tCO2éq./an",null,"","","","","","","","","","","",null,{"$f":"Entrées!T134","v":false}]
[null,null,null,"Produit chimique 12","tCO2éq./an",null,"","","","","","","","","","","",null,{"$f":"Entrées!T135","v":false}]
[null,null,null,"Produit chimique 13","tCO2éq./an",null,"","","","","","","","","","","",null,{"$f":"Entrées!T136","v":false}]
[null,null,null,"Produit chimique 14","tCO2éq./an",null,"","","","","","","","","","","",null,{"$f":"Entrées!T137","v":false}]
[null,null,null,"Produit chimique 15","tCO2éq./an",null,"","","","","","","","","","","",null,{"$f":"Entrées!T138","v":false}]
[null,null,null,"Produit chimique 16","tCO2éq./an",null,"","","","","","","","","","","",null,{"$f":"Entrées!T139","v":false}]
[null,null,null,"Produit chimique 17","tCO2éq./an",null,"","","","","","","","","","","",null,{"$f":"Entrées!T140","v":false}]
[null,null,null,"Produit chimique 18","tCO2éq./an",null,"","","","","","","","","","","",null,{"$f":"Entrées!T141","v":false}]
[null,null,null,"Produit chimique 19","tCO2éq./an",null,"","","","","","","","","","","",null,{"$f":"Entrées!T142","v":false}]
[null,null,null,"Produit chimique 20","tCO2éq./an",null,"","","","","","","","","","","",null,{"$f":"Entrées!T143","v":false}]
[null,null,null,"Total des émissions de la consommation de produits chimiques ","tCO2éq./an",{"$f":"SUM(G72:Q72)","v":0},{"$f":"SUM(G52:G71)","v":0},{"$f":"SUM(H52:H71)","v":0},0,0,0,0,0,0,0,0,0,null,{"$f":"TRUE","v":true}]
[null,null,null,null,null,null,null,null,null,null,null,null,null,null,null,null,null,null,{"$f":"TRUE","v":true}]
[null,"Étape 2 –","Estimer les émissions associées au transport des produits chimiques jusqu’au site",null,null,null,null,null,null,null,null,null,null,null,null,null,null,null,{"$f":"TRUE","v":true}]
[null,null,"Echem,t = EFtransport * Mchem * D",null,null,null,null,null,null,null,null,null,null,null,null,null,null,null,{"$f":"TRUE","v":true}]
[null,null,null,null,"Unité","Valeur de l’entrée","Notes/références de l’utilisateur",null,null,null,null,null,null,null,null,null,null,null,{"$f":"TRUE","v":true}]
[null,null,"EFtransport,truck","CE du transport camion lourd, camion 25 tonnes métriques","kgCO2éq/t*km",{"$f":"Entrées!E283","v":8.7508950000000002E-2},{"$f":"Entrées!G283","v":"Canada Fuel LCA Model 2024"},null,null,null,null,null,null,null,null,null,null,null,{"$f":"TRUE","v":true}]
[null,null,"EFtransport,train","CE de train de marchandises diesel","kgCO2éq/t*km",{"$f":"Entrées!E284","v":1.5415460000000001E-2},{"$f":"Entrées!G285","v":"Canada Fuel LCA Model 2024"},null,null,null,null,null,null,null,null,null,null,null,{"$f":"TRUE","v":true}]
[null,null,"EFtransport,ship","Navire de fret maritime de marchandises en vrac","kgCO2éq/t*km",{"$f":"Entrées!E285","v":2.4671729999999999E-2},{"$f":"Entrées!G284","v":"Canada Fuel LCA Model 2024"},null,null,null,null,null,null,null,null,null,null,null,{"$f":"TRUE","v":true}]
[null,null,null,null,null,null,null,null,null,null,null,null,null,null,null,null,null,null,{"$f":"TRUE","v":true}]
[null,null,null,null,null,"TOTAL",{"$f":"IF(WWTP1=\"\",\"\",WWTP1)","v":"STEU1"},{"$f":"IF(WWTP2=\"\",\"\",WWTP2)","v":"STEU2"},{"$f":"IF(WWTP3=\"\",\"\",WWTP3)","v":"STEU3"},{"$f":"IF(WWTP4=\"\",\"\",WWTP4)","v":"STEU4"},{"$f":"IF(WWCollection=\"\",\"\",WWCollection)","v":"Collecte"},{"$f":"IF(WTP1_=\"\",\"\",WTP1_)","v":"STE1"},{"$f":"IF(WTP2_=\"\",\"\",WTP2_)","v":"STE2"},{"$f":"IF(WTP3_=\"\",\"\",WTP3_)","v":"STE3"},{"$f":"IF(WTP4_=\"\",\"\",WTP4_)","v":"STE4"},{"$f":"IF(WDistr=\"\",\"\",WDistr)","v":"Distribution"},{"$f":"IF(SuppFac=\"\",\"\",SuppFac)","v":"Inst. sout."},null,{"$f":"TRUE","v":true}]
[null,null,"Dtruck","Distance parcourue par le camion entre le fournisseur et le site (trajet aller-retour)",null,null,null,null,null,null,null,null,null,null,null,null,null,null,{"$f":"TRUE","v":true}]
[null,null,null,{"$f":"Entrées!C124","v":"Produit chimique 1"},"km",null,{"$f":"IF(Entrées!E145=\"\",\"\",Entrées!E145)","v":""},{"$f":"IF(Entrées!F145=\"\",\"\",Entrées!F145)","v":""},{"$f":"IF(Entrées!G145=\"\",\"\",Entrées!G145)","v":""},{"$f":"IF(Entrées!H145=\"\",\"\",Entrées!H145)","v":""},{"$f":"IF(Entrées!I145=\"\",\"\",Entrées!I145)","v":""},{"$f":"IF(Entrées!J145=\"\",\"\",Entrées!J145)","v":""},{"$f":"IF(Entrées!K145=\"\",\"\",Entrées!K145)","v":""},{"$f":"IF(Entrées!L145=\"\",\"\",Entrées!L145)","v":""},{"$f":"IF(Entrées!M145=\"\",\"\",Entrées!M145)","v":""},{"$f":"IF(Entrées!N145=\"\",\"\",Entrées!N145)","v":""},{"$f":"IF(Entrées!O145=\"\",\"\",Entrées!O145)","v":""},null,{"$f":"Entrées!U145","v":false}]
[null,null,null,{"$f":"Entrées!C125","v":"Produit chimique 2"},"km",null,{"$f":"IF(Entrées!E146=\"\",\"\",Entrées!E146)","v":""},{"$f":"IF(Entrées!F146=\"\",\"\",Entrées!F146)","v":""},{"$f":"IF(Entrées!G146=\"\",\"\",Entrées!G146)","v":""},{"$f":"IF(Entrées!H146=\"\",\"\",Entrées!H146)","v":""},{"$f":"IF(Entrées!I146=\"\",\"\",Entrées!I146)","v":""},{"$f":"IF(Entrées!J146=\"\",\"\",Entrées!J146)","v":""},{"$f":"IF(Entrées!K146=\"\",\"\",Entrées!K146)","v":""},{"$f":"IF(Entrées!L146=\"\",\"\",Entrées!L146)","v":""},{"$f":"IF(Entrées!M146=\"\",\"\",Entrées!M146)","v":""},{"$f":"IF(Entrées!N146=\"\",\"\",Entrées!N146)","v":""},{"$f":"IF(Entrées!O146=\"\",\"\",Entrées!O146)","v":""},null,{"$f":"Entrées!U146","v":false}]
[null,null,null,{"$f":"Entrées!C126","v":"Produit chimique 3"},"km",null,{"$f":"IF(Entrées!E147=\"\",\"\",Entrées!E147)","v":""},{"$f":"IF(Entrées!F147=\"\",\"\",Entrées!F147)","v":""},{"$f":"IF(Entrées!G147=\"\",\"\",Entrées!G147)","v":""},{"$f":"IF(Entrées!H147=\"\",\"\",Entrées!H147)","v":""},{"$f":"IF(Entrées!I147=\"\",\"\",Entrées!I147)","v":""},{"$f":"IF(Entrées!J147=\"\",\"\",Entrées!J147)","v":""},{"$f":"IF(Entrées!K147=\"\",\"\",Entrées!K147)","v":""},{"$f":"IF(Entrées!L147=\"\",\"\",Entrées!L147)","v":""},{"$f":"IF(Entrées!M147=\"\",\"\",Entrées!M147)","v":""},{"$f":"IF(Entrées!N147=\"\",\"\",Entrées!N147)","v":""},{"$f":"IF(Entrées!O147=\"\",\"\",Entrées!O147)","v":""},null,{"$f":"Entrées!U147","v":false}]
[null,null,null,{"$f":"Entrées!C127","v":"Produit chimique 4"},"km",null,{"$f":"IF(Entrées!E148=\"\",\"\",Entrées!E148)","v":""},{"$f":"IF(Entrées!F148=\"\",\"\",Entrées!F148)","v":""},{"$f":"IF(Entrées!G148=\"\",\"\",Entrées!G148)","v":""},{"$f":"IF(Entrées!H148=\"\",\"\",Entrées!H148)","v":""},{"$f":"IF(Entrées!I148=\"\",\"\",Entrées!I148)","v":""},{"$f":"IF(Entrées!J148=\"\",\"\",Entrées!J148)","v":""},{"$f":"IF(Entrées!K148=\"\",\"\",Entrées!K148)","v":""},{"$f":"IF(Entrées!L148=\"\",\"\",Entrées!L148)","v":""},{"$f":"IF(Entrées!M148=\"\",\"\",Entrées!M148)","v":""},{"$f":"IF(Entrées!N148=\"\",\"\",Entrées!N148)","v":""},{"$f":"IF(Entrées!O148=\"\",\"\",Entrées!O148)","v":""},null,{"$f":"Entrées!U148","v":false}]
[null,null,null,{"$f":"Entrées!C128","v":"Produit chimique 5"},"km",null,{"$f":"IF(Entrées!E149=\"\",\"\",Entrées!E149)","v":""},{"$f":"IF(Entrées!F149=\"\",\"\",Entrées!F149)","v":""},{"$f":"IF(Entrées!G149=\"\",\"\",Entrées!G149)","v":""},{"$f":"IF(Entrées!H149=\"\",\"\",Entrées!H149)","v":""},{"$f":"IF(Entrées!I149=\"\",\"\",Entrées!I149)","v":""},{"$f":"IF(Entrées!J149=\"\",\"\",Entrées!J149)","v":""},{"$f":"IF(Entrées!K149=\"\",\"\",Entrées!K149)","v":""},{"$f":"IF(Entrées!L149=\"\",\"\",Entrées!L149)","v":""},{"$f":"IF(Entrées!M149=\"\",\"\",Entrées!M149)","v":""},{"$f":"IF(Entrées!N149=\"\",\"\",Entrées!N149)","v":""},{"$f":"IF(Entrées!O149=\"\",\"\",Entrées!O149)","v":""},null,{"$f":"Entrées!U149","v":false}]
[null,null,null,{"$f":"Entrées!C129","v":"Produit chimique 6"},"km",null,{"$f":"IF(Entrées!E150=\"\",\"\",Entrées!E150)","v":""},{"$f":"IF(Entrées!F150=\"\",\"\",Entrées!F150)","v":""},{"$f":"IF(Entrées!G150=\"\",\"\",Entrées!G150)","v":""},{"$f":"IF(Entrées!H150=\"\",\"\",Entrées!H150)","v":""},{"$f":"IF(Entrées!I150=\"\",\"\",Entrées!I150)","v":""},{"$f":"IF(Entrées!J150=\"\",\"\",Entrées!J150)","v":""},{"$f":"IF(Entrées!K150=\"\",\"\",Entrées!K150)","v":""},{"$f":"IF(Entrées!L150=\"\",\"\",Entrées!L150)","v":""},{"$f":"IF(Entrées!M150=\"\",\"\",Entrées!M150)","v":""},{"$f":"IF(Entrées!N150=\"\",\"\",Entrées!N150)","v":""},{"$f":"IF(Entrées!O150=\"\",\"\",Entrées!O150)","v":""},null,{"$f":"Entrées!U150","v":false}]
[null,null,null,{"$f":"Entrées!C130","v":"Produit chimique 7"},"km",null,{"$f":"IF(Entrées!E151=\"\",\"\",Entrées!E151)","v":""},{"$f":"IF(Entrées!F151=\"\",\"\",Entrées!F151)","v":""},{"$f":"IF(Entrées!G151=\"\",\"\",Entrées!G151)","v":""},{"$f":"IF(Entrées!H151=\"\",\"\",Entrées!H151)","v":""},{"$f":"IF(Entrées!I151=\"\",\"\",Entrées!I151)","v":""},{"$f":"IF(Entrées!J151=\"\",\"\",Entrées!J151)","v":""},{"$f":"IF(Entrées!K151=\"\",\"\",Entrées!K151)","v":""},{"$f":"IF(Entrées!L151=\"\",\"\",Entrées!L151)","v":""},{"$f":"IF(Entrées!M151=\"\",\"\",Entrées!M151)","v":""},{"$f":"IF(Entrées!N151=\"\",\"\",Entrées!N151)","v":""},{"$f":"IF(Entrées!O151=\"\",\"\",Entrées!O151)","v":""},null,{"$f":"Entrées!U151","v":false}]
[null,null,null,{"$f":"Entrées!C131","v":"Produit chimique 8"},"km",null,{"$f":"IF(Entrées!E152=\"\",\"\",Entrées!E152)","v":""},{"$f":"IF(Entrées!F152=\"\",\"\",Entrées!F152)","v":""},{"$f":"IF(Entrées!G152=\"\",\"\",Entrées!G152)","v":""},{"$f":"IF(Entrées!H152=\"\",\"\",Entrées!H152)","v":""},{"$f":"IF(Entrées!I152=\"\",\"\",Entrées!I152)","v":""},{"$f":"IF(Entrées!J152=\"\",\"\",Entrées!J152)","v":""},{"$f":"IF(Entrées!K152=\"\",\"\",Entrées!K152)","v":""},{"$f":"IF(Entrées!L152=\"\",\"\",Entrées!L152)","v":""},{"$f":"IF(Entrées!M152=\"\",\"\",Entrées!M152)","v":""},{"$f":"IF(Entrées!N152=\"\",\"\",Entrées!N152)","v":""},{"$f":"IF(Entrées!O152=\"\",\"\",Entrées!O152)","v":""},null,{"$f":"Entrées!U152","v":false}]
[null,null,null,{"$f":"Entrées!C132","v":"Produit chimique 9"},"km",null,{"$f":"IF(Entrées!E153=\"\",\"\",Entrées!E153)","v":""},{"$f":"IF(Entrées!F153=\"\",\"\",Entrées!F153)","v":""},{"$f":"IF(Entrées!G153=\"\",\"\",Entrées!G153)","v":""},{"$f":"IF(Entrées!H153=\"\",\"\",Entrées!H153)","v":""},{"$f":"IF(Entrées!I153=\"\",\"\",Entrées!I153)","v":""},{"$f":"IF(Entrées!J153=\"\",\"\",Entrées!J153)","v":""},{"$f":"IF(Entrées!K153=\"\",\"\",Entrées!K153)","v":""},{"$f":"IF(Entrées!L153=\"\",\"\",Entrées!L153)","v":""},{"$f":"IF(Entrées!M153=\"\",\"\",Entrées!M153)","v":""},{"$f":"IF(Entrées!N153=\"\",\"\",Entrées!N153)","v":""},{"$f":"IF(Entrées!O153=\"\",\"\",Entrées!O153)","v":""},null,{"$f":"Entrées!U153","v":false}]
[null,null,null,{"$f":"Entrées!C133","v":"Produit chimique 10"},"km",null,{"$f":"IF(Entrées!E154=\"\",\"\",Entrées!E154)","v":""},{"$f":"IF(Entrées!F154=\"\",\"\",Entrées!F154)","v":""},{"$f":"IF(Entrées!G154=\"\",\"\",Entrées!G154)","v":""},{"$f":"IF(Entrées!H154=\"\",\"\",Entrées!H154)","v":""},{"$f":"IF(Entrées!I154=\"\",\"\",Entrées!I154)","v":""},{"$f":"IF(Entrées!J154=\"\",\"\",Entrées!J154)","v":""},{"$f":"IF(Entrées!K154=\"\",\"\",Entrées!K154)","v":""},{"$f":"IF(Entrées!L154=\"\",\"\",Entrées!L154)","v":""},{"$f":"IF(Entrées!M154=\"\",\"\",Entrées!M154)","v":""},{"$f":"IF(Entrées!N154=\"\",\"\",Entrées!N154)","v":""},{"$f":"IF(Entrées!O154=\"\",\"\",Entrées!O154)","v":""},null,{"$f":"Entrées!U154","v":false}]
[null,null,null,{"$f":"Entrées!C134","v":"Produit chimique 11"},"km",null,{"$f":"IF(Entrées!E155=\"\",\"\",Entrées!E155)","v":""},{"$f":"IF(Entrées!F155=\"\",\"\",Entrées!F155)","v":""},{"$f":"IF(Entrées!G155=\"\",\"\",Entrées!G155)","v":""},{"$f":"IF(Entrées!H155=\"\",\"\",Entrées!H155)","v":""},{"$f":"IF(Entrées!I155=\"\",\"\",Entrées!I155)","v":""},{"$f":"IF(Entrées!J155=\"\",\"\",Entrées!J155)","v":""},{"$f":"IF(Entrées!K155=\"\",\"\",Entrées!K155)","v":""},{"$f":"IF(Entrées!L155=\"\",\"\",Entrées!L155)","v":""},{"$f":"IF(Entrées!M155=\"\",\"\",Entrées!M155)","v":""},{"$f":"IF(Entrées!N155=\"\",\"\",Entrées!N155)","v":""},{"$f":"IF(Entrées!O155=\"\",\"\",Entrées!O155)","v":""},null,{"$f":"Entrées!U155","v":false}]
[null,null,null,{"$f":"Entrées!C135","v":"Produit chimique 12"},"km",null,{"$f":"IF(Entrées!E156=\"\",\"\",Entrées!E156)","v":""},{"$f":"IF(Entrées!F156=\"\",\"\",Entrées!F156)","v":""},{"$f":"IF(Entrées!G156=\"\",\"\",Entrées!G156)","v":""},{"$f":"IF(Entrées!H156=\"\",\"\",Entrées!H156)","v":""},{"$f":"IF(Entrées!I156=\"\",\"\",Entrées!I156)","v":""},{"$f":"IF(Entrées!J156=\"\",\"\",Entrées!J156)","v":""},{"$f":"IF(Entrées!K156=\"\",\"\",Entrées!K156)","v":""},{"$f":"IF(Entrées!L156=\"\",\"\",Entrées!L156)","v":""},{"$f":"IF(Entrées!M156=\"\",\"\",Entrées!M156)","v":""},{"$f":"IF(Entrées!N156=\"\",\"\",Entrées!N156)","v":""},{"$f":"IF(Entrées!O156=\"\",\"\",Entrées!O156)","v":""},null,{"$f":"Entrées!U156","v":false}]
[null,null,null,{"$f":"Entrées!C136","v":"Produit chimique 13"},"km",null,{"$f":"IF(Entrées!E157=\"\",\"\",Entrées!E157)","v":""},{"$f":"IF(Entrées!F157=\"\",\"\",Entrées!F157)","v":""},{"$f":"IF(Entrées!G157=\"\",\"\",Entrées!G157)","v":""},{"$f":"IF(Entrées!H157=\"\",\"\",Entrées!H157)","v":""},{"$f":"IF(Entrées!I157=\"\",\"\",Entrées!I157)","v":""},{"$f":"IF(Entrées!J157=\"\",\"\",Entrées!J157)","v":""},{"$f":"IF(Entrées!K157=\"\",\"\",Entrées!K157)","v":""},{"$f":"IF(Entrées!L157=\"\",\"\",Entrées!L157)","v":""},{"$f":"IF(Entrées!M157=\"\",\"\",Entrées!M157)","v":""},{"$f":"IF(Entrées!N157=\"\",\"\",Entrées!N157)","v":""},{"$f":"IF(Entrées!O157=\"\",\"\",Entrées!O157)","v":""},null,{"$f":"Entrées!U157","v":false}]
[null,null,null,{"$f":"Entrées!C137","v":"Produit chimique 14"},"km",null,{"$f":"IF(Entrées!E158=\"\",\"\",Entrées!E158)","v":""},{"$f":"IF(Entrées!F158=\"\",\"\",Entrées!F158)","v":""},{"$f":"IF(Entrées!G158=\"\",\"\",Entrées!G158)","v":""},{"$f":"IF(Entrées!H158=\"\",\"\",Entrées!H158)","v":""},{"$f":"IF(Entrées!I158=\"\",\"\",Entrées!I158)","v":""},{"$f":"IF(Entrées!J158=\"\",\"\",Entrées!J158)","v":""},{"$f":"IF(Entrées!K158=\"\",\"\",Entrées!K158)","v":""},{"$f":"IF(Entrées!L158=\"\",\"\",Entrées!L158)","v":""},{"$f":"IF(Entrées!M158=\"\",\"\",Entrées!M158)","v":""},{"$f":"IF(Entrées!N158=\"\",\"\",Entrées!N158)","v":""},{"$f":"IF(Entrées!O158=\"\",\"\",Entrées!O158)","v":""},null,{"$f":"Entrées!U158","v":false}]
[null,null,null,{"$f":"Entrées!C138","v":"Produit chimique 15"},"km",null,{"$f":"IF(Entrées!E159=\"\",\"\",Entrées!E159)","v":""},{"$f":"IF(Entrées!F159=\"\",\"\",Entrées!F159)","v":""},{"$f":"IF(Entrées!G159=\"\",\"\",Entrées!G159)","v":""},{"$f":"IF(Entrées!H159=\"\",\"\",Entrées!H159)","v":""},{"$f":"IF(Entrées!I159=\"\",\"\",Entrées!I159)","v":""},{"$f":"IF(Entrées!J159=\"\",\"\",Entrées!J159)","v":""},{"$f":"IF(Entrées!K159=\"\",\"\",Entrées!K159)","v":""},{"$f":"IF(Entrées!L159=\"\",\"\",Entrées!L159)","v":""},{"$f":"IF(Entrées!M159=\"\",\"\",Entrées!M159)","v":""},{"$f":"IF(Entrées!N159=\"\",\"\",Entrées!N159)","v":""},{"$f":"IF(Entrées!O159=\"\",\"\",Entrées!O159)","v":""},null,{"$f":"Entrées!U159","v":false}]
[null,null,null,{"$f":"Entrées!C139","v":"Produit chimique 16"},"km",null,{"$f":"IF(Entrées!E160=\"\",\"\",Entrées!E160)","v":""},{"$f":"IF(Entrées!F160=\"\",\"\",Entrées!F160)","v":""},{"$f":"IF(Entrées!G160=\"\",\"\",Entrées!G160)","v":""},{"$f":"IF(Entrées!H160=\"\",\"\",Entrées!H160)","v":""},{"$f":"IF(Entrées!I160=\"\",\"\",Entrées!I160)","v":""},{"$f":"IF(Entrées!J160=\"\",\"\",Entrées!J160)","v":""},{"$f":"IF(Entrées!K160=\"\",\"\",Entrées!K160)","v":""},{"$f":"IF(Entrées!L160=\"\",\"\",Entrées!L160)","v":""},{"$f":"IF(Entrées!M160=\"\",\"\",Entrées!M160)","v":""},{"$f":"IF(Entrées!N160=\"\",\"\",Entrées!N160)","v":""},{"$f":"IF(Entrées!O160=\"\",\"\",Entrées!O160)","v":""},null,{"$f":"Entrées!U160","v":false}]
[null,null,null,{"$f":"Entrées!C140","v":"Produit chimique 17"},"km",null,{"$f":"IF(Entrées!E161=\"\",\"\",Entrées!E161)","v":""},{"$f":"IF(Entrées!F161=\"\",\"\",Entrées!F161)","v":""},{"$f":"IF(Entrées!G161=\"\",\"\",Entrées!G161)","v":""},{"$f":"IF(Entrées!H161=\"\",\"\",Entrées!H161)","v":""},{"$f":"IF(Entrées!I161=\"\",\"\",Entrées!I161)","v":""},{"$f":"IF(Entrées!J161=\"\",\"\",Entrées!J161)","v":""},{"$f":"IF(Entrées!K161=\"\",\"\",Entrées!K161)","v":""},{"$f":"IF(Entrées!L161=\"\",\"\",Entrées!L161)","v":""},{"$f":"IF(Entrées!M161=\"\",\"\",Entrées!M161)","v":""},{"$f":"IF(Entrées!N161=\"\",\"\",Entrées!N161)","v":""},{"$f":"IF(Entrées!O161=\"\",\"\",Entrées!O161)","v":""},null,{"$f":"Entrées!U161","v":false}]
[null,null,null,{"$f":"Entrées!C141","v":"Produit chimique 18"},"km",null,{"$f":"IF(Entrées!E162=\"\",\"\",Entrées!E162)","v":""},{"$f":"IF(Entrées!F162=\"\",\"\",Entrées!F162)","v":""},{"$f":"IF(Entrées!G162=\"\",\"\",Entrées!G162)","v":""},{"$f":"IF(Entrées!H162=\"\",\"\",Entrées!H162)","v":""},{"$f":"IF(Entrées!I162=\"\",\"\",Entrées!I162)","v":""},{"$f":"IF(Entrées!J162=\"\",\"\",Entrées!J162)","v":""},{"$f":"IF(Entrées!K162=\"\",\"\",Entrées!K162)","v":""},{"$f":"IF(Entrées!L162=\"\",\"\",Entrées!L162)","v":""},{"$f":"IF(Entrées!M162=\"\",\"\",Entrées!M162)","v":""},{"$f":"IF(Entrées!N162=\"\",\"\",Entrées!N162)","v":""},{"$f":"IF(Entrées!O162=\"\",\"\",Entrées!O162)","v":""},null,{"$f":"Entrées!U162","v":false}]
[null,null,null,{"$f":"Entrées!C142","v":"Produit chimique 19"},"km",null,{"$f":"IF(Entrées!E163=\"\",\"\",Entrées!E163)","v":""},{"$f":"IF(Entrées!F163=\"\",\"\",Entrées!F163)","v":""},{"$f":"IF(Entrées!G163=\"\",\"\",Entrées!G163)","v":""},{"$f":"IF(Entrées!H163=\"\",\"\",Entrées!H163)","v":""},{"$f":"IF(Entrées!I163=\"\",\"\",Entrées!I163)","v":""},{"$f":"IF(Entrées!J163=\"\",\"\",Entrées!J163)","v":""},{"$f":"IF(Entrées!K163=\"\",\"\",Entrées!K163)","v":""},{"$f":"IF(Entrées!L163=\"\",\"\",Entrées!L163)","v":""},{"$f":"IF(Entrées!M163=\"\",\"\",Entrées!M163)","v":""},{"$f":"IF(Entrées!N163=\"\",\"\",Entrées!N163)","v":""},{"$f":"IF(Entrées!O163=\"\",\"\",Entrées!O163)","v":""},null,{"$f":"Entrées!U163","v":false}]
[null,null,null,{"$f":"Entrées!C143","v":"Produit chimique 20"},"km",null,{"$f":"IF(Entrées!E164=\"\",\"\",Entrées!E164)","v":""},{"$f":"IF(Entrées!F164=\"\",\"\",Entrées!F164)","v":""},{"$f":"IF(Entrées!G164=\"\",\"\",Entrées!G164)","v":""},{"$f":"IF(Entrées!H164=\"\",\"\",Entrées!H164)","v":""},{"$f":"IF(Entrées!I164=\"\",\"\",Entrées!I164)","v":""},{"$f":"IF(Entrées!J164=\"\",\"\",Entrées!J164)","v":""},{"$f":"IF(Entrées!K164=\"\",\"\",Entrées!K164)","v":""},{"$f":"IF(Entrées!L164=\"\",\"\",Entrées!L164)","v":""},{"$f":"IF(Entrées!M164=\"\",\"\",Entrées!M164)","v":""},{"$f":"IF(Entrées!N164=\"\",\"\",Entrées!N164)","v":""},{"$f":"IF(Entrées!O164=\"\",\"\",Entrées!O164)","v":""},null,{"$f":"Entrées!U164","v":false}]
[null,null,"Dtrain","Distance parcourue par le train entre le fournisseur et le site (trajet aller-retour)",null,null,null,null,null,null,null,null,null,null,null,null,null,null,{"$f":"TRUE","v":true}]
[null,null,null,{"$f":"Entrées!C124","v":"Produit chimique 1"},"km",null,{"$f":"IF(Entrées!E166=\"\",\"\",Entrées!E166)","v":""},{"$f":"IF(Entrées!F166=\"\",\"\",Entrées!F166)","v":""},{"$f":"IF(Entrées!G166=\"\",\"\",Entrées!G166)","v":""},{"$f":"IF(Entrées!H166=\"\",\"\",Entrées!H166)","v":""},{"$f":"IF(Entrées!I166=\"\",\"\",Entrées!I166)","v":""},{"$f":"IF(Entrées!J166=\"\",\"\",Entrées!J166)","v":""},{"$f":"IF(Entrées!K166=\"\",\"\",Entrées!K166)","v":""},{"$f":"IF(Entrées!L166=\"\",\"\",Entrées!L166)","v":""},{"$f":"IF(Entrées!M166=\"\",\"\",Entrées!M166)","v":""},{"$f":"IF(Entrées!N166=\"\",\"\",Entrées!N166)","v":""},{"$f":"IF(Entrées!O166=\"\",\"\",Entrées!O166)","v":""},null,{"$f":"Entrées!U166","v":false}]
[null,null,null,{"$f":"Entrées!C125","v":"Produit chimique 2"},"km",null,{"$f":"IF(Entrées!E167=\"\",\"\",Entrées!E167)","v":""},{"$f":"IF(Entrées!F167=\"\",\"\",Entrées!F167)","v":""},{"$f":"IF(Entrées!G167=\"\",\"\",Entrées!G167)","v":""},{"$f":"IF(Entrées!H167=\"\",\"\",Entrées!H167)","v":""},{"$f":"IF(Entrées!I167=\"\",\"\",Entrées!I167)","v":""},{"$f":"IF(Entrées!J167=\"\",\"\",Entrées!J167)","v":""},{"$f":"IF(Entrées!K167=\"\",\"\",Entrées!K167)","v":""},{"$f":"IF(Entrées!L167=\"\",\"\",Entrées!L167)","v":""},{"$f":"IF(Entrées!M167=\"\",\"\",Entrées!M167)","v":""},{"$f":"IF(Entrées!N167=\"\",\"\",Entrées!N167)","v":""},{"$f":"IF(Entrées!O167=\"\",\"\",Entrées!O167)","v":""},null,{"$f":"Entrées!U167","v":false}]
[null,null,null,{"$f":"Entrées!C126","v":"Produit chimique 3"},"km",null,{"$f":"IF(Entrées!E168=\"\",\"\",Entrées!E168)","v":""},{"$f":"IF(Entrées!F168=\"\",\"\",Entrées!F168)","v":""},{"$f":"IF(Entrées!G168=\"\",\"\",Entrées!G168)","v":""},{"$f":"IF(Entrées!H168=\"\",\"\",Entrées!H168)","v":""},{"$f":"IF(Entrées!I168=\"\",\"\",Entrées!I168)","v":""},{"$f":"IF(Entrées!J168=\"\",\"\",Entrées!J168)","v":""},{"$f":"IF(Entrées!K168=\"\",\"\",Entrées!K168)","v":""},{"$f":"IF(Entrées!L168=\"\",\"\",Entrées!L168)","v":""},{"$f":"IF(Entrées!M168=\"\",\"\",Entrées!M168)","v":""},{"$f":"IF(Entrées!N168=\"\",\"\",Entrées!N168)","v":""},{"$f":"IF(Entrées!O168=\"\",\"\",Entrées!O168)","v":""},null,{"$f":"Entrées!U168","v":false}]
[null,null,null,{"$f":"Entrées!C127","v":"Produit chimique 4"},"km",null,{"$f":"IF(Entrées!E169=\"\",\"\",Entrées!E169)","v":""},{"$f":"IF(Entrées!F169=\"\",\"\",Entrées!F169)","v":""},{"$f":"IF(Entrées!G169=\"\",\"\",Entrées!G169)","v":""},{"$f":"IF(Entrées!H169=\"\",\"\",Entrées!H169)","v":""},{"$f":"IF(Entrées!I169=\"\",\"\",Entrées!I169)","v":""},{"$f":"IF(Entrées!J169=\"\",\"\",Entrées!J169)","v":""},{"$f":"IF(Entrées!K169=\"\",\"\",Entrées!K169)","v":""},{"$f":"IF(Entrées!L169=\"\",\"\",Entrées!L169)","v":""},{"$f":"IF(Entrées!M169=\"\",\"\",Entrées!M169)","v":""},{"$f":"IF(Entrées!N169=\"\",\"\",Entrées!N169)","v":""},{"$f":"IF(Entrées!O169=\"\",\"\",Entrées!O169)","v":""},null,{"$f":"Entrées!U169","v":false}]
[null,null,null,{"$f":"Entrées!C128","v":"Produit chimique 5"},"km",null,{"$f":"IF(Entrées!E170=\"\",\"\",Entrées!E170)","v":""},{"$f":"IF(Entrées!F170=\"\",\"\",Entrées!F170)","v":""},{"$f":"IF(Entrées!G170=\"\",\"\",Entrées!G170)","v":""},{"$f":"IF(Entrées!H170=\"\",\"\",Entrées!H170)","v":""},{"$f":"IF(Entrées!I170=\"\",\"\",Entrées!I170)","v":""},{"$f":"IF(Entrées!J170=\"\",\"\",Entrées!J170)","v":""},{"$f":"IF(Entrées!K170=\"\",\"\",Entrées!K170)","v":""},{"$f":"IF(Entrées!L170=\"\",\"\",Entrées!L170)","v":""},{"$f":"IF(Entrées!M170=\"\",\"\",Entrées!M170)","v":""},{"$f":"IF(Entrées!N170=\"\",\"\",Entrées!N170)","v":""},{"$f":"IF(Entrées!O170=\"\",\"\",Entrées!O170)","v":""},null,{"$f":"Entrées!U170","v":false}]
[null,null,null,{"$f":"Entrées!C129","v":"Produit chimique 6"},"km",null,{"$f":"IF(Entrées!E171=\"\",\"\",Entrées!E171)","v":""},{"$f":"IF(Entrées!F171=\"\",\"\",Entrées!F171)","v":""},{"$f":"IF(Entrées!G171=\"\",\"\",Entrées!G171)","v":""},{"$f":"IF(Entrées!H171=\"\",\"\",Entrées!H171)","v":""},{"$f":"IF(Entrées!I171=\"\",\"\",Entrées!I171)","v":""},{"$f":"IF(Entrées!J171=\"\",\"\",Entrées!J171)","v":""},{"$f":"IF(Entrées!K171=\"\",\"\",Entrées!K171)","v":""},{"$f":"IF(Entrées!L171=\"\",\"\",Entrées!L171)","v":""},{"$f":"IF(Entrées!M171=\"\",\"\",Entrées!M171)","v":""},{"$f":"IF(Entrées!N171=\"\",\"\",Entrées!N171)","v":""},{"$f":"IF(Entrées!O171=\"\",\"\",Entrées!O171)","v":""},null,{"$f":"Entrées!U171","v":false}]
[null,null,null,{"$f":"Entrées!C130","v":"Produit chimique 7"},"km",null,{"$f":"IF(Entrées!E172=\"\",\"\",Entrées!E172)","v":""},{"$f":"IF(Entrées!F172=\"\",\"\",Entrées!F172)","v":""},{"$f":"IF(Entrées!G172=\"\",\"\",Entrées!G172)","v":""},{"$f":"IF(Entrées!H172=\"\",\"\",Entrées!H172)","v":""},{"$f":"IF(Entrées!I172=\"\",\"\",Entrées!I172)","v":""},{"$f":"IF(Entrées!J172=\"\",\"\",Entrées!J172)","v":""},{"$f":"IF(Entrées!K172=\"\",\"\",Entrées!K172)","v":""},{"$f":"IF(Entrées!L172=\"\",\"\",Entrées!L172)","v":""},{"$f":"IF(Entrées!M172=\"\",\"\",Entrées!M172)","v":""},{"$f":"IF(Entrées!N172=\"\",\"\",Entrées!N172)","v":""},{"$f":"IF(Entrées!O172=\"\",\"\",Entrées!O172)","v":""},null,{"$f":"Entrées!U172","v":false}]
[null,null,null,{"$f":"Entrées!C131","v":"Produit chimique 8"},"km",null,{"$f":"IF(Entrées!E173=\"\",\"\",Entrées!E173)","v":""},{"$f":"IF(Entrées!F173=\"\",\"\",Entrées!F173)","v":""},{"$f":"IF(Entrées!G173=\"\",\"\",Entrées!G173)","v":""},{"$f":"IF(Entrées!H173=\"\",\"\",Entrées!H173)","v":""},{"$f":"IF(Entrées!I173=\"\",\"\",Entrées!I173)","v":""},{"$f":"IF(Entrées!J173=\"\",\"\",Entrées!J173)","v":""},{"$f":"IF(Entrées!K173=\"\",\"\",Entrées!K173)","v":""},{"$f":"IF(Entrées!L173=\"\",\"\",Entrées!L173)","v":""},{"$f":"IF(Entrées!M173=\"\",\"\",Entrées!M173)","v":""},{"$f":"IF(Entrées!N173=\"\",\"\",Entrées!N173)","v":""},{"$f":"IF(Entrées!O173=\"\",\"\",Entrées!O173)","v":""},null,{"$f":"Entrées!U173","v":false}]
[null,null,null,{"$f":"Entrées!C132","v":"Produit chimique 9"},"km",null,{"$f":"IF(Entrées!E174=\"\",\"\",Entrées!E174)","v":""},{"$f":"IF(Entrées!F174=\"\",\"\",Entrées!F174)","v":""},{"$f":"IF(Entrées!G174=\"\",\"\",Entrées!G174)","v":""},{"$f":"IF(Entrées!H174=\"\",\"\",Entrées!H174)","v":""},{"$f":"IF(Entrées!I174=\"\",\"\",Entrées!I174)","v":""},{"$f":"IF(Entrées!J174=\"\",\"\",Entrées!J174)","v":""},{"$f":"IF(Entrées!K174=\"\",\"\",Entrées!K174)","v":""},{"$f":"IF(Entrées!L174=\"\",\"\",Entrées!L174)","v":""},{"$f":"IF(Entrées!M174=\"\",\"\",Entrées!M174)","v":""},{"$f":"IF(Entrées!N174=\"\",\"\",Entrées!N174)","v":""},{"$f":"IF(Entrées!O174=\"\",\"\",Entrées!O174)","v":""},null,{"$f":"Entrées!U174","v":false}]
[null,null,null,{"$f":"Entrées!C133","v":"Produit chimique 10"},"km",null,{"$f":"IF(Entrées!E175=\"\",\"\",Entrées!E175)","v":""},{"$f":"IF(Entrées!F175=\"\",\"\",Entrées!F175)","v":""},{"$f":"IF(Entrées!G175=\"\",\"\",Entrées!G175)","v":""},{"$f":"IF(Entrées!H175=\"\",\"\",Entrées!H175)","v":""},{"$f":"IF(Entrées!I175=\"\",\"\",Entrées!I175)","v":""},{"$f":"IF(Entrées!J175=\"\",\"\",Entrées!J175)","v":""},{"$f":"IF(Entrées!K175=\"\",\"\",Entrées!K175)","v":""},{"$f":"IF(Entrées!L175=\"\",\"\",Entrées!L175)","v":""},{"$f":"IF(Entrées!M175=\"\",\"\",Entrées!M175)","v":""},{"$f":"IF(Entrées!N175=\"\",\"\",Entrées!N175)","v":""},{"$f":"IF(Entrées!O175=\"\",\"\",Entrées!O175)","v":""},null,{"$f":"Entrées!U175","v":false}]
[null,null,null,{"$f":"Entrées!C134","v":"Produit chimique 11"},"km",null,{"$f":"IF(Entrées!E176=\"\",\"\",Entrées!E176)","v":""},{"$f":"IF(Entrées!F176=\"\",\"\",Entrées!F176)","v":""},{"$f":"IF(Entrées!G176=\"\",\"\",Entrées!G176)","v":""},{"$f":"IF(Entrées!H176=\"\",\"\",Entrées!H176)","v":""},{"$f":"IF(Entrées!I176=\"\",\"\",Entrées!I176)","v":""},{"$f":"IF(Entrées!J176=\"\",\"\",Entrées!J176)","v":""},{"$f":"IF(Entrées!K176=\"\",\"\",Entrées!K176)","v":""},{"$f":"IF(Entrées!L176=\"\",\"\",Entrées!L176)","v":""},{"$f":"IF(Entrées!M176=\"\",\"\",Entrées!M176)","v":""},{"$f":"IF(Entrées!N176=\"\",\"\",Entrées!N176)","v":""},{"$f":"IF(Entrées!O176=\"\",\"\",Entrées!O176)","v":""},null,{"$f":"Entrées!U176","v":false}]
[null,null,null,{"$f":"Entrées!C135","v":"Produit chimique 12"},"km",null,{"$f":"IF(Entrées!E177=\"\",\"\",Entrées!E177)","v":""},{"$f":"IF(Entrées!F177=\"\",\"\",Entrées!F177)","v":""},{"$f":"IF(Entrées!G177=\"\",\"\",Entrées!G177)","v":""},{"$f":"IF(Entrées!H177=\"\",\"\",Entrées!H177)","v":""},{"$f":"IF(Entrées!I177=\"\",\"\",Entrées!I177)","v":""},{"$f":"IF(Entrées!J177=\"\",\"\",Entrées!J177)","v":""},{"$f":"IF(Entrées!K177=\"\",\"\",Entrées!K177)","v":""},{"$f":"IF(Entrées!L177=\"\",\"\",Entrées!L177)","v":""},{"$f":"IF(Entrées!M177=\"\",\"\",Entrées!M177)","v":""},{"$f":"IF(Entrées!N177=\"\",\"\",Entrées!N177)","v":""},{"$f":"IF(Entrées!O177=\"\",\"\",Entrées!O177)","v":""},null,{"$f":"Entrées!U177","v":false}]
[null,null,null,{"$f":"Entrées!C136","v":"Produit chimique 13"},"km",null,{"$f":"IF(Entrées!E178=\"\",\"\",Entrées!E178)","v":""},{"$f":"IF(Entrées!F178=\"\",\"\",Entrées!F178)","v":""},{"$f":"IF(Entrées!G178=\"\",\"\",Entrées!G178)","v":""},{"$f":"IF(Entrées!H178=\"\",\"\",Entrées!H178)","v":""},{"$f":"IF(Entrées!I178=\"\",\"\",Entrées!I178)","v":""},{"$f":"IF(Entrées!J178=\"\",\"\",Entrées!J178)","v":""},{"$f":"IF(Entrées!K178=\"\",\"\",Entrées!K178)","v":""},{"$f":"IF(Entrées!L178=\"\",\"\",Entrées!L178)","v":""},{"$f":"IF(Entrées!M178=\"\",\"\",Entrées!M178)","v":""},{"$f":"IF(Entrées!N178=\"\",\"\",Entrées!N178)","v":""},{"$f":"IF(Entrées!O178=\"\",\"\",Entrées!O178)","v":""},null,{"$f":"Entrées!U178","v":false}]
[null,null,null,{"$f":"Entrées!C137","v":"Produit chimique 14"},"km",null,{"$f":"IF(Entrées!E179=\"\",\"\",Entrées!E179)","v":""},{"$f":"IF(Entrées!F179=\"\",\"\",Entrées!F179)","v":""},{"$f":"IF(Entrées!G179=\"\",\"\",Entrées!G179)","v":""},{"$f":"IF(Entrées!H179=\"\",\"\",Entrées!H179)","v":""},{"$f":"IF(Entrées!I179=\"\",\"\",Entrées!I179)","v":""},{"$f":"IF(Entrées!J179=\"\",\"\",Entrées!J179)","v":""},{"$f":"IF(Entrées!K179=\"\",\"\",Entrées!K179)","v":""},{"$f":"IF(Entrées!L179=\"\",\"\",Entrées!L179)","v":""},{"$f":"IF(Entrées!M179=\"\",\"\",Entrées!M179)","v":""},{"$f":"IF(Entrées!N179=\"\",\"\",Entrées!N179)","v":""},{"$f":"IF(Entrées!O179=\"\",\"\",Entrées!O179)","v":""},null,{"$f":"Entrées!U179","v":false}]
[null,null,null,{"$f":"Entrées!C138","v":"Produit chimique 15"},"km",null,{"$f":"IF(Entrées!E180=\"\",\"\",Entrées!E180)","v":""},{"$f":"IF(Entrées!F180=\"\",\"\",Entrées!F180)","v":""},{"$f":"IF(Entrées!G180=\"\",\"\",Entrées!G180)","v":""},{"$f":"IF(Entrées!H180=\"\",\"\",Entrées!H180)","v":""},{"$f":"IF(Entrées!I180=\"\",\"\",Entrées!I180)","v":""},{"$f":"IF(Entrées!J180=\"\",\"\",Entrées!J180)","v":""},{"$f":"IF(Entrées!K180=\"\",\"\",Entrées!K180)","v":""},{"$f":"IF(Entrées!L180=\"\",\"\",Entrées!L180)","v":""},{"$f":"IF(Entrées!M180=\"\",\"\",Entrées!M180)","v":""},{"$f":"IF(Entrées!N180=\"\",\"\",Entrées!N180)","v":""},{"$f":"IF(Entrées!O180=\"\",\"\",Entrées!O180)","v":""},null,{"$f":"Entrées!U180","v":false}]
[null,null,null,{"$f":"Entrées!C139","v":"Produit chimique 16"},"km",null,{"$f":"IF(Entrées!E181=\"\",\"\",Entrées!E181)","v":""},{"$f":"IF(Entrées!F181=\"\",\"\",Entrées!F181)","v":""},{"$f":"IF(Entrées!G181=\"\",\"\",Entrées!G181)","v":""},{"$f":"IF(Entrées!H181=\"\",\"\",Entrées!H181)","v":""},{"$f":"IF(Entrées!I181=\"\",\"\",Entrées!I181)","v":""},{"$f":"IF(Entrées!J181=\"\",\"\",Entrées!J181)","v":""},{"$f":"IF(Entrées!K181=\"\",\"\",Entrées!K181)","v":""},{"$f":"IF(Entrées!L181=\"\",\"\",Entrées!L181)","v":""},{"$f":"IF(Entrées!M181=\"\",\"\",Entrées!M181)","v":""},{"$f":"IF(Entrées!N181=\"\",\"\",Entrées!N181)","v":""},{"$f":"IF(Entrées!O181=\"\",\"\",Entrées!O181)","v":""},null,{"$f":"Entrées!U181","v":false}]
[null,null,null,{"$f":"Entrées!C140","v":"Produit chimique 17"},"km",null,{"$f":"IF(Entrées!E182=\"\",\"\",Entrées!E182)","v":""},{"$f":"IF(Entrées!F182=\"\",\"\",Entrées!F182)","v":""},{"$f":"IF(Entrées!G182=\"\",\"\",Entrées!G182)","v":""},{"$f":"IF(Entrées!H182=\"\",\"\",Entrées!H182)","v":""},{"$f":"IF(Entrées!I182=\"\",\"\",Entrées!I182)","v":""},{"$f":"IF(Entrées!J182=\"\",\"\",Entrées!J182)","v":""},{"$f":"IF(Entrées!K182=\"\",\"\",Entrées!K182)","v":""},{"$f":"IF(Entrées!L182=\"\",\"\",Entrées!L182)","v":""},{"$f":"IF(Entrées!M182=\"\",\"\",Entrées!M182)","v":""},{"$f":"IF(Entrées!N182=\"\",\"\",Entrées!N182)","v":""},{"$f":"IF(Entrées!O182=\"\",\"\",Entrées!O182)","v":""},null,{"$f":"Entrées!U182","v":false}]
[null,null,null,{"$f":"Entrées!C141","v":"Produit chimique 18"},"km",null,{"$f":"IF(Entrées!E183=\"\",\"\",Entrées!E183)","v":""},{"$f":"IF(Entrées!F183=\"\",\"\",Entrées!F183)","v":""},{"$f":"IF(Entrées!G183=\"\",\"\",Entrées!G183)","v":""},{"$f":"IF(Entrées!H183=\"\",\"\",Entrées!H183)","v":""},{"$f":"IF(Entrées!I183=\"\",\"\",Entrées!I183)","v":""},{"$f":"IF(Entrées!J183=\"\",\"\",Entrées!J183)","v":""},{"$f":"IF(Entrées!K183=\"\",\"\",Entrées!K183)","v":""},{"$f":"IF(Entrées!L183=\"\",\"\",Entrées!L183)","v":""},{"$f":"IF(Entrées!M183=\"\",\"\",Entrées!M183)","v":""},{"$f":"IF(Entrées!N183=\"\",\"\",Entrées!N183)","v":""},{"$f":"IF(Entrées!O183=\"\",\"\",Entrées!O183)","v":""},null,{"$f":"Entrées!U183","v":false}]
[null,null,null,{"$f":"Entrées!C142","v":"Produit chimique 19"},"km",null,{"$f":"IF(Entrées!E184=\"\",\"\",Entrées!E184)","v":""},{"$f":"IF(Entrées!F184=\"\",\"\",Entrées!F184)","v":""},{"$f":"IF(Entrées!G184=\"\",\"\",Entrées!G184)","v":""},{"$f":"IF(Entrées!H184=\"\",\"\",Entrées!H184)","v":""},{"$f":"IF(Entrées!I184=\"\",\"\",Entrées!I184)","v":""},{"$f":"IF(Entrées!J184=\"\",\"\",Entrées!J184)","v":""},{"$f":"IF(Entrées!K184=\"\",\"\",Entrées!K184)","v":""},{"$f":"IF(Entrées!L184=\"\",\"\",Entrées!L184)","v":""},{"$f":"IF(Entrées!M184=\"\",\"\",Entrées!M184)","v":""},{"$f":"IF(Entrées!N184=\"\",\"\",Entrées!N184)","v":""},{"$f":"IF(Entrées!O184=\"\",\"\",Entrées!O184)","v":""},null,{"$f":"Entrées!U184","v":false}]
[null,null,null,{"$f":"Entrées!C143","v":"Produit chimique 20"},"km",null,{"$f":"IF(Entrées!E185=\"\",\"\",Entrées!E185)","v":""},{"$f":"IF(Entrées!F185=\"\",\"\",Entrées!F185)","v":""},{"$f":"IF(Entrées!G185=\"\",\"\",Entrées!G185)","v":""},{"$f":"IF(Entrées!H185=\"\",\"\",Entrées!H185)","v":""},{"$f":"IF(Entrées!I185=\"\",\"\",Entrées!I185)","v":""},{"$f":"IF(Entrées!J185=\"\",\"\",Entrées!J185)","v":""},{"$f":"IF(Entrées!K185=\"\",\"\",Entrées!K185)","v":""},{"$f":"IF(Entrées!L185=\"\",\"\",Entrées!L185)","v":""},{"$f":"IF(Entrées!M185=\"\",\"\",Entrées!M185)","v":""},{"$f":"IF(Entrées!N185=\"\",\"\",Entrées!N185)","v":""},{"$f":"IF(Entrées!O185=\"\",\"\",Entrées!O185)","v":""},null,{"$f":"Entrées!U185","v":false}]
[null,null,"Dsea","Distance parcourue par fret maritime entre le fournisseur et le site (trajet aller-retour)",null,null,"\n",null,null,null,null,null,null,null,null,null,null,null,{"$f":"TRUE","v":true}]
[null,null,null,{"$f":"Entrées!C124","v":"Produit chimique 1"},"km",null,{"$f":"IF(Entrées!E187=\"\",\"\",Entrées!E187)","v":""},{"$f":"IF(Entrées!F187=\"\",\"\",Entrées!F187)","v":""},{"$f":"IF(Entrées!G187=\"\",\"\",Entrées!G187)","v":""},{"$f":"IF(Entrées!H187=\"\",\"\",Entrées!H187)","v":""},{"$f":"IF(Entrées!I187=\"\",\"\",Entrées!I187)","v":""},{"$f":"IF(Entrées!J187=\"\",\"\",Entrées!J187)","v":""},{"$f":"IF(Entrées!K187=\"\",\"\",Entrées!K187)","v":""},{"$f":"IF(Entrées!L187=\"\",\"\",Entrées!L187)","v":""},{"$f":"IF(Entrées!M187=\"\",\"\",Entrées!M187)","v":""},{"$f":"IF(Entrées!N187=\"\",\"\",Entrées!N187)","v":""},{"$f":"IF(Entrées!O187=\"\",\"\",Entrées!O187)","v":""},null,{"$f":"Entrées!U187","v":false}]
[null,null,null,{"$f":"Entrées!C125","v":"Produit chimique 2"},"km",null,{"$f":"IF(Entrées!E188=\"\",\"\",Entrées!E188)","v":""},{"$f":"IF(Entrées!F188=\"\",\"\",Entrées!F188)","v":""},{"$f":"IF(Entrées!G188=\"\",\"\",Entrées!G188)","v":""},{"$f":"IF(Entrées!H188=\"\",\"\",Entrées!H188)","v":""},{"$f":"IF(Entrées!I188=\"\",\"\",Entrées!I188)","v":""},{"$f":"IF(Entrées!J188=\"\",\"\",Entrées!J188)","v":""},{"$f":"IF(Entrées!K188=\"\",\"\",Entrées!K188)","v":""},{"$f":"IF(Entrées!L188=\"\",\"\",Entrées!L188)","v":""},{"$f":"IF(Entrées!M188=\"\",\"\",Entrées!M188)","v":""},{"$f":"IF(Entrées!N188=\"\",\"\",Entrées!N188)","v":""},{"$f":"IF(Entrées!O188=\"\",\"\",Entrées!O188)","v":""},null,{"$f":"Entrées!U188","v":false}]
[null,null,null,{"$f":"Entrées!C126","v":"Produit chimique 3"},"km",null,{"$f":"IF(Entrées!E189=\"\",\"\",Entrées!E189)","v":""},{"$f":"IF(Entrées!F189=\"\",\"\",Entrées!F189)","v":""},{"$f":"IF(Entrées!G189=\"\",\"\",Entrées!G189)","v":""},{"$f":"IF(Entrées!H189=\"\",\"\",Entrées!H189)","v":""},{"$f":"IF(Entrées!I189=\"\",\"\",Entrées!I189)","v":""},{"$f":"IF(Entrées!J189=\"\",\"\",Entrées!J189)","v":""},{"$f":"IF(Entrées!K189=\"\",\"\",Entrées!K189)","v":""},{"$f":"IF(Entrées!L189=\"\",\"\",Entrées!L189)","v":""},{"$f":"IF(Entrées!M189=\"\",\"\",Entrées!M189)","v":""},{"$f":"IF(Entrées!N189=\"\",\"\",Entrées!N189)","v":""},{"$f":"IF(Entrées!O189=\"\",\"\",Entrées!O189)","v":""},null,{"$f":"Entrées!U189","v":false}]
[null,null,null,{"$f":"Entrées!C127","v":"Produit chimique 4"},"km",null,{"$f":"IF(Entrées!E190=\"\",\"\",Entrées!E190)","v":""},{"$f":"IF(Entrées!F190=\"\",\"\",Entrées!F190)","v":""},{"$f":"IF(Entrées!G190=\"\",\"\",Entrées!G190)","v":""},{"$f":"IF(Entrées!H190=\"\",\"\",Entrées!H190)","v":""},{"$f":"IF(Entrées!I190=\"\",\"\",Entrées!I190)","v":""},{"$f":"IF(Entrées!J190=\"\",\"\",Entrées!J190)","v":""},{"$f":"IF(Entrées!K190=\"\",\"\",Entrées!K190)","v":""},{"$f":"IF(Entrées!L190=\"\",\"\",Entrées!L190)","v":""},{"$f":"IF(Entrées!M190=\"\",\"\",Entrées!M190)","v":""},{"$f":"IF(Entrées!N190=\"\",\"\",Entrées!N190)","v":""},{"$f":"IF(Entrées!O190=\"\",\"\",Entrées!O190)","v":""},null,{"$f":"Entrées!U190","v":false}]
[null,null,null,{"$f":"Entrées!C128","v":"Produit chimique 5"},"km",null,{"$f":"IF(Entrées!E191=\"\",\"\",Entrées!E191)","v":""},{"$f":"IF(Entrées!F191=\"\",\"\",Entrées!F191)","v":""},{"$f":"IF(Entrées!G191=\"\",\"\",Entrées!G191)","v":""},{"$f":"IF(Entrées!H191=\"\",\"\",Entrées!H191)","v":""},{"$f":"IF(Entrées!I191=\"\",\"\",Entrées!I191)","v":""},{"$f":"IF(Entrées!J191=\"\",\"\",Entrées!J191)","v":""},{"$f":"IF(Entrées!K191=\"\",\"\",Entrées!K191)","v":""},{"$f":"IF(Entrées!L191=\"\",\"\",Entrées!L191)","v":""},{"$f":"IF(Entrées!M191=\"\",\"\",Entrées!M191)","v":""},{"$f":"IF(Entrées!N191=\"\",\"\",Entrées!N191)","v":""},{"$f":"IF(Entrées!O191=\"\",\"\",Entrées!O191)","v":""},null,{"$f":"Entrées!U191","v":false}]
[null,null,null,{"$f":"Entrées!C129","v":"Produit chimique 6"},"km",null,{"$f":"IF(Entrées!E192=\"\",\"\",Entrées!E192)","v":""},{"$f":"IF(Entrées!F192=\"\",\"\",Entrées!F192)","v":""},{"$f":"IF(Entrées!G192=\"\",\"\",Entrées!G192)","v":""},{"$f":"IF(Entrées!H192=\"\",\"\",Entrées!H192)","v":""},{"$f":"IF(Entrées!I192=\"\",\"\",Entrées!I192)","v":""},{"$f":"IF(Entrées!J192=\"\",\"\",Entrées!J192)","v":""},{"$f":"IF(Entrées!K192=\"\",\"\",Entrées!K192)","v":""},{"$f":"IF(Entrées!L192=\"\",\"\",Entrées!L192)","v":""},{"$f":"IF(Entrées!M192=\"\",\"\",Entrées!M192)","v":""},{"$f":"IF(Entrées!N192=\"\",\"\",Entrées!N192)","v":""},{"$f":"IF(Entrées!O192=\"\",\"\",Entrées!O192)","v":""},null,{"$f":"Entrées!U192","v":false}]
[null,null,null,{"$f":"Entrées!C130","v":"Produit chimique 7"},"km",null,{"$f":"IF(Entrées!E193=\"\",\"\",Entrées!E193)","v":""},{"$f":"IF(Entrées!F193=\"\",\"\",Entrées!F193)","v":""},{"$f":"IF(Entrées!G193=\"\",\"\",Entrées!G193)","v":""},{"$f":"IF(Entrées!H193=\"\",\"\",Entrées!H193)","v":""},{"$f":"IF(Entrées!I193=\"\",\"\",Entrées!I193)","v":""},{"$f":"IF(Entrées!J193=\"\",\"\",Entrées!J193)","v":""},{"$f":"IF(Entrées!K193=\"\",\"\",Entrées!K193)","v":""},{"$f":"IF(Entrées!L193=\"\",\"\",Entrées!L193)","v":""},{"$f":"IF(Entrées!M193=\"\",\"\",Entrées!M193)","v":""},{"$f":"IF(Entrées!N193=\"\",\"\",Entrées!N193)","v":""},{"$f":"IF(Entrées!O193=\"\",\"\",Entrées!O193)","v":""},null,{"$f":"Entrées!U193","v":false}]
[null,null,null,{"$f":"Entrées!C131","v":"Produit chimique 8"},"km",null,{"$f":"IF(Entrées!E194=\"\",\"\",Entrées!E194)","v":""},{"$f":"IF(Entrées!F194=\"\",\"\",Entrées!F194)","v":""},{"$f":"IF(Entrées!G194=\"\",\"\",Entrées!G194)","v":""},{"$f":"IF(Entrées!H194=\"\",\"\",Entrées!H194)","v":""},{"$f":"IF(Entrées!I194=\"\",\"\",Entrées!I194)","v":""},{"$f":"IF(Entrées!J194=\"\",\"\",Entrées!J194)","v":""},{"$f":"IF(Entrées!K194=\"\",\"\",Entrées!K194)","v":""},{"$f":"IF(Entrées!L194=\"\",\"\",Entrées!L194)","v":""},{"$f":"IF(Entrées!M194=\"\",\"\",Entrées!M194)","v":""},{"$f":"IF(Entrées!N194=\"\",\"\",Entrées!N194)","v":""},{"$f":"IF(Entrées!O194=\"\",\"\",Entrées!O194)","v":""},null,{"$f":"Entrées!U194","v":false}]
[null,null,null,{"$f":"Entrées!C132","v":"Produit chimique 9"},"km",null,{"$f":"IF(Entrées!E195=\"\",\"\",Entrées!E195)","v":""},{"$f":"IF(Entrées!F195=\"\",\"\",Entrées!F195)","v":""},{"$f":"IF(Entrées!G195=\"\",\"\",Entrées!G195)","v":""},{"$f":"IF(Entrées!H195=\"\",\"\",Entrées!H195)","v":""},{"$f":"IF(Entrées!I195=\"\",\"\",Entrées!I195)","v":""},{"$f":"IF(Entrées!J195=\"\",\"\",Entrées!J195)","v":""},{"$f":"IF(Entrées!K195=\"\",\"\",Entrées!K195)","v":""},{"$f":"IF(Entrées!L195=\"\",\"\",Entrées!L195)","v":""},{"$f":"IF(Entrées!M195=\"\",\"\",Entrées!M195)","v":""},{"$f":"IF(Entrées!N195=\"\",\"\",Entrées!N195)","v":""},{"$f":"IF(Entrées!O195=\"\",\"\",Entrées!O195)","v":""},null,{"$f":"Entrées!U195","v":false}]
[null,null,null,{"$f":"Entrées!C133","v":"Produit chimique 10"},"km",null,{"$f":"IF(Entrées!E196=\"\",\"\",Entrées!E196)","v":""},{"$f":"IF(Entrées!F196=\"\",\"\",Entrées!F196)","v":""},{"$f":"IF(Entrées!G196=\"\",\"\",Entrées!G196)","v":""},{"$f":"IF(Entrées!H196=\"\",\"\",Entrées!H196)","v":""},{"$f":"IF(Entrées!I196=\"\",\"\",Entrées!I196)","v":""},{"$f":"IF(Entrées!J196=\"\",\"\",Entrées!J196)","v":""},{"$f":"IF(Entrées!K196=\"\",\"\",Entrées!K196)","v":""},{"$f":"IF(Entrées!L196=\"\",\"\",Entrées!L196)","v":""},{"$f":"IF(Entrées!M196=\"\",\"\",Entrées!M196)","v":""},{"$f":"IF(Entrées!N196=\"\",\"\",Entrées!N196)","v":""},{"$f":"IF(Entrées!O196=\"\",\"\",Entrées!O196)","v":""},null,{"$f":"Entrées!U196","v":false}]
[null,null,null,{"$f":"Entrées!C134","v":"Produit chimique 11"},"km",null,{"$f":"IF(Entrées!E197=\"\",\"\",Entrées!E197)","v":""},{"$f":"IF(Entrées!F197=\"\",\"\",Entrées!F197)","v":""},{"$f":"IF(Entrées!G197=\"\",\"\",Entrées!G197)","v":""},{"$f":"IF(Entrées!H197=\"\",\"\",Entrées!H197)","v":""},{"$f":"IF(Entrées!I197=\"\",\"\",Entrées!I197)","v":""},{"$f":"IF(Entrées!J197=\"\",\"\",Entrées!J197)","v":""},{"$f":"IF(Entrées!K197=\"\",\"\",Entrées!K197)","v":""},{"$f":"IF(Entrées!L197=\"\",\"\",Entrées!L197)","v":""},{"$f":"IF(Entrées!M197=\"\",\"\",Entrées!M197)","v":""},{"$f":"IF(Entrées!N197=\"\",\"\",Entrées!N197)","v":""},{"$f":"IF(Entrées!O197=\"\",\"\",Entrées!O197)","v":""},null,{"$f":"Entrées!U197","v":false}]
[null,null,null,{"$f":"Entrées!C135","v":"Produit chimique 12"},"km",null,{"$f":"IF(Entrées!E198=\"\",\"\",Entrées!E198)","v":""},{"$f":"IF(Entrées!F198=\"\",\"\",Entrées!F198)","v":""},{"$f":"IF(Entrées!G198=\"\",\"\",Entrées!G198)","v":""},{"$f":"IF(Entrées!H198=\"\",\"\",Entrées!H198)","v":""},{"$f":"IF(Entrées!I198=\"\",\"\",Entrées!I198)","v":""},{"$f":"IF(Entrées!J198=\"\",\"\",Entrées!J198)","v":""},{"$f":"IF(Entrées!K198=\"\",\"\",Entrées!K198)","v":""},{"$f":"IF(Entrées!L198=\"\",\"\",Entrées!L198)","v":""},{"$f":"IF(Entrées!M198=\"\",\"\",Entrées!M198)","v":""},{"$f":"IF(Entrées!N198=\"\",\"\",Entrées!N198)","v":""},{"$f":"IF(Entrées!O198=\"\",\"\",Entrées!O198)","v":""},null,{"$f":"Entrées!U198","v":false}]
[null,null,null,{"$f":"Entrées!C136","v":"Produit chimique 13"},"km",null,{"$f":"IF(Entrées!E199=\"\",\"\",Entrées!E199)","v":""},{"$f":"IF(Entrées!F199=\"\",\"\",Entrées!F199)","v":""},{"$f":"IF(Entrées!G199=\"\",\"\",Entrées!G199)","v":""},{"$f":"IF(Entrées!H199=\"\",\"\",Entrées!H199)","v":""},{"$f":"IF(Entrées!I199=\"\",\"\",Entrées!I199)","v":""},{"$f":"IF(Entrées!J199=\"\",\"\",Entrées!J199)","v":""},{"$f":"IF(Entrées!K199=\"\",\"\",Entrées!K199)","v":""},{"$f":"IF(Entrées!L199=\"\",\"\",Entrées!L199)","v":""},{"$f":"IF(Entrées!M199=\"\",\"\",Entrées!M199)","v":""},{"$f":"IF(Entrées!N199=\"\",\"\",Entrées!N199)","v":""},{"$f":"IF(Entrées!O199=\"\",\"\",Entrées!O199)","v":""},null,{"$f":"Entrées!U199","v":false}]
[null,null,null,{"$f":"Entrées!C137","v":"Produit chimique 14"},"km",null,{"$f":"IF(Entrées!E200=\"\",\"\",Entrées!E200)","v":""},{"$f":"IF(Entrées!F200=\"\",\"\",Entrées!F200)","v":""},{"$f":"IF(Entrées!G200=\"\",\"\",Entrées!G200)","v":""},{"$f":"IF(Entrées!H200=\"\",\"\",Entrées!H200)","v":""},{"$f":"IF(Entrées!I200=\"\",\"\",Entrées!I200)","v":""},{"$f":"IF(Entrées!J200=\"\",\"\",Entrées!J200)","v":""},{"$f":"IF(Entrées!K200=\"\",\"\",Entrées!K200)","v":""},{"$f":"IF(Entrées!L200=\"\",\"\",Entrées!L200)","v":""},{"$f":"IF(Entrées!M200=\"\",\"\",Entrées!M200)","v":""},{"$f":"IF(Entrées!N200=\"\",\"\",Entrées!N200)","v":""},{"$f":"IF(Entrées!O200=\"\",\"\",Entrées!O200)","v":""},null,{"$f":"Entrées!U200","v":false}]
[null,null,null,{"$f":"Entrées!C138","v":"Produit chimique 15"},"km",null,{"$f":"IF(Entrées!E201=\"\",\"\",Entrées!E201)","v":""},{"$f":"IF(Entrées!F201=\"\",\"\",Entrées!F201)","v":""},{"$f":"IF(Entrées!G201=\"\",\"\",Entrées!G201)","v":""},{"$f":"IF(Entrées!H201=\"\",\"\",Entrées!H201)","v":""},{"$f":"IF(Entrées!I201=\"\",\"\",Entrées!I201)","v":""},{"$f":"IF(Entrées!J201=\"\",\"\",Entrées!J201)","v":""},{"$f":"IF(Entrées!K201=\"\",\"\",Entrées!K201)","v":""},{"$f":"IF(Entrées!L201=\"\",\"\",Entrées!L201)","v":""},{"$f":"IF(Entrées!M201=\"\",\"\",Entrées!M201)","v":""},{"$f":"IF(Entrées!N201=\"\",\"\",Entrées!N201)","v":""},{"$f":"IF(Entrées!O201=\"\",\"\",Entrées!O201)","v":""},null,{"$f":"Entrées!U201","v":false}]
[null,null,null,{"$f":"Entrées!C139","v":"Produit chimique 16"},"km",null,{"$f":"IF(Entrées!E202=\"\",\"\",Entrées!E202)","v":""},{"$f":"IF(Entrées!F202=\"\",\"\",Entrées!F202)","v":""},{"$f":"IF(Entrées!G202=\"\",\"\",Entrées!G202)","v":""},{"$f":"IF(Entrées!H202=\"\",\"\",Entrées!H202)","v":""},{"$f":"IF(Entrées!I202=\"\",\"\",Entrées!I202)","v":""},{"$f":"IF(Entrées!J202=\"\",\"\",Entrées!J202)","v":""},{"$f":"IF(Entrées!K202=\"\",\"\",Entrées!K202)","v":""},{"$f":"IF(Entrées!L202=\"\",\"\",Entrées!L202)","v":""},{"$f":"IF(Entrées!M202=\"\",\"\",Entrées!M202)","v":""},{"$f":"IF(Entrées!N202=\"\",\"\",Entrées!N202)","v":""},{"$f":"IF(Entrées!O202=\"\",\"\",Entrées!O202)","v":""},null,{"$f":"Entrées!U202","v":false}]
[null,null,null,{"$f":"Entrées!C140","v":"Produit chimique 17"},"km",null,{"$f":"IF(Entrées!E203=\"\",\"\",Entrées!E203)","v":""},{"$f":"IF(Entrées!F203=\"\",\"\",Entrées!F203)","v":""},{"$f":"IF(Entrées!G203=\"\",\"\",Entrées!G203)","v":""},{"$f":"IF(Entrées!H203=\"\",\"\",Entrées!H203)","v":""},{"$f":"IF(Entrées!I203=\"\",\"\",Entrées!I203)","v":""},{"$f":"IF(Entrées!J203=\"\",\"\",Entrées!J203)","v":""},{"$f":"IF(Entrées!K203=\"\",\"\",Entrées!K203)","v":""},{"$f":"IF(Entrées!L203=\"\",\"\",Entrées!L203)","v":""},{"$f":"IF(Entrées!M203=\"\",\"\",Entrées!M203)","v":""},{"$f":"IF(Entrées!N203=\"\",\"\",Entrées!N203)","v":""},{"$f":"IF(Entrées!O203=\"\",\"\",Entrées!O203)","v":""},null,{"$f":"Entrées!U203","v":false}]
[null,null,null,{"$f":"Entrées!C141","v":"Produit chimique 18"},"km",null,{"$f":"IF(Entrées!E204=\"\",\"\",Entrées!E204)","v":""},{"$f":"IF(Entrées!F204=\"\",\"\",Entrées!F204)","v":""},{"$f":"IF(Entrées!G204=\"\",\"\",Entrées!G204)","v":""},{"$f":"IF(Entrées!H204=\"\",\"\",Entrées!H204)","v":""},{"$f":"IF(Entrées!I204=\"\",\"\",Entrées!I204)","v":""},{"$f":"IF(Entrées!J204=\"\",\"\",Entrées!J204)","v":""},{"$f":"IF(Entrées!K204=\"\",\"\",Entrées!K204)","v":""},{"$f":"IF(Entrées!L204=\"\",\"\",Entrées!L204)","v":""},{"$f":"IF(Entrées!M204=\"\",\"\",Entrées!M204)","v":""},{"$f":"IF(Entrées!N204=\"\",\"\",Entrées!N204)","v":""},{"$f":"IF(Entrées!O204=\"\",\"\",Entrées!O204)","v":""},null,{"$f":"Entrées!U204","v":false}]
[null,null,null,{"$f":"Entrées!C142","v":"Produit chimique 19"},"km",null,{"$f":"IF(Entrées!E205=\"\",\"\",Entrées!E205)","v":""},{"$f":"IF(Entrées!F205=\"\",\"\",Entrées!F205)","v":""},{"$f":"IF(Entrées!G205=\"\",\"\",Entrées!G205)","v":""},{"$f":"IF(Entrées!H205=\"\",\"\",Entrées!H205)","v":""},{"$f":"IF(Entrées!I205=\"\",\"\",Entrées!I205)","v":""},{"$f":"IF(Entrées!J205=\"\",\"\",Entrées!J205)","v":""},{"$f":"IF(Entrées!K205=\"\",\"\",Entrées!K205)","v":""},{"$f":"IF(Entrées!L205=\"\",\"\",Entrées!L205)","v":""},{"$f":"IF(Entrées!M205=\"\",\"\",Entrées!M205)","v":""},{"$f":"IF(Entrées!N205=\"\",\"\",Entrées!N205)","v":""},{"$f":"IF(Entrées!O205=\"\",\"\",Entrées!O205)","v":""},null,{"$f":"Entrées!U205","v":false}]
[null,null,null,{"$f":"Entrées!C143","v":"Produit chimique 20"},"km",null,{"$f":"IF(Entrées!E206=\"\",\"\",Entrées!E206)","v":""},{"$f":"IF(Entrées!F206=\"\",\"\",Entrées!F206)","v":""},{"$f":"IF(Entrées!G206=\"\",\"\",Entrées!G206)","v":""},{"$f":"IF(Entrées!H206=\"\",\"\",Entrées!H206)","v":""},{"$f":"IF(Entrées!I206=\"\",\"\",Entrées!I206)","v":""},{"$f":"IF(Entrées!J206=\"\",\"\",Entrées!J206)","v":""},{"$f":"IF(Entrées!K206=\"\",\"\",Entrées!K206)","v":""},{"$f":"IF(Entrées!L206=\"\",\"\",Entrées!L206)","v":""},{"$f":"IF(Entrées!M206=\"\",\"\",Entrées!M206)","v":""},{"$f":"IF(Entrées!N206=\"\",\"\",Entrées!N206)","v":""},{"$f":"IF(Entrées!O206=\"\",\"\",Entrées!O206)","v":""},null,{"$f":"Entrées!U206","v":false}]
[null,null," Echem,t","Émissions du transport de produits chimiques",null,null,null,null,null,null,null,null,null,null,null,null,null,null,{"$f":"TRUE","v":true}]
[null,null,null,{"$f":"Entrées!C124","v":"Produit chimique 1"},"tCO2éq./an",null,{"$f":"IF(G83=\"\",0,(G83*$F$77*G31/1000000))+IF(G125=\"\",0,(G125*$F$79*G31/1000000))+IF(G104=\"\",0,(G104*$F$78*G31/1000000))","v":0},{"$f":"IF(H83=\"\",0,(H83*$F$77*H31/1000000))+IF(H125=\"\",0,(H125*$F$79*H31/1000000))+IF(H104=\"\",0,(H104*$F$78*H31/1000000))","v":0},0,0,0,0,0,0,0,0,0,null,{"$f":"Entrées!T124","v":false}]
[null,null,null,{"$f":"Entrées!C125","v":"Produit chimique 2"},"tCO2éq./an",null,{"$f":"IF(G84=\"\",0,(G84*$F$77*G32/1000000))+IF(G126=\"\",0,(G126*$F$79*G32/1000000))+IF(G105=\"\",0,(G105*$F$78*G32/1000000))","v":0},0,0,0,0,0,0,0,0,0,0,null,{"$f":"Entrées!T125","v":false}]
[null,null,null,{"$f":"Entrées!C126","v":"Produit chimique 3"},"tCO2éq./an",null,0,0,0,0,0,0,0,0,0,0,0,null,{"$f":"Entrées!T126","v":false}]
[null,null,null,{"$f":"Entrées!C127","v":"Produit chimique 4"},"tCO2éq./an",null,0,0,0,0,0,0,0,0,0,0,0,null,{"$f":"Entrées!T127","v":false}]
[null,null,null,{"$f":"Entrées!C128","v":"Produit chimique 5"},"tCO2éq./an",null,0,0,0,0,0,0,0,0,0,0,0,null,{"$f":"Entrées!T128","v":false}]
[null,null,null,{"$f":"Entrées!C129","v":"Produit chimique 6"},"tCO2éq./an",null,0,0,0,0,0,0,0,0,0,0,0,null,{"$f":"Entrées!T129","v":false}]
[null,null,null,{"$f":"Entrées!C130","v":"Produit chimique 7"},"tCO2éq./an",null,0,0,0,0,0,0,0,0,0,0,0,null,{"$f":"Entrées!T130","v":false}]
[null,null,null,{"$f":"Entrées!C131","v":"Produit chimique 8"},"tCO2éq./an",null,0,0,0,0,0,0,0,0,0,0,0,null,{"$f":"Entrées!T131","v":false}]
[null,null,null,{"$f":"Entrées!C132","v":"Produit chimique 9"},"tCO2éq./an",null,0,0,0,0,0,0,0,0,0,0,0,null,{"$f":"Entrées!T132","v":false}]
[null,null,null,{"$f":"Entrées!C133","v":"Produit chimique 10"},"tCO2éq./an",null,0,0,0,0,0,0,0,0,0,0,0,null,{"$f":"Entrées!T133","v":false}]
[null,null,null,{"$f":"Entrées!C134","v":"Produit chimique 11"},"tCO2éq./an",null,0,0,0,0,0,0,0,0,0,0,0,null,{"$f":"Entrées!T134","v":false}]
[null,null,null,{"$f":"Entrées!C135","v":"Produit chimique 12"},"tCO2éq./an",null,0,0,0,0,0,0,0,0,0,0,0,null,{"$f":"Entrées!T135","v":false}]
[null,null,null,{"$f":"Entrées!C136","v":"Produit chimique 13"},"tCO2éq./an",null,0,0,0,0,0,0,0,0,0,0,0,null,{"$f":"Entrées!T136","v":false}]
[null,null,null,{"$f":"Entrées!C137","v":"Produit chimique 14"},"tCO2éq./an",null,0,0,0,0,0,0,0,0,0,0,0,null,{"$f":"Entrées!T137","v":false}]
[null,null,null,{"$f":"Entrées!C138","v":"Produit chimique 15"},"tCO2éq./an",null,0,0,0,0,0,0,0,0,0,0,0,null,{"$f":"Entrées!T138","v":false}]
[null,null,null,{"$f":"Entrées!C139","v":"Produit chimique 16"},"tCO2éq./an",null,0,0,0,0,0,0,0,0,0,0,0,null,{"$f":"Entrées!T139","v":false}]
[null,null,null,{"$f":"Entrées!C140","v":"Produit chimique 17"},"tCO2éq./an",null,0,0,0,0,0,0,0,0,0,0,0,null,{"$f":"Entrées!T140","v":false}]
[null,null,null,{"$f":"Entrées!C141","v":"Produit chimique 18"},"tCO2éq./an",null,0,0,0,0,0,0,0,0,0,0,0,null,{"$f":"Entrées!T141","v":false}]
[null,null,null,{"$f":"Entrées!C142","v":"Produit chimique 19"},"tCO2éq./an",null,0,0,0,0,0,0,0,0,0,0,0,null,{"$f":"Entrées!T142","v":false}]
[null,null,null,{"$f":"Entrées!C143","v":"Produit chimique 20"},"tCO2éq./an",null,0,0,0,0,0,0,0,0,0,0,0,null,{"$f":"Entrées!T143","v":false}]
[null,null,null,"Total des émissions du transport de produits chimiques","tCO2éq./an",{"$f":"SUM(G166:Q166)","v":0},{"$f":"SUM(G146:G165)","v":0},{"$f":"SUM(H146:H165)","v":0},0,0,0,0,0,0,0,0,0,null,{"$f":"TRUE","v":true}]